{"text_format":"1","workbook":"xlsx","n_sheets":1,"sheets":["nagyker"],"not_rendered":{"charts":0,"images":0,"macros":0,"external_links":0,"defined_names":10,"comments":0,"pivot_tables":0},"unopened":[],"bounds":{"document_bytes":16777216,"sheet_cells":100000,"rows_first":2000,"rows_last":500,"rows_between":2000,"halvings":0,"cell_chars":16384,"cell_head_chars":4096},"cells_cut":0,"cells_raw":0,"read":"whole","date_system":"1900"}

{"sheet":"nagyker","index":0,"n_rows":3018,"n_cols":9,"rows_kept":3018,"cut":false,"hidden":false,"merged":[[1143,0,1144,3],[2387,0,2388,3],[2362,0,2363,3],[2285,0,2286,3],[2297,0,2298,3],[2982,0,2983,3],[2860,0,2860,2],[2923,0,2924,3],[2950,0,2951,3],[2875,0,2876,3],[11,0,12,3],[96,0,97,3],[992,0,993,3],[2409,0,2410,3],[1238,0,1239,3],[2261,0,2262,3],[2271,0,2272,3],[2306,0,2307,3],[1171,0,1172,3],[1196,0,1197,3],[1216,0,1217,3],[1479,0,1480,3],[1272,0,1273,3],[1424,0,1425,3],[1286,0,1287,3],[2861,6,2862,7],[418,0,419,3],[655,0,656,3],[668,0,669,3],[846,0,847,3],[692,0,693,3],[740,0,741,3],[761,0,762,3],[785,0,786,3],[2430,0,2431,3],[981,0,982,3],[912,0,913,3],[630,0,631,3],[894,0,895,3],[940,0,941,3],[870,0,871,3],[818,0,819,3],[148,0,149,3],[226,0,227,3],[270,0,271,3],[450,0,451,3],[308,0,309,3],[405,0,406,3],[391,0,392,3],[433,0,434,3],[195,0,196,3],[252,0,253,3],[329,0,330,3],[346,0,347,3],[609,0,610,3],[363,0,364,3],[558,0,559,3],[572,0,573,3],[533,0,534,3],[482,0,483,3],[505,0,506,3],[1340,0,1341,3],[1356,0,1357,3],[521,0,522,3],[469,0,470,3],[1033,0,1034,3],[1050,0,1051,3],[926,0,927,3],[719,0,720,3],[586,0,587,3],[959,0,960,3],[1068,0,1069,3],[1093,0,1094,3],[1306,0,1307,3],[1318,0,1319,3],[1470,0,1471,3],[1254,0,1255,3],[1451,0,1452,3],[1265,0,1266,3],[1457,0,1458,3],[1435,0,1436,3],[1586,0,1587,3],[1505,0,1506,3],[1519,0,1520,3],[1530,0,1531,3],[1552,0,1553,3],[1568,0,1569,3],[1538,0,1539,3],[1493,0,1494,3],[1970,0,1971,3],[1787,0,1788,3],[1891,0,1892,3],[1625,0,1626,3],[1802,0,1803,3],[1691,0,1692,3],[1661,0,1662,3],[1826,0,1827,3],[1635,0,1636,3],[1599,0,1600,3],[1932,0,1933,3],[1949,0,1950,3],[1923,0,1924,3],[1879,0,1880,3],[1842,0,1843,3],[1863,0,1864,3],[1817,0,1818,3],[1619,0,1620,3],[2066,0,2067,3],[2082,0,2083,3],[2091,0,2092,3],[1643,0,1644,3],[2025,0,2026,3],[2040,0,2041,3],[1999,0,2000,3],[1982,0,1983,3],[1913,0,1914,3],[2142,0,2143,3],[2118,0,2119,3],[2129,0,2130,3],[2196,0,2197,3],[2167,0,2168,3],[2159,0,2160,3],[2227,0,2228,3],[2178,0,2179,3],[2644,0,2645,3],[2613,0,2614,3],[2625,0,2626,3],[2483,0,2484,3],[2497,0,2498,3],[2596,0,2597,3],[2517,0,2518,3],[2587,0,2588,3],[2545,0,2546,3],[2,0,2,7],[2574,0,2575,3],[2556,0,2557,3],[2527,0,2528,3],[2337,0,2338,3],[2439,0,2440,3],[2446,0,2447,3],[2458,0,2459,3],[2473,0,2474,3],[2104,0,2105,3],[2774,0,2775,3],[2635,0,2636,3],[2251,0,2252,3],[2753,0,2754,3],[2767,0,2768,3],[2720,0,2721,3],[2603,0,2604,3],[2687,0,2688,3],[2654,0,2655,3],[2676,0,2677,3],[2858,0,2859,3],[2863,0,2864,3],[2798,0,2799,3],[2810,0,2811,3],[2819,0,2820,3],[2829,0,2830,3],[2839,0,2840,3]]}
["Cikkszám",null,"                      Megnevezés","Méret","Nettó ár","Csomagolás",null,"Kataló-","Bruttó "]
[null,null,null,null,"K1",null,null,"gus old.","egységár"]
["Kiskereskedelmi árlista"]
["Az árfolyamokra, vámjogszabályokra, egyéb gazdasági körülményekre tekintettel az árváltoztatás jogát fenntartjuk!"]
[]
["A *-gal jelölt termékeket kizárólag egységcsomagban értékesítjük. A csomagolási egységek tájékoztató jellegűek, azokon a gyártók változtathatnak."]
["        Az újként föltüntetett védőeszközök raktárkészletéről, illetve várható rendelési idejéről szóló információkért forduljon személyesen hozzánk!"]
["R-rel jelöltük a kizárólag írásbeli rendelésre forgalmazott termékeket, ezeknél érdeklődjön a rendelesi minimum, aktuális ár és szállítási határidő felől!"]
["Mozgó: változó, mozgó áras cikkek. Kérjük, tájékozódjon az általános, valamint a  szezonális termékeinkre vonatkozó visszavásárlási feltételeinkről! "]
["                   Kísérje figyelemmel hírleveleinket, akcióinkat! Honlapunkon (www.ganteline.hu) további újdonságokat is talál."]
["Adott termék nevét vagy cikkszámát tartalmazó cellára a szerkesztés/keresés menüponttal vagy a ctrl+F billentyűparanccsal kereshet rá."]
["Lux Optical® védőszemüvegek"]
[]
[]
[60200,"Adapter","Grilamid® TR90 könnyű thermoplasztik keret korrekciós lencse számára",null,986,"120/10",3,16,{"$f":"E15*1.651","v":1627.886}]
[60220,"Metalux II","fémkeret, karcmentes lencse, szilikon orrnyereg",null,1555.5,"120/10",3,"web",{"$f":"E16*1.651","v":2568.1305000000002}]
[60230,"Panoralux","műanyag keret, karcmentes lencse, levehető oldalvédő",null,816,"120/10",3,"web",1347.2160000000001]
["60240","Desilux  ","műanyag keret, fémszálas szár, karcmentes lencse",null,187,"120/10",3,"web",308.73700000000002]
[60250,"Polux      ","műanyag keret, karcmentes lencse, rögzített oldalvédő",null,629,"120/10",3,"web",1038.479]
[60310,"Fixlux ","ívelt, karcmentes, polikaronát UV400 lencse, szilikon orrnyereg",null,850,"120/10",3,22,1403.35]
[60320,"Pivolux","piros keret, víztiszta lencse, állítható dőlésszög és szárhosszúság",null,391,"120/10*",2,19,645.54100000000005]
[60321,null,"piros keret, sötétített lencse, állítható",null,340,". . . *",2,19,561.34]
[60325,null,"kék keret, víztiszta látómező, állítható",null,391,". . . *",2,19,645.54100000000005]
[60326,null,"kék keret, sötétített lencse, állítható",null,391,". . . *",2,19,645.54100000000005]
[60330,"Verilux","állítható hosszúságú és dőlésszögű szár, víztiszta lencse",null,654.5,"120/10",3,20,1080.5795000000001]
[60332,null,"víztiszta karc- és páramentes lencse, állítható szár",null,909.5,". . . ",3,20,1501.5844999999999]
[60333,null,"sötétített karcmentes lencse, állítható",null,782,". . . ",3,20,1291.0820000000001]
[60336,null,"sárga lencse éjszakai vezetéshez, állítható",null,782,". . . ",3,20,1291.0820000000001]
[60340,null,"víztiszta, korrekciós szemüveg fölé vehető, állítható",null,1164.5,". . . ",3,20,1922.5895]
[60350,"Sablux","víztiszta, oldalvédős, karcmentes lencse, állítható szárhossz",null,501.5,"120/10*",null,25,827.97649999999999]
[60353,null,"sötétített látómező",null,552.5,". . . ",null,25,912.17750000000001]
[60360,"Ecolux","kék keret, víztiszta látómező, állítható szárhossz",null,263.5,"120/10*",2,24,435.0385]
[60363,null,"kék keret, füstszínű látómező, állítható szárhossz",null,297.5,". . . *",2,24,491.17250000000001]
[60400,"Visilux","víztiszta, karcmentes polikarbonát, oldalvédővel",null,425,"120/10*","2",24,701.67499999999995]
[60401,null,"víztiszta, korrekciós szemüveg fölé is vehető",null,229.5,"120/10*",2,24,378.90449999999998]
[60403,null,"zöld lencse, napon végzett munkákhoz, 3-as fokozat",null,391,"120/10*","2",24,645.54100000000005]
[60404,null,"sötétszürke lencse, erős napsütésben végzett munkákhoz, 4-es fokozat",null,467.5,"120/10*","2",24,771.84249999999997]
[60411,null,"víztiszta lencse, az oldalvédőn szellőzőnyílásokkal",null,187,"120/10*",3,24,308.73700000000002]
[60503,"Speedlux","kék keret, sötét füstszínű karcmentes lencse, sportos forma",null,739.5,". . . ",3,21,1220.9145000000001]
[60507,null,"piros keret, sötétített tükrös lencse",null,1054,". . . ",3,21,1740.154]
[60510,"Stylux","víztiszta lencse, állítható, dönthető szár, szilikon orrnyereg",null,714,"120/10",3,16,1178.8140000000001]
[60513,null,"sötétített lencse, állítható hosszúság és dőlésszög",null,765,". . . ",3,16,1263.0150000000001]
[60516,null,"sárga lencse, állítható hosszúság és dőlésszög",null,765,". . . ",3,16,1263.0150000000001]
[60520,"Astrilux","víztiszta, karc- és páramentes lencse, felfűzhető, állítható kék szár",null,646,"120/10",3,17,1066.546]
[60523,null,"sötét, karc- és páramentes lencse, fekete, állítható szárral",null,654.5,". . . ",3,17,1080.5795000000001]
[60530,"Miralux","szürke/fekete keret, víztiszta karcmentes látómező, állítható, dönthető szár",null,739.5,"120/10",3,26,1220.9145000000001]
[60533,null,"sötét lencse, állítható és dönthető szár, szilikon orrnyereg",null,739.5,". . . ",3,26,1220.9145000000001]
[60538,null,"kisebb, M-es méretű, víztiszta, karcmentes",null,1088,". . . ",3,26,1796.288]
[60539,null,"kisebb, M-es méretű, füstszínű, karcmentes",null,1088,". . . ",3,26,1796.288]
[60540,"Closelux","víztiszta, karc- és páramentes lencse, kék keret oldalablakokkal",null,799,"120/10",3,null,1319.1490000000001]
[60550,"Pokelux","2,4 mm vastag, ívelt polikarbonát, víztiszta, karc- és páramentes",null,442,"120/10*",2,15,729.74199999999996]
[60551,null,"in/out bel- és kültéri világos mézszínű lencse UV400-as védelemmel",null,467.5,". . . ",2,15,771.84249999999997]
[60553,null,"polikarbonát, sötétített, karc- és páramentes",null,442,". . . ",2,15,729.74199999999996]
[60554,null,"sötétszürke polikarbonát lencse erős napsütés ellen",null,442,". . . ",2,15,729.74199999999996]
[60556,null,"polikarbonát, sárga lencse, karc- és páramentes",null,442,". . . ",2,15,729.74199999999996]
["60557",null,"barna, karc- és páramentes, kiváló látásélességű, színészlelésű lencse",null,442,". . . ",2,15,729.74199999999996]
[60558,null,"kisebb, M-es méretű, víztiszta, páramentes",null,671.5,". . . ",2,15,1108.6465000000001]
[60559,null,"kisebb, M-es méretű, sötétített, páramentes",null,671.5,". . . ",2,15,1108.6465000000001]
[60560,"Softilux","víztiszta polikarbonát szár és lencse, karcmentes",null,484.5,"120/10",3,17,799.90949999999998]
[60563,null,"színezett polikarbonát szár és lencse",null,765,". . . ",3,17,1263.0150000000001]
[60565,"Starlux","rugalmas bikolor szárvégek, páramentes, ívelt polikarbonát, víztiszta",null,935,"120/10*",2,9,1543.6849999999999]
[60567,null,"füstszínű keret és páramentes lencse, rugalmas kék szárvég",null,935,". . . ",2,9,1543.6849999999999]
[60568,null,"sárga keret és páramentes lencse, rugalmas szürke szárvég",null,935,". . . ",2,9,1543.6849999999999]
[60570,"Paralux","víztiszta, karc- és páramentes lencse, felfűzhető, állítható szárral",null,782,"120/10",3,25,1291.0820000000001]
[60573,null,"sötét, karc- és páramentes lencse, felfűzhető, állítható szárral",null,782,". . . ",3,25,1291.0820000000001]
[60840,"Luxavis","cserélhető víztiszta lencse, oldalvédős szár",null,892.5,"120/10",3,31,1473.5174999999999]
[60910,"Bilux"," +1 fokozatú, integrált betétes lencse, állítható szár, kényelmes orrnyereg",null,1275,"120/10",2,26,2105.0250000000001]
[60915,null," +1,5 fokozatú, integrált betét, 2,45 mm vastag víztiszta lencse, állítható szár",null,1275,". . . ",2,26,2105.0250000000001]
[60920,null," +2 fokozatú, integrált betét, 2,45 mm vastag víztiszta lencse, állítható szár",null,1275,". . . ",2,26,2105.0250000000001]
[60925,null," +2,5 fokozatú, integrált betét, 2,45 mm vastag víztiszta lencse, állítható szár",null,1275,". . . ",2,26,2105.0250000000001]
[60950,"Flylux  2/1","cserélhető pántos/száras szett, karcmentes in-out lencse, szivacsbetétes keret",null,1717,"120/10",2,23,2834.7669999999998]
[60951,null,"cserélhető pántos/száras szett, páramentes víztiszta lencse, szivacsos keret",null,1717,". . .",2,23,2834.7669999999998]
[60970,"Madlux 2/1","mobil belső szivacsbélés és szárösszekötő gumipántok, karc+páramentes lencse",null,1564,"120/10",2,22,2582.1640000000002]
[60973,null,"fekete mobil keret, színezett füstszürke, páramentes lencse ",null,1564,". . .",2,22,2582.1640000000002]
[60976,null,"fekete/sárga mobil keret, sárga páramentes lencse ",null,1564,". . .",2,22,2582.1640000000002]
[62117,"Freelux","víztiszta, karcmentes lencse, sportos forma, párnázott szárvég, csúszásbiztos orr",null,892.5,". . . ",2,12,1473.5174999999999]
[62127,null,"in/out bel- és kültéri lencse UV400-as védelemmel, könnyű, szürke keret",null,892.5,". . . ",2,12,1473.5174999999999]
[62135,null,"piros tükrös lencse, nagy szilárdságú ezüst keret, piros szárvégekkel",null,1028.5,". . . ",2,12,1698.0535]
[62136,null,"szürke lencse UV400-as védelemmel, antracit keret",null,892.5,". . . ",2,12,1473.5174999999999]
[62139,null,"füstszínű, karcmentes látómezők fekete kerettel",null,892.5,". . . ",2,12,{"$f":"E80*1.651","v":1473.5174999999999}]
[62148,null,"sötétített lencse erős fényre, fekete keret",null,892.5,". . . ",2,13,1473.5174999999999]
[62156,null,"polarizált, sötétített lencse erős fényre, antracit keret",null,6426,". . . ",2,13,10609.326000000001]
[62159,null,"polarizált, sötétített lencse erős fényre, fekete kerettel",null,6426,". . . ",2,13,10609.326000000001]
[62210,"Titalux","titánötvözetű, tartós fém szár, karc- és páramentes színtelen lencse",null,1717,"120/10",2,18,2834.7669999999998]
[62213,null,"füstszínű, karcmentes látómezők, hajlékony, puha szárvégek",null,1717,". . .",2,18,2834.7669999999998]
[62214,null,"polarizált, sötétszürke lencse erős, visszatükröződő fényre",null,1717,". . . ",2,18,2834.7669999999998]
[62317,"Fairlux","masszív kék poliamid keret, erősített, karc- és páramentes színtelen lencse",null,731,"120/10",2,10,1206.8810000000001]
[62417,null,"víztiszta karcmentes lencse, piros keret és oldalvédős szár",null,858.5,"120/10",2,10,1417.3834999999999]
[62327,null,"in/out bel- és kültéri lencse UV400-as védelemmel, szürke keret",null,1054,"120/10",2,10,1740.154]
[62427,null,"in/out bel- és kültéri lencse UV400-as védelemmel, piros keret ",null,1241,"120/10",2,10,2048.8910000000001]
[62336,null,"kék tükrös, páramentes lencse, 28 g súlyú kék keret",null,1300.5,"120/10",2,11,2147.1255000000001]
[62339,null,"színezett füstszürke, páramentes lencse, fekete keret",null,1300.5,"120/10",2,11,2147.1255000000001]
[62358,null,"polarizált, sötétített füstszínű lencse, fekete keret",null,6630,"120/10",2,11,10946.130000000001]
[62510,"Ladylux","karcmentes, víztiszta lencse széles látómezővel",null,663,"120/10",2,14,1094.6130000000001]
[62549,null,"sötétszürke látómező erős fény ellen, 4-es fényszűrő osztály",null,799,". . . ",2,14,1319.1490000000001]
[]
["3M™ és  3M™ Peltor® védőszemüvegek             "]
[]
[]
["3M 1100E","1100E szürke, szellőző keret, mely védi a karc és páramentes, UV-szűrős, széles lencsét",null,null,2992,"20/1","R",35,4939.7920000000004]
[null,". . . víztiszta (3M 1100E0), füstszínű (1100E1)",null,null,null,". . . ","R",35]
["3M 1200E","1200E könnyű félkeret, puha, állítható orrhíd, karc- és páramentes, UV-szűrős lencse",null,null,3519,"20/1","R",35,5809.8689999999997]
[null,". . . víztiszta (3M 1200E0), füstszínű (1200E1)",null,null,null,". . . ","R",35]
["3M 2720","Classic szemüvegcsalád, karc- és páramentes polikarbonát lencse, oldalvédős kék szár",null,null,1224,"20/1",3,36,2020.8240000000001]
[null,". . . víztiszta (3M 2720), füstszínű (3M 2721), sárga (3M 2722) ",null,null,null,". . . ",3,36]
["3M 2740","Konfort szemüvegcsalád, karc- és páramentes polikarbonát, állítható szárhossz és lencseszög",null,null,1904,"20/1",3,37,3143.5039999999999]
[null,". . . víztiszta (3M 2740), füstszínű (3M 2741), sárga (3M 2742)",null,null,null,". . . ",3,"37"]
["3M 2750","Prémium szemüvegcsalád, karc- és páramentes lencse, állítható szárhossz, kényelmes orrhíd",null,null,2099.5,"20/1",3,38,3466.2745]
[null,". . . víztiszta (3M 2750), füstszínű (3M 2751)",null,null,null,". . . ",3,38]
["3M 2800","2800-as szemüvegcsalád, korr. szemüvegre vehető, karcálló, állítható szárhossz és lencseszög",null,null,1530,"20/1",3,"38",2526.0300000000002]
[null,". . . víztiszta (3M 2800), sárga (3M 2802)",null,null,null,". . . ",3,"38"]
["3M 2820","2820-as szemüvegcsalád, karc- és páramentes, állítható lencseszög, rugalmas szár (22g)",null,null,1470.5,"20/1",3,"36",2427.7955000000002]
[null,". . . víztiszta (3M 2820), füstszínű (3M 2821), sárga (3M 2822) ",null,null,null,". . . ",3,"36"]
["3M 2840","2840-es szemüvegcsalád, karc- és páramentes, állítható rugalmas szárhossz  és lencseszög",null,null,1963.5,"20/1",3,"37",3241.7384999999999]
[null,". . . víztiszta (2840), füstszínű (2841), sárga (2842), in-out tükrös (2844)",null,null,null,". . . ",3,"37"]
[60101,"Maxim","torzítás-, pára- és karcmentes, színtelen aszférikus lencse",null,2014.5,"100/10",2,39,3325.9395]
[60103,"                         ezüst/kék szár, ","Max.Sport torzítás-, pára- és karcmentes, színezett aszférikus lencse",null,2201.5,". . . ",2,39,3634.6765]
[60106,null,"szemnyugtató sárga lencse pl. éjszakai vezetéshez vagy monitor elé",null,2201.5,". . . ","R",39,3634.6765]
[60115,"Maxim Ballistic szett cserélhető szár/fejpánt és 3 lencse: sárga, bronz, színtelen",null,null,9443.5,"10/1",2,39,15591.218500000001]
[60130,"Force-3 szett Torsion Lock szár, 3 db cserélhető lencse: in/out, tükrös ezüst és narancs",null,null,6987,"100/10",2,39,11535.537]
[60120,"Tora","víztiszta lencse, karc- és páramentes, zsinóros füldugóval kombinálható",null,1241,"100/10","R",40,2048.8910000000001]
[60123,null,"sötétített lencse, karc- és páramentes, rugalmas szár",null,1241,". . . ","R",40,2048.8910000000001]
[60126,null,"sárga lencse gyenge látási viszonyok, hozkarc- és páramentes",null,1241,". . . ","R",40,2048.8910000000001]
[60131,"Fuel        ","in/out bel- és kültéri lencse, nagy szilárdságú, ezüst szár, szellőző keret",null,3332,"100/10",2,41,5501.1320000000005]
[60132,"                ","tükrös kék lencse, platinum szár, extra UV védelem",null,3332,". . . ",2,41,5501.1320000000005]
[60133,"              ","tükrös narancs lencse, rugalmas titanium szár",null,3332,". . . ",2,41,5501.1320000000005]
[60134,"                ","bronz lencse, karc- és páramentes, barna keret",null,3332,". . . ",2,41,5501.1320000000005]
[60135,"                ","polarizált, karc- és páramentes szürke lencse, ezüst szár",null,8321.5,". . . ",2,41,13738.7965]
[60136,"Fuel X2      ","sportos félkeret, gumiborítású állítható szár és orrhíd, karc- és páramentes lencse",null,3298,"100/10","2R",40,5444.9980000000005]
[60137,"                ","rézszínű keret, karc- és páramentes, UV-szűrős bronz lencse",null,3298,". . . ","2R",40,5444.9980000000005]
[60138,"                ","rézszínű keret, karc- és páramentes, UV-szűrős piros tükrös lencse",null,3298,". . . ","2R",40,5444.9980000000005]
[60140,"Metaliks Sport hipoallergén fém keret, ívelt, színtelen, karc- és páramentes védőlencse ",null,null,2150.5,"100/10",2,42,3550.4755]
[60142,"                          ","tükrös kék lencse, szilikon orrnyereg, gumis szárvég",null,2278,". . . ",2,42,3760.9780000000001]
[60143,null,"szürke lencse, szilikon orrnyereg, gumis szárvég",null,2150.5,". . . ",2,42,3550.4755]
[60146,"                           ","sárga lencse, szilikon orrnyereg, gumis szárvég",null,2150.5,". . . ",2,42,3550.4755]
[60150,"Solus","karc- és páramentes víztiszta lencse, fekete/narancs rugalmas keret",null,1598,"100/10",2,43,2638.2980000000002]
[60152,null,"kék tükrös lencse, szilikon orrnyereg, szürke/kék szár",null,2099.5,". . . ",2,43,3466.2745]
[60153,null,"füstszínű lencse, nagyon könnyű (23 g) fekete/narancs keret",null,1836,". . . ",2,43,3031.2359999999999]
[60154,null,"piros tükrös lencse, sisakkal, fültokkal viselhető fekete/narancs szár",null,1963.5,". . . ",2,43,3241.7384999999999]
[60156,null,"sárga lencse, nagyon könnyű (23 g) fekete/narancs keret",null,1836,". . . ",2,43,3031.2359999999999]
[60159,null,"bel- és kültéren egyaránt használható in/out lencse, fekete/narancs keret",null,1963.5,". . . ",2,43,3241.7384999999999]
[60170,"Virtua","nagyon könnyű (24 g), színtelen, karc- és páramentes polikarbonát, hallásvédőkhöz is, új AP forma",null,595,"100/10",3,44,982.34500000000003]
[60172,null,"tükrös kék, ívelt polikarbonát, hallásvédőkhöz is",null,1096.5,". . . ",3,44,1810.3215]
[60173,null,"sötét lencsés, ívelt polikarbonát, hallásvédőkhöz is, új, szemöldökvédős AP forma",null,595,". . . ",3,44,{"$f":"E144*1.651","v":982.34500000000003}]
[60176,null,"sárga lencséjű, ívelt polikarbonát, hallásvédőkhöz is",null,739.5,". . . ",3,44,1220.9145000000001]
[60195,"Refine 300","kisebb, női arcra tervezett kék keret, állítható puha orrhíd, karc- és páramentes lencse",null,2261,"100/10","R",45,3732.9110000000001]
[60196,null,"barna női keret, karc- és páramentes bronz lencse, oldalvédővel",null,2261,". . . ","R",45,3732.9110000000001]
[]
["Uvex® védőszemüvegek             "]
[]
[]
["U9192225","Pheos","fémmentes bikolor keret, szellőzőrések, karc- és páramentes víztiszta lencse (HC-AF)",null,1334.5,"5",null,46,2203.2595000000001]
["U9192245",null,"narancs/fekete, kemény/puha technológiájú szár, karc-/páramentes szürke lencse (HC-AF)",null,1334.5,". . . ",null,46,2203.2595000000001]
["U9192385",null,"sárga/fekete szár, körkörösen védő, karc- és páramentes sárga lencse (HC-AF)",null,1334.5,". . . ",null,46,2203.2595000000001]
["U9190275","I3","szürke/kék keret, állítható oldal és szárszög, karc-, pára-, vegyszerálló, víztiszta lencse (SV-NC)",null,1819,null,"R",46,3003.1689999999999]
["U9190286",null,"szürke/piros keret, állítható szár, karc-, pára-, vegyszerálló, szennytaszító füstszínű lencse (SV-NC)",null,1819,null,"R",46,3003.1689999999999]
["U9190220",null,"szürke/sárga keret, állítható szár, karc-, pára-, vegyszerálló, szennytaszító sárga lencse (SV-NC)",null,1819,null,"R",46,3003.1689999999999]
["U9172265","Super G ","csúszásbiztos, könnyű (18g) kék Grilamid keret, karc- és páramentes víztiszta lencse (HC-AF)",null,1700,"5",null,47,2806.7]
["U9172281",null,"szürke-neo zöld szár, antisztatizált, karc- és páraálló, szennytaszító sötét lencse (SV-NC)",null,1878.5,". . . ",null,47,3101.4034999999999]
["U9169260","Super OTG ","rugalmas kék Grilamid keret, karc-, pára-, vegyszerálló, szennytaszító lencse (SV-NC)",null,2193,"5",null,48,3620.643]
["U9169081",null,"korrekciós szemüveg fölé is vehető, fekete szár, karcmentes, szürke lencse (NC) ",null,2108,". . . ","R",48,3480.308]
["U9178850","Super fit","variomatic világoszöld, fényre sötétedő lencse, könnyű (20g) Grilamid keret, XST szár",null,6477,"5","R",47,10693.527]
["U9178851",null,"variomatic szürke, fényre sötétedő lencse, könnyű (20g) Grilamid keret, XST szár",null,6477,". . . ","R",47,10693.527]
["U9178315",null,"könnyű fehér keret, sv performance, karc-, és tartósan páramentes víztiszta lencse",null,1878.5,". . . ","R",47,3101.4034999999999]
["U9169585","F OTG ","csuklós szárú fekete Grilamid keret, karcmentes, víztiszta lencse (NC) ",null,2006,null,"R",48,3311.9059999999999]
["U9169586",null,"korrekciós szemüveg fölé is vehető, fekete szár, karcmentes, szürke lencse (NC) ",null,2006,null,"R",48,3311.9059999999999]
["U9169850",null,"variomatic világoszöld, fényre sötétedő lencse, könnyű (20g) Grilamid keret, csuklós XST szár",null,7072,null,"R",48,11675.871999999999]
["U9160265","I-VO","kék/narancs keret, párnázott orr, homlok és fül, karc- és páramentes víztiszta lencse (HC-AF)",null,1530,"5",null,49,2526.0300000000002]
["U9160268",null,"állítható dőlésszög és szárhosszúság, karc és páramentes barna lencse (HC-AF)",null,1598,". . . ",null,49,2638.2980000000002]
["U9160520",null,"állítható dőlésszög és szárhosszúság, könnyen tisztítható, karcálló sárga lencse (NC)",null,1530,". . . ",null,49,2526.0300000000002]
["U9160064",null,"állítható szárú, karcmentes, szembarát, nyugtató, világoskék lencse (NC)",null,1598,". . . ",null,49,2638.2980000000002]
["U9188881","Cybric","sportszemüveg állítható szögű, -hosszúságú, párnázott végű szárral, tükrös kék lencsével (NC)",null,2244,"5",null,49,3704.8440000000001]
["U9188076",null,"sportszemüveg állítható szárral, karcmentes, könnyen tisztítható sötét lencsével (NC)",null,1929.5,". . . ",null,49,3185.6044999999999]
["U9188020",null,"sportszemüveg állítható szárral, széles látóterű, karcmentes, sárga lencsével (NC)",null,1929.5,". . . ",null,49,3185.6044999999999]
["U9185075","Athletic","könnyű csúszásmentes szürke szár, cserélhető, karcmentes , víztiszta polikarbonát lencse (NC)",null,2099.5,"5",null,50,3466.2745]
["U9185021",null,"könnyű csúszásmentes szürke szár, cserélhető, karcmentes , sárga polikarbonát lencse (NC)",null,2218.5,"5","R",50,3662.7435]
["U9185076",null,"sötétített, füstszínű, karc- és vegyszerálló, könnyen tisztítható lencse (NC)",null,2099.5,". . . ",null,50,3466.2745]
["U9185885",null,"barna alapon kiváló UV-, és napfényszűrő narancs tükrös lencse (SCT)",null,2414,". . . ",null,50,3985.5140000000001]
["U9191265","Gravity Zero kék Grilamid keret energiaelnyelő, szellőző távtartók, karc- és páramentes lencse (HC-AF)",null,null,1725.5,"5",null,50,2848.8004999999998]
["U9191883",null,"kék tükrös lecsével, dönthető és felfűzhető kék szárral (SCT)",null,2635,". . . ","R",50,4350.3850000000002]
["U9191086",null,"szürke karcmentes, szennytaszító lecsével, dönthető és felfűzhető szürke szárral (NC)",null,1717,". . . ","R",50,2834.7669999999998]
["U9197265","Skyper sx2 ütésálló, kék műanyag szár, állítható szárhossz és -szög, karc- és páramentes lencse (HC-AF)",null,null,1759.5,"5",null,51,2904.9344999999998]
["U9197266",null,"sötétített, füstszínű, karc- és páramentes, oldalvédős lencse (HC-AF)",null,1759.5,". . . ","R",51,2904.9344999999998]
["U9197020",null,"állítható kék szár, karcmentes, oldalvédős sárga lencse (NC)",null,1759.5,". . . ","R",51,2904.9344999999998]
["U9168165","Astrospec","állítható hosszúságú kék szár, antisztatizált, UV védős, karc- és páraálló, színtelen lencse (4C)",null,1759.5,"5",null,51,2904.9344999999998]
["U9168016",null,"végén párnázott, állítható, szürke szár, karc- és vegyszerálló, zöld lencsével (NC)",null,1759.5,". . . ",null,51,2904.9344999999998]
["U9168017",null,"végén párnázott, állítható, sárga szár, karc- és vegyszerálló, szürke lencsével (NC)",null,1759.5,". . . ",null,51,2904.9344999999998]
["U9210515","Racer SP","nagy szilárdságú, sportos ezüst keret, kívül-belül karcálló víztiszta ultradura lencse",null,1436.5,"5","R",52,2371.6615000000002]
["U9210586",null,"nagy szilárdságú, sportos szürke keret, kívül-belül karcálló szürke ultradura lencse",null,1436.5,". . . ","R",52,2371.6615000000002]
["U9179275","I-fit","állítható dőlésszögű szürke szár, karc és páramentes víztiszta lencse (HC-AF)",null,1759.5,"5","R",52,2904.9344999999998]
["U9179048",null,"állítható dőlésszögű barna szár, könnyen tisztítható, karcálló barna lencse (NC)",null,1759.5,". . . ","R",52,2904.9344999999998]
["U9179076",null,"állítható dőlésszögű szürke szár, könnyen tisztítható, karcálló szürke lencse (NC)",null,1759.5,". . . ","R",52,2904.9344999999998]
["U9175260","Skyguard","levehető belső keret, por és folyadékok ellen is, karc- és páramentes víztiszta lencse (HC-AF)",null,2159,"5","R",53,3564.509]
["U9175261",null,"állítható szár, por és folyadékok ellen is, karc- és páramentes szürke lencse (HC-AF)",null,2159,". . . ","R",53,3564.509]
[]
["Gumipántos szemüvegek"]
[]
[]
[60580,"Monolux","gumipántos, víztiszta polikarbonát, szellőzőlyukakkal",null,204,"100/10*",3,28,336.80400000000003]
[60590,"Monolux","gumipántos, víztiszta acetát, szellőzőlyukakkal",null,246.5,"100/10*",2,28,406.97149999999999]
[60599,"Chimilux","gumipántos, vegyszerálló polikarbonát, oldalszellőző gombokkal",null,297.5,"200/20*",2,28,491.17250000000001]
[60600,"Chimilux","páramentes, vegyszerálló polikarbonát, oldalszellőző gombokkal",null,544,"200/20",2,28,898.14400000000001]
[60601,"Kemilux","páramentes lencse három indirekt ventillációs szellőzővel",null,1020,"120/12",2,28,1684.02]
[60610,"Labolux","páramentes, vegyszerálló polikarbonát, szellőző nyílásokkal",null,408,"100/10",3,28,673.60800000000006]
[60620,"Shellux","gumipántos, páramentes, oldalszellőző gombok",null,1020,"100/10",3,28,1684.02]
[60660,"Hublux","gumipántos, páramentes, indirekt ventillációs",null,1870,"50/10",2,29,3087.37]
[60661," ","gumipántos, kényelmes, szivacsbetétes felfekvés",null,2040,". . . ",2,29,3368.04]
[60663,null,"gumipántos, szivacsos, sötét lencsével",null,2040,". . . ",2,29,{"$f":"E208*1.651","v":3368.04}]
[60680,"Biolux","színtelen páramentes pc. lencse, formatervezett flexibilis PVC keret",null,2473.5,"50/10",2,27,4083.7485000000001]
[60683,null,"széles látóterű, füstszínű páramentes lencse, világos/sötét szürke keret ",null,2473.5,". . . ",2,27,4083.7485000000001]
["60690","I-lux","erős TPU keret, pc. lencse speciális acetát réteggel, páramentes, vegyszerálló",null,2870,"50/10",2,27,4738.37]
["60693",null,"piros tükrös lencse, indirekt szellőzés, extrém hőmérsékleti viszonyokhoz is",null,2870,". . . ",2,27,4738.37]
["U9301714","Uvex Ultravision gumipántos szemüveg, páramentes, vegyszerálló acetát lencsével",null,null,1870,"80/10",2,54,3087.37]
["U9301317",null,"arcvédő Ultravision szemüvegre szerelhető, polikarbonát",null,1827.5,". . . ",2,54,3017.2024999999999]
["U9301544",null,"uvex sisakra adapterrel vagy fültokkal szerelhető Ultravision szemüveg",null,6230,"40","2R",54,10285.73]
["U9302245","Uvex Ultrasonic gumipántos, karc- és páramentes, vegyszerálló polikarbonát lencsével",null,null,2601,"80/4",2,54,4294.2510000000002]
["U9302247",null,"barna karc- és páramentes (HC-AF) Ultrasonic szemüveg",null,2550,". . . ",2,54,4210.05]
["U9302510",null,"uvex sisakra adapterrel vagy fültokkal szerelhető Ultrasonic szemüveg",null,7522.5,". . . ","2R",54,12419.647500000001]
["U9307375","Uvex Carbonvision könnyű (46 g), erős karbonszálas keret, extrém karc+páramentesség",null,null,2635,"50/5","2R",53,4350.3850000000002]
["U9307276",null,"sötétszürke, kívül karcmentes, belül állandó páramentes supravision extreme lencse",null,2635,". . . ","2R",53,4350.3850000000002]
["3M 2890S","2890S zárt, víztiszta polikarbonát, karcálló, páramentes felület, állítható forgócsapos pánt",null,null,2312,"100/10",2,34,3817.1120000000001]
["3M 2890A","2890A zárt, víztiszta acetát, karcálló, páramentes lencse, állítható pánt, indirekt szellőzőrések",null,null,2677.5,"100/10",2,34,4420.5524999999998]
[60160,"Peltor Fahrenheit gumipántos, széles látóterű, indirekt ventillációs polikarbonát, légzésvédőkhöz is",null,null,1657.5,"100/10",2,34,2736.5325000000003]
[60162,null,"torzításmentes, vegyszerálló, páramentes acetát, neoprén pánttal",null,2040,". . . ",2,34,3368.04]
[60164,null,"Peltor sisakra szerelhető, polikarbonát Fahrenheit szemüveg",null,2210,"10/1","R","34",3648.71]
[]
["Hegesztőszemüvegek"]
[]
[]
[60329,"Pivolux 5","5-ös lánghegesztő lencse, állítható szárhossz, -dőlésszög, oldalvédő",null,1360,"120/10",2,31,2245.36]
[60280,"Soudlux  ","5-ös fokozatú polikarbonát lencse, szellőző oldalvédő",null,1785,"120/10",2,31,2947.0349999999999]
[60405,"Visilux 5","5-ös lánghegesztő lencse, korrekciós szemüveg fölé is",null,1402.5,"120/10",2,31,2315.5275000000001]
[60800,"Duolux ","műanyag keret, gumipánt, cserélhető, kerek lencse","Ø 50",1232.5,"100/10",2,30,2034.8575000000001]
[60801,"Spartalux ","gumipántos ABS, szellőző lyukakkal, 5-ös üveggel","Ø 50",935,"120/10",2,30,1543.6849999999999]
[60808,"Eurolux ","száras szemüveg felhajtható sötét üveggel, oldalvédővel","Ø 50",1997.5,"100/10",2,31,3297.8724999999999]
[60810,"Revalux  ","alumínium keret védett szellőzőlyukakkal, felhajtható, sötét kerek üveggel","Ø 50",3697.5,"120/10",2,30,6104.5725000000002]
[60811,"Alulux ","alumínium keret, cserélhető üveg, gumipánt, oldalszellőzés","Ø 50",1530,"120/10",2,30,2526.0300000000002]
[60818,"Ferlux  ","felhajtható 50x105 lencse, hőálló műanyag keret, pormentes szellőzőgombok","50x105",1445,"100/10",2,"30",2385.6950000000002]
[60820,"Revlux  ","felhajtható kerek lencse, hőálló műanyag keret, pormentes szellőzőgombok","Ø 50",1742.5,"100/10",2,30,2876.8674999999998]
[60821,"Revlux Eco  ","felhajtható kerek lencse, hőálló műanyag keret, pormentes szellőzőgombok","Ø 50",892.5,"100/10",2,30,1473.5174999999999]
[60845,"Luxavis 5 ","száras szemüveg, 5-ös fokozatú, cserélhető  polikarbonát lencsével",null,1530,"120/10",2,31,2526.0300000000002]
[60953,"Flylux 3","cserélhető gumipántos és száras szett, páramentes 3-as kísérőlencse",null,2125,"120/10",2,23,3508.375]
[60955,"Flylux 5","cserélhető gumipántos és száras szett, karcmentes 5-ös hegesztőlencse",null,2252.5,"120/10",2,23,3718.8775000000001]
["3M 2805","3M 2805 ","korrekciós szemüvegre vehető, karcálló, állítható szárhossz és lencseszög",null,2635,"20/1","2R",38,4350.3850000000002]
["3M 2845","3M 2845 ","ívelt, karc- és páramentes, állítható szárhossz és lencseszög, rugalmas szárvég",null,2932.5,"20/1","2R","37",4841.5574999999999]
["3M 2895","3M 2895 ","gumipántos hegesztőszemüveg, karc- és páramentes lencse",null,3553,"20/1","2R","34",5866.0029999999997]
["U9103125","Uvex 9103","állítható szárhossz és dőlésszög,  felhajtható, karcálló 5-ös hegesztőüveg (NC)",null,2847.5,"5","R","web",4701.2224999999999]
["U9301245","Uvex 9301","Ultravision gumipántos hegesztőszemüveg, karc- és páramentes lencse (HC-AF)",null,2592.5,"10","R",54,4280.2174999999997]
["U9302045","Uvex 9302","Ultrasonic gumipántos HC-AF szemüveg, felhatható infradur plus hegesztőlencsével",null,4420,"10","R",54,7297.42]
["U9185045","Uvex 9185","Athletic tartós, sportos keret, könnyen cserélhető 5-ös hegesztőlencsékkel ",null,2762.5,"5","R",50,4560.8874999999998]
["U9207045","Clip On 5","szemüvegre csíptethető 5-ös uvex hegesztő védőlencse",null,2507.5,"100/10*","R",55,4139.8824999999997]
[]
["PLUM szemöblítők"]
[]
[]
["PL4701","PLUM steril szemöblítő folyadék, 200 ml (0,9% nátriumklorid oldat)",null,null,2176,10,null,33,3592.576]
["PL4702","PLUM steril szemöblítő folyadék, 500 ml",null,null,2754,12,null,33,4546.8540000000003]
["PL4824","PLUM steril szemöblítő folyadék, Duo 1000 ml, egyszerre 2 szem öblítésére ",null,null,5950,"6","R","új",9823.4500000000007]
["PL4753","PLUM 200 ml pH Neutral szemkimosó folyadék, steril (4,9% foszfátoldat)",null,null,3315,20,null,33,5473.0650000000005]
["PL4821","PLUM Duo 500 ml pH Neutral szemkimosó, egyszerre 2 szem öblítésére ",null,null,6256,"6","R","új",10328.656000000001]
["PL4746","PLUM 1liter pH Neutral elsősegély zuhany, steril (PL4735)",null,null,4658,6,null,33,7690.3580000000002]
["PL4703","PLUM nyitható fali doboz 2db 0,5 l-es palackkal, tükörrel",null,null,11594,1,null,33,19141.694]
["PL4704","PLUM fali elsősegély 1-es szerelvény:  0,5l normál palack, fali tartó, használati tábla",null,null,6902,1,null,33,11395.201999999999]
["PL4770","PLUM fali elsősegély 2-es szerelvény: 0,2l pH neutral + 0,5l normál palack, fali tartó, tükör",null,null,12427,1,null,33,20516.976999999999]
["PL4787","PLUM fali elsősegély 2-es szerelvény: 0,2l pH neutral + 0,5l normál palack, doboz, tükör (PL4784)",null,null,11900,1,null,33,19646.900000000001]
["PL4825","PLUM Duo Combibox: 0,5l pH neutral Duo + 1l normál Duo, falra szerelhető ",null,null,17510,"1","R","új",28909.010000000002]
["PL4692","PLUM övtáska 200ml-es szemöblítőkhöz",null,null,1649,10,null,33,2722.4990000000003]
["PL9564","PLUM fali rögzítő egység szemöblítő palackhoz",null,null,935,10,null,33,1543.6849999999999]
["PL5104","Elsősegély állomás (PL5107): szemkimosó (0,5l), ragtapasz (90db), sebtisztító kendő (45db)",null,null,18122,"1",null,"web",29919.421999999999]
[]
["Kiegészítők szemvédőkhöz"]
[]
[]
[60000,"Lux Optical bemutatótáska 16 db szemüveggel",null,null,9477.5,1,null,32,{"$f":"E274*1.651","v":15647.352500000001}]
[60010,"Lux Optical fém bemutatóállvány 6 db szemüveghez",null,null,5950,1,null,32,9823.4500000000007]
[60030,"Lux Optical bemutató manöken fej, 32 cm magas, könnyű polisztirol",null,null,3017.5,1,null,32,4981.8924999999999]
[60080,"Peltor V6 sisakszemüveg, állítható szárú, víztiszta lencsével",null,null,2210,"20","R","70",3648.71]
[60083,"Peltor V6 sisakszemüveg, állítható szárú, sötét lencsével",null,null,2210,"20","R","70",3648.71]
[60086,"Peltor V6 sisakszemüveg, állítható szárú, sárga lencsével",null,null,2210,"20","R","70",3648.71]
["U9207005","Uvex Clip On szemüvegre csíptethető, karc- és vegyszerálló, víztiszta védőlencse",null,null,2677.5,"25","R",55,4420.5524999999998]
["U9207116","Uvex Clip On szemüvegre csíptethető, karc- és vegyszerálló, füstszínű védőlencse",null,null,2677.5,"25","R",55,4420.5524999999998]
[60060,"Peltor/AOSafety nedves törlőkendő, adagolóval, 500 db",null,null,14067.5,1,null,45,23225.442500000001]
[60062,"Peltor/AOSafety szemüvegtisztító spray, páramentes antisztatikus bevonat, 150 ml",null,null,807.5,"12/1",null,45,1333.1825000000001]
[60064,"Peltor szemüvegtartó tok",null,null,1190,1,null,45,1964.69]
[60066,"Peltor szemüvegtartó táska, övre tehető",null,null,1657.5,1,null,45,2736.5325000000003]
[60068,"Peltor szemüvegtartó zsák, mikroszálas, szemüvegtisztításra is használható",null,null,552.5,1,null,45,912.17750000000001]
[60198,"Peltor Headlights száras szemüvegre tehető, forgatható, elemes LED lámpa",null,null,2720,"60/6","R",45,4490.72]
[60199,"Peltor Led Light Vision  két oldalra beépített, forgatható, elemes LED lámpa, szemüveggel",null,null,3400,"100/20","R",45,5613.4]
[60100,"Lux Optical szemzuhany, csapra szerelhető, többfunkciós",null,null,45560,1,null,32,75219.56]
[61003,"Lux Opticalszemüvegtartó zsinór, hagyományos, 60 cm",null,null,127.5,"120/12*",null,32,210.5025]
[61010,"Lux Optical rugalmas szemüvegtartó zsinór, sportos, 60 cm",null,null,170,"100/10*",null,32,280.67]
[61020,"Lux Optical szemüvegtartó zsinór, műanyag adapterrel, 60 cm",null,null,127.5,"100/10*",null,32,210.5025]
[61200,"Ledlux száras szemüvegre tehető, forgatható, elemes LED lámpa, 20 x 10 mm",null,null,2677.5,"10",null,18,4420.5524999999998]
[61400,"Lux Optical szemüvegtörlő kendő, antisztatikus, 30 x 16 cm",null,null,170,"100*",null,32,280.67]
[61421,"Lux Optical mikroszálas szemüvegtörlő kendő, 15 x 15 cm",null,null,212.5,"24*",null,32,350.83749999999998]
[61401,"Lux Optical szemüvegtartó zsák, 20 x 10 cm",null,null,297.5,"100/10*",null,32,491.17250000000001]
[61402,"Lux Optical szemüvegtartó övtáska dupla fakkal",null,null,722.5,"10/1",null,32,1192.8475000000001]
["61410","Lux Optical szemüvegtok normál szemüvegekhez",null,null,977.5,"10/1",null,32,1613.8525]
["61411","Lux Optical szemüvegtok ívelt szemüvegekhez",null,null,1275,"10/1",null,32,2105.0250000000001]
["U9970002","Uvex szemüvegtisztító állomás: tisztító folyadék, szilikonmentes törlőpapír, adagolófej",null,null,13005,"1",null,55,21471.255000000001]
["U9972100","Uvex szemüvegtisztító folyadék, 0,5l",null,null,1130.5,"1",null,55,1866.4555]
["U9971000","Uvex szilikonmentes törlőpapír, 700 db",null,null,1258,"1",null,55,2076.9580000000001]
["U9963000","Uvex előnedvesített tisztító kendő minden lencséhez, 100 db",null,null,3357.5,"1",null,55,5543.2325000000001]
["U9954500","Uvex szemüvegtartó tok száras szemüvegek részére, zipzáras, övtartós",null,null,1232.5,"5","R",55,2034.8575000000001]
["U9954501","Uvex szemüvegtartó tok gumipántos szemüvegek részére, zipzáras, övtartós",null,null,1997.5,"5","R",55,3297.8724999999999]
["U9954355","Uvex szemüvegtartó nylontasak zsák, száras szemüvegek részére",null,null,408,"5","R",55,673.60800000000006]
["U9954360","Uvex szemüvegtartó nylontasak zsák, gumipántos szemüvegek részére",null,null,535.5,"5","R",55,884.1105]
[]
["Védősisakok"]
[]
[]
["65100-05","Opus védősisak, 5 éves, hatpontos állítható kosár, oldalszellőzés, MM fémolvadék ellen",null,null,1122,24,2,59,1852.422]
[" ",". . . fehér(65100),  kék(65101),  zöld(65102),  sárga(65103),  narancs(65104),  piros(65105)",null,null,null,". . . ",". .",59]
["65106-09","Opus védősisak, gyorsbeállítós fejkosárral, állítható szellőzőnyílásokkal, MM ",null,null,2295,"24*","R",59,3789.0450000000001]
[null,". . . fehér(65106),  kék(65107),  sárga(65108),  piros(65109)",null,null,null,". . . ","R","web"]
["65120-25","Oceanic 1000V-ig szigetelő védősisak, -20ºCés +50ºC közötti használat",null,null,1402.5,12,2,59,2315.5275000000001]
[" ",". . . fehér(65120),  kék(65121),  zöld(65122),  sárga(65123),  narancs(65124),  piros(65125)",null,null,null,". . . ",". .",59]
["65200-05","GP3000 védősisak, 440V-ig szigetel, hatpontos sisakkosár, szivacsos izzadságpánt",null,null,552.5,20,2,58,912.17750000000001]
[null,". . . fehér(65200), kék(65201), zöld(65202), sárga(65203), narancs(65204), piros(65205)",null,null,null,". . . ",". .",58]
["65210-15","GP3000 védősisak, 440V-ig szigetel, nem összeszerelt hatpontos sisakkosárral",null,null,425,"45*",null,58,701.67499999999995]
["U9762-x30","Uvex Airwing BWR védősisak, gyorsbeállítós fejkosárral, szellőzőnyílásokkal",null,null,2932.5,"25",null,61,4841.5574999999999]
[null,". . fehér(U9762.030), kék(..530), zöld(..430), sárga(..130), narancs(..230), piros(..330), lime(..630)",null,null,null,". . . ",null,61]
["U9772-x20","Uvex Pheos B védősisak, hagyományos fejkosár, állítható szellőzőnyílások, szerelvényezhető (hallás-, arcvédő, lámpa) ",null,null,2210,"25","R",61,3648.71]
[null,". . fehér(U9772.020), kék(..520), sárga(..120), narancs(..220), piros(..320), fekete(..920)",null,null,null,". . . ",". .",61]
["65220-25","Peltor G2000 Solaris, oldal- (LD), fémcseppek elleni- (MM) védelem, -30°C,  jó szellőzés, textil belső",null,null,2932.5,20,2,60,4841.5574999999999]
[" ",". . . fehér(65220), kék(65221), zöld(65222), sárga(65223), narancs(65224), piros(65225)",null,null,null,". . . ",". .",60]
["65240-47","Peltor G3000 Solaris gyorsállítós sisak, MM védelem, -30°C,  jó szellőzés, textil belső, 310g",null,null,3867.5,"20*","R","60",6385.2425000000003]
[" ",". . . fehér(65240), kék(.41), zöld(.42), sárga(.43), narancs(.44), piros(.45), szürke(.46), fluo(.47)",null,null,null,". . . ",". .",60]
[null,null,null,null,null,null,null,60]
["Speciális védősisakok"]
[]
[]
["65120-25","Oceanic 1000V-ig szigetelő védősisak, -20ºCés +50ºC közötti használat",null,null,1402.5,12,2,59,2315.5275000000001]
[" ",". . . fehér(65120),  kék(65121),  zöld(65122),  sárga(65123),  narancs(65124),  piros(65125)",null,null,null,". . . ",". .",59]
["U9770-x20","Uvex Pheos E védősisak, 1000V-ig szigetel, hagyományos fejkosárral",null,null,2507.5,"25*","R",61,4139.8824999999997]
[null,". . fehér(U9770.020), sárga(U9770.120)",null,null,null,". . . ",". .",61]
["65260-63","Peltor G2001D, 1000V-ig, oldal- (LD), fémcseppek elleni- (MM) védelem, -30°C, textil belső",null,null,5015,"20*","R",60,{"$f":"E337*1.651","v":8279.7649999999994}]
[" ",". . . fehér(65260), kék(65261), sárga(65263)",null,null,null,". . . ",". .",60]
[59800,"Tűzoltó védősisak lehajtható sötét látómezővel és levehető bőr tarkóvédővel (EN443)",null,null,44582.5,5,"R",62,73605.707500000004]
["U9773.050","Uvex Pheos Alpine gyorsállítós sisak magasban végzett munkákhoz, Yszíjjal",null,null,9052.5,"25*","R",62,14945.6775]
[71510,"Camp hegymászósisak, 440V-ig szigetel, négy ponton rögzített, fekete színű",null,null,14705,10,"R",62,24277.955000000002]
[71520,"Camp hegymászósisak, négy ponton rögzített, fehér színű",null,null,9605,". . . ",null,62,15857.855]
[71530,"Camp hegymászósisak fémhálós szellőzőnyílásokkal, négy ponton rögzített, piros színű",null,null,16660,". . . ","R",62,27505.66]
["65130-35","Visioceanic sisak, homlokrészbe feltolható szemüveggel egybeépítve",null,null,4377.5,12,"R",63,7227.2525000000005]
["65765","GP szemvédő GP3000 sisakhoz adapterrel (65755) csatlakoztatható",null,null,467.5,"10","R",63,771.84249999999997]
[]
["Kiegészítők sisakokhoz"]
[]
[]
[65150,"Bőr sisakszíj, állítható hosszúságú, Opus, Oceanic és GP3000 sisakokhoz",null,null,136,"100/10*",2,63,224.536]
[65151,"GP3000 Y sisakszíj, 4 pontos állítható hevederszalag",null,null,705.5,"100/20","R",65,1164.7805000000001]
["65155","Reflex kit fényvisszaverő, öntapadó, 6 db-os matrica szett sisakokhoz",null,null,297.5,null,null,63,491.17250000000001]
["65226.2","Peltor GH2 sisakszíj,  rugalmas, állítható hosszúságú, Peltor sisakokhoz",null,null,544,"100/10*",3,"web",898.14400000000001]
["65226.3","Peltor GH4 sisakszíj,  3 pontos, állítható hosszúságú, Peltor sisakokhoz",null,null,1241,"100/10*","R","web",2048.8910000000001]
["U9790007","Uvex Y sisakszíj, 4 pontos állítható hevederszalag",null,null,2473.5,"100/10*","R","web",4083.7485000000001]
[65160,"Téli sisakbélés Opus, Oceanic sisakokhoz, meleg műszőrme/filc",null,null,1147.5,"100/10",3,63,1894.5225]
[65170,"Sisakra szerelhető nyak- és tarkóvédő bőrből",null,null,1377,5,null,63,2273.4270000000001]
[65180,"Csere sisakkosár izzadságszíjjal, Opus vagy Oceanic sisakhoz",null,null,527,5,null,63,870.077]
[65190,"Csere izzadságszalag a sisak homlokrészébe 20 vagy 40 cm-es Opus, Oceanic sisakhoz ",null,null,187,"100/10*",null,"web",308.73700000000002]
["65187","Csere izzadságszalag a sisak homlokrészébe GP 3000 sisakhoz ",null,null,76.5,"100/10*",null,"web",126.3015]
["65227.2","Csere izzadságszalag HYG3 műanyagból, Peltor sisakhoz ",null,null,561,"50","R","web",926.21100000000001]
["65227.3","Csere izzadságszalag HYG4 bőrből, Peltor sisakhoz ",null,null,909.5,"50","R","web",1501.5844999999999]
[]
["Arcvédők"]
[]
[]
[60700,"Homlokpánt arcvédőkhöz, széles fazonú, felhajtható kivitel",null,null,909.5,"40/10",3,64,1501.5844999999999]
[60705,"Sisakpánt arcvédőkhöz, felhajtható",null,null,875.5,"100/50",null,64,1445.4504999999999]
[60706,"Adapter 60707-es sisakpánt rögzítésére",null,null,221,10,2,67,364.87099999999998]
[60707,"Látómezőtartó sisakpánt arcvédőkhöz, felhajtható",null,null,909.5,10,2,67,1501.5844999999999]
[60710,"Polikarbonát arcvédő látómező, 195 x 430 mm (vastagsága 1mm)",null," ",739.5,"100/10",2,64,1220.9145000000001]
[60711,"Polikarbonát látómező fém kerettel, 195 x 430 mm",null,null,1028.5,"100/10",2,64,1698.0535]
[60713,"Polikarbonát sötét látómező, 390 x 180 mm",null,null,1198.5,"100/10",2,64,1978.7235000000001]
[60720,"Visogrill arcvédő rostély, 190 x 305 mm",null," ",1003,50,null,66,1655.953]
[60721,"                                           190 x 405 mm",null," ",1156,50,null,66,1908.556]
[60740,"Felhajtható homlokpánt (31040 típusú fültokkal kombinálható)",null,null,1241,10,3,67,2048.8910000000001]
["65760","GP látómező ív- és lánghatás, olvadt fémcseppek ellen, 335 x 190 mm",null,null,586.5,null,null,65,968.31150000000002]
["65770","GP fémháló erdészetimunkákhoz, 330 x 118 mm",null,null,850,null,null,65,1403.35]
["65755","GP sisakpánt szabvány adapterrel ",null,null,739.5,null,null,65,1220.9145000000001]
[65710,"Peltor V40D vegyszerálló, páramentes acetát látómező silddel, fejkengyeles Peltor fültokra tehető",null,null,4369,"10/1",2,68,7213.2190000000001]
[65720,"Peltor V40A acélhálós arcvédő silddel, fejkengyeles Peltor fültokkal kombinálható",null,null,3383,"10/1",2,68,5585.3329999999996]
[65715,"Peltor V4D vegyszerálló, páramentes acetát látómező silddel, Peltor és Opus sisakra tehető ",null,null,4802.5,"10/1",2,"68",7928.9274999999998]
[65725,"Peltor V4A acélhálós arcvédő silddel, Peltor és Opus sisakra tehető (adapterrel, sisakfültokkal)",null,null,2992,"10/1",2,"68",4939.7920000000004]
[65706,"Adapter Peltor arcvédők sisakhoz való rögzítésére (P3EV/2)    /pár",null,null,1224,"10/1",2,"web",2020.8240000000001]
["65740","3M G500 homlokpánt, felhajtható, racsnis állítás, 3M fültokkal, szemüveggel kombinálható",null,null,2303.5,"10*","R","új",3803.0785000000001]
["65742","3M 5F-1 polikarbonát arcvédő, 1,5 mm vastag, mindkét oldalapáramentes",null,null,680,"10*","R","új",1122.68]
["65745","3M 5J maratott fémhálós arcvédő, rozsdamentes",null,null,1487.5,"10*","R","új",2455.8625000000002]
["65749","V5 adapter arcvédők rögzítéséhez",null,null,1487.5,"10*","R","új",2455.8625000000002]
["U9705014","Uvex látómező, széles, felhajtható, gyorsállítós fekete homlokpánttal",null,null,5771.5,"5/1","R","69",9528.7464999999993]
["U9707014","Uvex látómező, széles, felhajtható, gyorsállítós fekete fejvédővel",null,null,7871,"5/1","R","69",12995.021000000001]
[]
["Speciális látómezők"]
[]
[]
["60710/I","Ívvédő álarc, 500V/50Hz/4kA zárlati áram ív- és lánghatása ellen",null,null,4590,1,null,65,7578.09]
[60712,"2mm vastag polikarbonát látómező, víztiszta, 200 x 400 mm",null,null,2252.5,"10/1",null,64,3718.8775000000001]
[60714,"DIN5-ös látómező lánghegesztő munkákhoz  ",null,null,7055,"10/1",null,64,11647.805]
[60715,"DIN11-es látómező ívhegesztő munkákhoz",null,null,8712.5,"10/1",null,64,14384.3375]
[60716,"kívül aranygőzölt, DIN5-ös sötét látómező belül",null,null,18827.5,"10/1",null,64,31084.202499999999]
[60718,"felül DIN5-ös, alul víztiszta, bikolor látómező",null,null,7352.5,"10/1",null,64,{"$f":"E400*1.651","v":12138.977500000001}]
[60717,"kívül extra UV védő aranygőzölt látómező",null,null,25967.5,"10/1",null,64,42872.342499999999]
[60667,"Labor arcvédő, víztiszta, felhajtható, vegyszerálló acetát, szemüveg szárakkal",null,null,7565,"10","R","65",12489.815000000001]
[60668,"Labor arcvédő, narancs, felhajtható, vegyszerálló acetát, szemüveg szárakkal",null,null,8330,"10","R","65",13752.83]
[60677,"Kohász arcvédő, sisakra szerelhető, 300 x 170 mm-es acélháló, kobaltkék üveg",null,null,25330,"10","R","66",41819.83]
[]
["Ütésbiztos fejvédők, fejlámpák"]
[]
[]
["65110-15","Taliacap könnyű, 205g-os látogatósisak a fej beütődése ellen, hatféle színben",null,null,1020,20,2,70,1684.02]
[" ",". . . fehér(65110),  kék(65111),  zöld(65112),  sárga(65113),  narancs(65114),  piros(65115)",null,null,null,". . . ","R",70]
["57300-06","Baseballsapka beépített protektorral, fejbeütődés ellen, ötféle színben",null,null,1657.5,"60/1",2,70,2736.5325000000003]
[null,". . . kék(57300), zöld(57302), sárga(57303), piros(57305), fekete(57306), fluo sárga(57307), fluo narancs(57308)",null,null,null,". . .",2,"70"]
[56072,"Focus állítható lámpa fejre és sisakra, kripton és halogén izzókkal",null,null,12155,"10/1",null,"web",20067.904999999999]
[71540,"Basic állítható lámpa fejre és sisakra, pótégővel (Eco 56071)",null,null,1487.5,"10/1",null,"71",2455.8625000000002]
["71545","LED állítható lámpa fejre és sisakra, állítható LED-ekkel (Luan 56073)",null,null,1700,null,null,"71",2806.7]
["U9794300","Uvex U-Cap fekete/szürke, beütődés veszélye elleni fejvédő sapka, állítható, mosható belső",null,null,3570,"10",null,"69",5894.07]
["U9794800","Uvex U-Cap hi-viz sárga, beütődés veszélye elleni fejvédő sapka, állítható, mosható belső",null,null,3910,"10","R","69",6455.41]
[]
["Sapkák és Carewear® UV fejvédők"]
[]
[]
["XPUHG","Vízhatlan poliuretán esősapka, könnyű, zöld anyag, 7,5cm széles perem, állítható állpánt",null,null,1275,"100",null,"71",2105.0250000000001]
[57160,"Baseball sapka különféle színekben (fehér, sötétkék, zöld, sárga, narancs, piros)",null,null,382.5,"200/50",2,71,631.50750000000005]
["57169","Baseball hálós, szellőző változatban",null,null,595,"100/5",2,71,982.34500000000003]
["XCOVR","Coverrain horgászsapka impregnált, vízlepergető pamutból, állítható körméret, fekete",null,null,3553,"50/10",null,"72",5866.0029999999997]
["XCOVT-B/N/S","Covertop Coverguard baseball sapka 100% pamutból, fekete, kék és bézs színben",null,null,892.5,"60/10","2",72,1473.5174999999999]
["7CAPY/O","Capyard Hi-Viz baseball sapka, jó láthatóságú fluo sárga és narancs színben",null,null,1062.5,"60/10","2",72,1754.1875]
["UV401B","Carewear Baby beleszőtt UPF 50+ fényvédő, fehér, peremes, állítható, kisgyerek méretek",null,"XS/S",3580,"10/1",null,"73",5910.58]
["UV412-K/A","Carewear Basic horgászsapka, UPF 50+ faktor, bézs, állítható, gyerek és felnőtt méretek",null,"S/XL",3840,"10/1",null,"73",6339.84]
["UV443A","Carewear Classic kalap, beleszőtt UPF 50+, homok szín, patentos karima, felnőtt méret",null,"XL",6540,"10/1",null,"73",10797.54]
["UV423-K/A","Carewear Active tarkóvédős baseball, UPF 50+, homok szín, állítható, gyerek és felnőtt",null,"L/XL",3840,"10/1",null,"73",6339.84]
["UV432A","Carewear Active sport levehető tarkóvédő, beleszőtt UPF 50+ fényvédő, bézs, felnőtt",null,"XL",4280,"10/1",null,"73",7066.28]
[]
["Earline® zajvédő fültokok"]
[]
[]
[31020,"MAX 200 piros ABS fültok, könnyű  (SNR 27dB)",null,null,612,"60/10",3,77,1010.412]
[31030,"MAX 300 kék ABS fültok, könnyű (SNR 27dB)",null,null,731,"60/10",3,77,1206.8810000000001]
[31040,"MAX 400 sárga fültok párnázott fejpánttal  (SNR 25dB)",null,null,799,"60/10",3,77,1319.1490000000001]
[31050,"MAX 500 sárga fültok, összecsukható, állítható fémpánttal (SNR 30dB)",null,null,1122,"60/10",3,78,1852.422]
[31052,"MAX 500 fluo zöld, jó láthatóságú fültok, összecsukható, állítható fémpánttal (SNR 30dB)",null,null,1224,"60/10",3,"78",2020.8240000000001]
[31060,"MAX 600 kék fültok, összecsukható, állítható fémpánttal (SNR 26dB)",null,null,1241,"60/10",3,"78",2048.8910000000001]
[31061,"MAX 600 sárga fültok, összecsukható, állítható fémpánttal (SNR 26dB)",null,null,1241,"60/10",3,78,2048.8910000000001]
[31070,"MAX 700 kék-piros fültok szabályozható, párnázott fej- vagy tarkópánt funkcióval (SNR 30dB)",null,null,1853,"60/10",3,78,3059.3029999999999]
[31820,"MAX 800FM aktív elektronikus fültok, beépített sztereó FM rádióval (SNR 25dB)",null,null,10812,"1",null,79,17850.612000000001]
[31850,"MAX 800 zajszintfüggő aktív elektronikus fültok, összecsukható (SNR 31dB)",null,null,10812,"1",null,79,17850.612000000001]
[60750,"Earline sisakra szerelhető, sárga fültok állítható fémpánttal (SNR 23dB)",null,null,1853,"60/10","3","79",3059.3029999999999]
[60755,"Earline sisakra szerelhető, jó láthatóságú fluo sárga fültok  (SNR 23dB)",null,null,1887,"60/10","3","79",3115.4369999999999]
[60757,"Earline sisakra szerelhető, jó láthatóságú fluo narancs fültok  (SNR 23dB)",null,null,1887,"60/10","3","79",3115.4369999999999]
[]
["Earline® füldugók"]
[]
[]
[30205,"Earline narancs színű, lekerekített hengeres PU füldugó (SNR 36dB)",null,null,17.850000000000001,"2000/200","*",80,29.470350000000003]
[30215,"Earline narancs színű füldugó, gazdaságos csomagolásban (SNR 36dB)",null,null,17,"5000/500","*",80,28.067]
[30206,"Earline zsinóros, narancs színű, lekerekített hengeres PU füldugó (SNR 36dB)",null,null,38.25,"1500/150","*",80,63.150750000000002]
[30210,"Earline kék, zsinóros, lekerekített hengeres füldugó beépített fémgolyóval (SNR 37dB)",null,null,70.55,"1500/150","*","80",116.47805]
[30211,"Lamellás kék, zsinóros, detektálható füldugó beépített acélgolyókkal, mosható (SNR 17dB)",null," ",255,"100*","*","81",421.005]
[30212,"Lamellás kék, zsinóros, detektálható TPR füldugó szárában acél jelzővel, mosható (SNR 30dB)",null,null,212.5,"150*","*","81",350.83749999999998]
[30213,"Lamellás sárga, zsinóros füldugó műanyag dobozban, mosható (SNR 30dB)",null," ",246.5,"50*","*","81",406.97149999999999]
[30214,"Lamellás piros, zsinóros TPR füldugó műanyag tartódobozban, mosható (SNR 30dB)",null,null,221,"150*","*","81",364.87099999999998]
[30220,"Earline pántos füldugó, gömbölyű  (SNR 20dB)",null,null,255,"400/40",3,82,421.005]
[30221,"Pótdugók Earline 30220 pántos füldugóhoz  (SNR 20dB)",null,null,38.25,"200*","*",82,63.150750000000002]
[30230,"Earline pántos, kúp alakú, forgatható végű dugókkal,18 g, áll alatt is viselhető (SNR 21dB)",null,null,382.5,"200/20","3","82",{"$f":"E464*1.651","v":631.50750000000005}]
[30235,"Pótdugók Earline 30230 pántos füldugóhoz  (SNR 21dB)",null,null,157.25,"200*","*","82",259.61975000000001]
[30240,"Earline pántos, formázott, nagyon könnyű (15 g) füldugó, állítható, forgatható (SNR 24dB)",null,null,408,"400/40","3","82",673.60800000000006]
[30245,"Pótdugók Earline 30240 pántos füldugóhoz  (SNR 24dB)",null,null,161.5,"400*","*","82",266.63650000000001]
["30300","Earline füldugó adagoló, talpra állítva vagy falra szerelve, töltést könnyítő funkcióval",null,null,2320.5,"1",null,"80",3831.1455000000001]
[]
["Uvex® hallásvédők"]
[]
[]
["U2112001","Uvex x-fit, lime színű,  lekerekített hengeres PU-hab füldugó (SNR 37dB)",null,null,29.75,"200*",null,"83",49.117249999999999]
["U2112010","Uvex x-fit zsinóros, lime színű,  lekerekített hengeres PU-hab füldugó (SNR 37dB)",null,null,64.599999999999994,"100*",null,"83",106.65459999999999]
["U2112003","Uvex x-fit, lime színű,  200 pár ömlesztve, utántöltő, adagolóhoz (SNR 37dB)",null,null,25.5,"200*",null,"83",42.100500000000004]
["U2112106","Uvex hi-com, bézs színű, légüreges, harang alakú, higiénikus füldugó (SNR 24 dB)",null,null,37.4,"200*",null,"83",61.747399999999999]
["U2112107","Uvex hi-com zsinóros, bézs, légüreges, harang alakú, higiénikus füldugó (SNR 24 dB)",null,null,74.8,"100*",null,"83",123.4948]
["U2112109","Uvex hi-com, bézs színű,  200 pár ömlesztve, utántöltő, adagolóhoz (SNR 37dB)",null,null,31.45,"200*",null,"83",51.923949999999998]
["U2500036","Uvex Sv jó láthatóságú, összehajtható, acélpántos fültok (SNR 27dB)",null,null,6502.5,"10/1","R","83",10735.627500000001]
["U2500032","Uvex 3v jó láthatóságú, összehajtható, acélpántos fültok (SNR 31dB)",null,null,8755,"10/1","R","83",14454.505000000001]
["U2500031","Uvex Xv jó láthatóságú, összehajtható, acélpántos fültok (SNR 36dB)",null,null,8967.5,"10/1","R","83",14805.342500000001]
[]
["3M™ Peltor® zajvédő fültokok"]
[]
[]
[32101,"Peltor Optime I sárga fültok H510A (SNR 27dB )",null,null,3221.5,"20/1",2,84,5318.6965]
[32111,". . . Optime I tarkópántos kivitelben  H510B  (SNR 27dB)",null,null,3510.5,". . .",2,84,5795.8355000000001]
[32121,". . . Optime I összehajtnató kivitelben  H510F  (SNR 28dB)",null,null,4590,". . .",2,84,7578.09]
[32131,". . . Optime I sisakra szerelhető fültok H510P3E (SNR 26dB)",null,null,3961,". . .",2,84,6539.6109999999999]
[32141,". . . Optime I Hi-Viz fluo színű változat  H510AGB  (SNR 27dB)",null,null,3961,". . .",2,87,6539.6109999999999]
["32110",". . . Optime vékony kagylós, tarkópántos kivitel hegesztőpajzsokhoz  H505B  (SNR 24dB)",null,null,6307,"10/1",2,87,10412.857]
[32102,"Peltor Optime II zöld fültok H520A  (SNR 31dB)",null,null,4029,"20/1",2,85,6651.8789999999999]
[32112,". . . Optime II tarkópántos kivitelben  H520B  (SNR 31dB)",null,null,4275.5,". . .",2,85,7058.8505000000005]
[32122,". . . Optime II összehajtnató kivitelben  H520F  (SNR 31dB)",null,null,5414.5,". . .",2,85,8939.3395]
[32132,". . . Optime II sisakra szerelhető fültok H520P3E (SNR 31dB)",null,null,4649.5,". . .",2,85,7676.3244999999997]
[32142,". . . Optime II Hi-Viz fluo színű változat  H520AGB  (SNR 31dB)",null,null,4649.5,". . .",2,87,7676.3244999999997]
["32162",". . . Optime II fehér élelmiszeripari változat  H520AH  (SNR 31dB)",null,null,5219,"10*","R",87,8616.5689999999995]
[32103,"Peltor Optime III fekete fültok H540A  (SNR 35dB)",null,null,4649.5,"20/1",2,86,7676.3244999999997]
[32113,". . . Optime III tarkópántos kivitelben  H540B  (SNR 35dB)",null,null,4972.5,". . .",2,86,8209.5974999999999]
[32133,". . . Optime III sisakra szerelhető fültok H540P3E  (SNR 34dB)",null,null,5304,". . .",2,86,8756.9040000000005]
[32143,". . . Optime III Hi-Viz fluo színű változat  H540AGB  (SNR 35dB)",null,null,5363.5,". . .",2,86,8855.1385000000009]
[32151,"Higiéniai szett (fültokpárnák és szivacs) Optime I fültokokhoz",null,null,1530,"20/1",3,84,2526.0300000000002]
[32152,"Higiéniai szett (fültokpárnák és szivacs) Optime II fültokokhoz",null,null,1632,". . .",3,85,2694.4320000000002]
[32153,"Higiéniai szett (fültokpárnák és szivacs) Optime III fültokokhoz",null,null,1700,". . .",3,86,2806.7]
[]
["3M™ Peltor® kommunikációs fültokok"]
[]
[]
["32200","PTL (push to listen) gombnyomással hallhatóvá teszi a beszédhangot",null,null,7650,1,null,88,12630.15]
[32210,"FM RADIO fültok sztereó FM rádióval",null,null,18572.5,1,null,88,30663.197500000002]
[32212,"FM RADIO mikrofonos Flex-Headset-tel (+szükség van az adóvevővel kompatibilis kábelre is)",null,null,32215,1,"R",88,53186.965000000004]
[32220,"ALERT AM/FM rádióval és egyéb csatlakozási lehetőségekkel",null,null,37145,1,null,88,61326.395000000004]
[32225,"ALERT mikrofonos Flex-Headset-tel (+szükség van az adóvevővel kompatibilis kábelre is)",null,null,61880,1,"R",88,102163.88]
[32240,"SPORT TAC vadászathoz is ajánlott elektronikus fültok narancs színű potkagylókkal",null,null,30940,1,null,88,51081.94]
[32260,"PRO TAC kommunikációs fültok aktív hangerőszabályzóval",null,null,44412.5,1,null,89,73325.037500000006]
[32265,"PRO TAC fültok mikrofonos Flex-Headset-tel (+szükség van az adóvevővel kompatibilis kábelre)",null,null,96560,1,"R",89,159420.56]
[32270,"STABO rádió adóvevő, 8 csatorna, 446 MHz + kábel FM Radio, Alert vagy Pro Tac fültokhoz",null,null,111350,1,"R","web",183838.85]
[32280,"LITE-COM BASIC beépített rádió adóvevővel nyolc csatornás, csoportos kommunikációs lehetőség",null,null,112030,1,null,89,184961.53]
[32283,"LITE-COM BASIC sisakra tehető aktív fültok beépített rádió adóvevővel és mikrofonnal",null,null,114495,1,"R",89,189031.245]
[32299,"SD-200 zajszintmérő készülék (3M, Peltor, EAR) ",null,null,64387.5,"1","R","87",106303.7625]
[]
["3M™ füldugók"]
[]
[]
["3M 1100","Kúp alakú, narancs színű, hipoallergén füldugó (SNR 37dB) ",null,null,28.9,"1000/200","*",91,47.713899999999995]
["3M 1110","Kúp alakú, zsinóros, hipoallergén füldugó (SNR 37dB) ",null,null,64.599999999999994,"500/100","*",91,106.65459999999999]
["3M 1120","Bordázott, lágy poliuretán füldugó (SNR 37dB)",null,null,34,"1000/200","*",91,56.134]
["3M 1130","Bordázott, zsinóros poliuretán füldugó (SNR 37dB)",null,null,72.25,"500/100","*",91,{"$f":"E528*1.651","v":119.28475}]
["3M 1261","Többször használatos, lamellás monoprén füldugó, dobozzal (SNR 25dB)",null,null,272,"200/50","R",93,449.072]
["3M 1271","Többször használatos, zsinóros füldugó, tartódobozzal (SNR 25dB)",null,null,331.5,"200/50","*",93,547.30650000000003]
["3M 1310","Pántos füldugó, gömbölyű, mosható  (SNR 26dB)",null,null,918,"50/10","2",93,1515.6179999999999]
["3M 1311","Cseredugó 3M 1310-hez (SNR 26dB)",null,null,365.5,"100/20*","2",93,603.44050000000004]
[]
["3M™ E.A.R.® és Peltor® füldugók"]
[]
[]
[30090,"Next Solar színes füldugó, lekerekített hengeres (SNR 36dB)",null,null,31.45,"2000/200","*",91,51.923949999999998]
[30091,"Next Solar Corded zsinóros füldugó, lekerekített hengeres (SNR 36dB)",null," ",80.75,"1000/100","*",91,133.31825000000001]
["30092","Pro-Seals kúp alakú füldugó, rugalmas szárral (SNR 29dB)",null,null,144.5,"400*","R",92,238.56950000000001]
["30093","Pro-Seals zsinóros kúp alakú füldugó, rugalmas szárral (SNR 29dB)",null,null,204,"400*","R",92,336.80400000000003]
[30094,"Next Tri-Flange lamellás füldugó, vinil zsinórral (SNR 29dB)",null,null,323,"400/100","* 2",92,533.27300000000002]
["30095","Next Tri-Flange lamellás füldugó, textil zsinórral (SNR 29dB)",null,null,323,"400/100","* 2",92,533.27300000000002]
[30099,"E.A.R. Cabocord Classic zsinóros füldugó, hengeres (SNR 28dB)",null," ",63.75,"2000/200","*",90,105.25125]
[30100,"E.A.R. Classic sárga füldugó, hengeres (SNR 28dB)",null,null,39.950000000000003,"2000/250","* 1",90,65.957450000000009]
[30101,"E.A.R. Classic Soft testhőre (37,2ºC) reagáló füldugó (SNR 36dB)",null," ",46.75,"2000/200","*",90,77.184250000000006]
[30102,"E.A.R. Classic Soft Corded zsinóros testhőre reagáló füldugó (SNR 36dB)",null," ",122.4,"2000/200","* 2",90,202.08240000000001]
[30103,"E.A.R. Soft FX max. védelmű füldugó, lekerekített, harang alakú (SNR 39dB !!)",null,null,39.1,"2000/200","*",91,64.554100000000005]
[30104,"E.A.R. Soft FX Corded zsinóros, lekerekített, harang alakú  (SNR 39dB !!)",null,null,87.55,"2000/200","*",91,144.54505]
[30105,"E.A.R. Soft sárga füldugó, lekerekített hengeres (SNR 36dB)",null,null,26.35,"1000/250","* 1",90,43.50385]
[30106,"E.A.R. Soft Corded zsinóros füldugó, lekerekített hengeres (SNR 36dB)",null,null,62.9,"2000/200","*",90,103.8479]
[30109,"E.A.R. Soft Metal fémjelzős, zsinóros füldugó beépített acélgolyóval (SNR 36dB)",null," ",147.05000000000001,"2000/200","*",90,242.77955000000003]
[30110,"E.A.R. Express füldugó, gomba alakú, műanyag szárral (SNR 28dB)",null,null,147.9,"400/100","* 3",92,244.18290000000002]
[30111,"E.A.R. Express zsinóros füldugó, gomba alakú (SNR 28dB)",null,null,232.9,"400/100","* 3",92,384.5179]
[30112,"E.A.R. Push In mosható, gomba füldugó, műanyag szár (SNR 38dB!)",null," ",83.3,"400/100","* 3",92,137.5283]
[30113,"E.A.R. Push In zsinóros, gomba alakú, műanyag szárral (SNR 38dB!)",null," ",150.44999999999999,"400/100","* 3",92,248.39294999999998]
[30114,"E.A.R. Ultrafit zsinóros füldugó, lamellás (SNR 32dB)",null,null,391,"500/50","*",93,645.54100000000005]
[30115,"E.A.R. Tracers fémjelzős, zsinóros füldugó, lamellás, kék (SNR 32dB)",null,null,518.5,"500/50","*",93,856.04349999999999]
[]
["3M™ E.A.R.® adagolós füldugók"]
[]
[]
[30150,"E.A.R. Classic műanyag buborékban, One Touch adagolóhoz  (500 pár)",null,null,32.299999999999997,"2000/500","*",95,53.327299999999994]
[30151,"E.A.R. Classic utántöltő kartondobozban, buborékhoz  (500 pár)",null,null,32.299999999999997,"2000/500","* 1",95,53.327299999999994]
[30155,"E.A.R. Soft műanyag buborékban, One Touch adagolóhoz  (500 pár)",null,null,24.65,"2000/500","*",95,40.697150000000001]
[30156,"E.A.R. Soft utántöltő kartondobozban, buborékhoz  (500 pár)",null,null,22.95,"2000/500","* 1",95,37.890450000000001]
[30160,"E.A.R. One Touch füldugó-adagoló",null,null,8874,"4/1",null,95,14650.974]
[30165,"E.A.R. Boxholder műanyag, falra szerelhető füldugó-doboztartó ",null,null,4700.5,"5/1",null,"web",7760.5254999999997]
[30170,"E.A.R. Superfit 33 műanyag buborékban, One Touch adagolóhoz  (500 pár)",null,null,41.65,"2000/500","R",95,68.764150000000001]
[30172,"E.A.R. Classic Soft műanyag buborékban, One Touch adagolóhoz  (500 pár)",null,null,47.6,"2000/500","R",95,78.587600000000009]
[30175,"E.A.R. Soft Blasts műanyag buborékban, One Touch adagolóhoz  (500 pár)",null,null,31.45,"2000/500","R",95,51.923949999999998]
[30177,"E.A.R. Solar műanyag buborékban, One Touch adagolóhoz  (500 pár)",null,null,34,"2000/500","R",95,56.134]
[]
["3M™ E.A.R.® pántos füldugók"]
[]
[]
[30120,"E.A.R. Caps pántos füldugó, gömbölyű  (SNR 23dB)",null,null,722.5,"400/40",3,94,1192.8475000000001]
[30121,"E.A.R. Caps Pods cseredugó E.A.R.Caps-hoz (SNR 23dB)",null,null,382.5,"500/50*",2,94,631.50750000000005]
[30125,"E.A.R. Flexicap flexibilis füldugó forgópánttal, gömbölyű (SNR 23dB)",null,null,1130.5,"400/40","R",94,1866.4555]
[30130,"E.A.R. Caboflex pántos füldugó, kúpos (SNR 21dB)",null,null,1334.5,"400/40","R",94,2203.2595000000001]
[30131,"E.A.R. Caboflex Pods cseredugó E.A.R.Caps-hoz (SNR 21dB)",null,null,790.5,"500/50","R",94,1305.1155000000001]
[30135,"E.A.R. Reflex flexibilis füldugó forgópánttal, kúpos (SNR 27dB)",null,null,1249.5,"400/40","R",94,2062.9245000000001]
[30136,"E.A.R. Reflex Pods cseredugó E.A.R.Reflex-hez (SNR 27dB)",null,null,518.5,"500/25","R",94,856.04349999999999]
[30140,"E.A.R. Band flexibilis, pántos füldugó, gömbölyű  (SNR 21dB)",null,null,892.5,"100/20",3,94,1473.5174999999999]
[30142,"E.A.R. Pulsar flexibilis, pántos füldugó, formázott  (SNR 23dB)",null,null,1266.5,"100/50","R",94,2090.9915000000001]
[30144,"E.A.R. Swerwe flexibilis, pántos füldugó, formázott  (SNR 26dB)",null,null,2261,"100/50","R",94,3732.9110000000001]
[]
["SupAir® légzésvédő maszkok"]
[]
[]
[23000,"Higiénés pormaszk durva porok ellen",null,null,14.025,"1000/50*",2,346,23.155275]
[23101,"SupAir FFP1SL NR D porálarc",null,null,101.15,"240/20*",3,101,166.99865]
[23106,"SupAir FFP1SL NR D szelepes porálarc",null,null,170,"120/10*",3,101,{"$f":"E592*1.651","v":280.67}]
[23201,"SupAir FFP2SL NR D porálarc",null,null,136,"240/20*",3,102,224.536]
[23206,"SupAir FFP2SL NR D szelepes porálarc",null,null,187,"120/10*",3,102,308.73700000000002]
[23236,"SupAir FFP2SL VO NR D aktívszenes, szelepes, részecskék+szerves gőzök ellen, arcszigeteléssel",null,null,756.5,"60/5*",3,104,1248.9815000000001]
[23238,"SupAir FFP2SL VO NR D aktívszenes, szelepes, részecskék+szerves gőzök ellen",null,null,408,"120/10*",3,"105",673.60800000000006]
[23246,"SupAir FFP2SL VO-GA NR D aktívsz., szelep., részecskék+szerves és savas gőzök",null,null,420.75,"120/10*",3,104,694.65825000000007]
[23306,"SupAir FFP3SL NR D szelepes porálarc szivacsos belső arcszigeteléssel",null,null,612,"60/5*",3,103,1010.412]
[23100,"SupAir FFP1SL NR D paneles porálarc",null,null,110.5,"240/20*",3,101,182.43549999999999]
[23105,"SupAir FFP1SL NR D paneles szelepes porálarc",null,null,187,"240/20*",3,101,308.73700000000002]
[23200,"SupAir FFP2SL NR D paneles porálarc",null,null,140.25,"240/20*",3,102,231.55275]
[23205,"SupAir FFP2SL NR D paneles szelepes porálarc",null,null,221,"240/20*",3,102,364.87099999999998]
[23305,"SupAir FFP3SL NR D paneles szelepes porálarc mérgező részecskék ellen",null,null,348.5,"240/20*",3,103,575.37350000000004]
[23155,"SupAir FFP1SL NR D paneles szelepes rombusz porálarc",null,null,187,"240/20*",3,"100",308.73700000000002]
[23250,"SupAir FFP2SL NR D paneles rombusz porálarc",null,null,73.95,"240/20*",3,"100",122.09145000000001]
[23255,"SupAir FFP2SL NR D paneles szelepes rombusz porálarc",null,null,212.5,"240/20*",3,"100",350.83749999999998]
[23276,"SupAir FFP2SL NR D szelepes kagylós porálarc, hosszabb élettartam, könnyebb légzés",null,null,280.5,"120/10*",3,"99",463.10550000000001]
[23376,"SupAir FFP3SL NR D szelepes kagylós porálarc, hosszabb élettartam, könnyebb légzés",null,null,807.5,"120/10*",3,"103",1333.1825000000001]
[]
["Félálarcok Eurfilter szűrőbetétekkel"]
[]
[]
[22101,"Eurmask Uno egy szűrős félálarc, állítható fejkosárral",null,null,2167.5,"16/1",null,106,3578.5425]
[22102,"Eurmask Due ikerszűrős félálarc, állítható fejkosárral",null,null,2286.5,"16/1",null,106,3775.0115000000001]
[22130,"A1-P2 szűrőbetét, csavarmenetes",null,null,1054,"8/2*",null,106,1740.154]
[22140,"P2 szűrőbetét, csavarmenetes",null,null,799,"8/2*",null,106,1319.1490000000001]
[22150,"A1B1E1K1 szűrőbetét, csavarmenetes",null,null,1020,"8/2*",null,106,1684.02]
[22160,"A1 szűrőbetét, csavarmenetes",null,null,799,"8/2*",null,106,1319.1490000000001]
[22170,"P3 szűrőbetét, csavarmenetes",null,null,1300.5,"8/2*",null,106,2147.1255000000001]
[22210,"10 db előszűrő 2 db rögzítővel",null,null,1088,"10/2*",null,106,1796.288]
["20102","Etna ikerszűrős TPE félálarc, nagyon könnyű, fejkosaras",null,null,2431,"16/1",null,106,4013.5810000000001]
["20130","A1-P3 szűrőbetét, bajonettzáras",null,null,1725.5,"12/2*",null,106,2848.8004999999998]
["20140","P2 előszűrőbetét",null,null,612,"12/2*",null,106,1010.412]
["20142","adapter P2 cserélhető részecskeszűrő gázszűrővel való alkalmazásához",null,null,399.5,"12/2*",null,106,659.57450000000006]
["20144","adapter P2 cserélhető részecskeszűrő önállóan való alkalmazásához",null,null,399.5,"12/2*",null,106,659.57450000000006]
["20150","A1B1E1K1 szűrőbetét, bajonettzáras",null,null,1028.5,"12/2*",null,106,1698.0535]
["20160","A1 szűrőbetét, bajonettzáras",null,null,782,"12/2*",null,106,1291.0820000000001]
["20170","P3 szűrőbetét, bajonettzáras",null,null,1088,"12/2*",null,106,1796.288]
["20180","A1B1E1K1-P3 szűrőbetét, bajonettzáras",null,null,1980.5,"12/2*",null,106,3269.8054999999999]
[]
["Teljes- és félálarcok DIN szűrőbetétekkel"]
[]
[]
[22105,"Eurmask DIN egyszűrős szilikongumi félálarc, szabványos teljesálarc-betétekkel használható",null,null,2448,"16/1",null,"107",4041.6480000000001]
[22100,"Panarea szilikon teljesálarc, karc- és páramentes látómező, három szelep, kényelmes fejpánt",null,null,14875,"12/1",null,107,24558.625]
[22104,"Látómezővédő fólia teljesálarcokhoz   /25db",null,null,7565,"5*",null,"web",12489.815000000001]
[21000,"A2 szűrőbetét szerves gázok, gőzök ellen",null,null,2295,"60/1",null,107,3789.0450000000001]
["21010","A2-P3 szűrőbetét szerves gázok, gőzök és veszélyes részecskék ellen",null,null,3017.5,"60/1",null,107,4981.8924999999999]
[21100,"B2 szűrőbetét szervetlen gázok, gőzök ellen",null,null,2720,"60/1",null,107,4490.72]
["21200","A2B2 szűrőbetét szerves és szervetlen gázok, gőzök ellen",null,null,2847.5,"60/1",null,107,4701.2224999999999]
["21210","A2B2-P3 szűrőbetét szerves, szervetlen gázok, gőzök és veszélyes részecskék ellen",null,null,3697.5,"60/1",null,107,6104.5725000000002]
[21400,"E2 szűrőbetét savas gázok, gőzök ellen",null,null,2847.5,"60/1",null,107,4701.2224999999999]
["21410","E2-P3 szűrőbetét savas gázok, gőzök és veszélyes részecskék ellen",null,null,3697.5,"60/1",null,107,6104.5725000000002]
[21500,"K2 szűrőbetét ammónia, szerves amin-származékok ellen",null,null,2975,"60/1",null,107,4911.7250000000004]
["21510","K2-P3 szűrőbetét ammónia, szerves amin-származékok és veszélyes részecskék ellen",null,null,3612.5,"60/1",null,107,5964.2375000000002]
[21600,"A2B2E2K2 szerves-, szervetlen-, savas gázok, ammónia ellen",null,null,3272.5,"60/1",null,107,5402.8975]
[21700,"A2B2E2K2-P3 szerves-, szervetlen-, savas gázok, ammónia és veszélyes részecskék ellen",null,null,3952.5,"60/1",null,107,6525.5775000000003]
[21720,"A2B2E2K2-Hg-P3 szerves-, szervetlen-, savas gázok, ammónia, higany és mérgező részecskék",null,null,5652.5,"60/1",null,107,9332.2775000000001]
[21740,"A2B2E2K2-Hg-CO-NO-P3 szerves-, szervetlen-, savas gázok, ammónia, nitrogénoxidok és higany",null,null,10242.5,"60/1",null,107,16910.3675]
[21800,"P3 szűrőbetét mérgező kategóriájú részecskék ellen",null,null,1912.5,"90/1",null,107,3157.5374999999999]
["21820","Hg-P3 higanygőz, klórgáz és mérgező kategóriájú részecskék ellen",null,null,4590,"60/1",null,107,7578.09]
[21900,"AX 65°C alatti forráspontú szerves vegyületek ellen",null,null,2847.5,"60/1","R",107,4701.2224999999999]
[21910,"AX-P3 65°C > fp. szerves vegyületek és mérgező részecskék ellen",null,null,3442.5,"60/1","R",107,5683.5675000000001]
[22109,"Menekülőkámzsa, 15 perces, CO védelem, cserélhető szűrőbetét",null,null,23630,"1","R","web",39013.129999999997]
[]
["3M™ félálarcok, teljesálarcok, szettek"]
[]
[]
["3M 6000","Ikerszűrős félálarc, méretek: S(6100),  M(6200),  L(6300)",null,null,3570,"8/1",1,108,{"$f":"E659*1.651","v":5894.07}]
["3M 7500","Szilikon ikerszűrős félálarc, méretek: S(7501),  M(7502),  L(7503)",null,null,6103,"10/1",null,108,10076.053]
["3M 6800","Teljesálarc, méretek: S(6700),  M(6800),  L(6900)",null,null,24140,"4/1",null,108,39855.14]
["3M 6885","Látómezővédő teljesálarchoz",null,null,297.5,"100/25*",2,"web",491.17250000000001]
["3M 4251","FFA1P2D kombinált, fix szűrős félálarc",null,null,4632.5,"10/1",1,112,7648.2574999999997]
["3M 4255","FFA2P3D kombinált, fix szűrős félálarc",null,null,5924.5,"10/1",null,112,9781.3495000000003]
["3M 4277","FFABE1P3D kombinált, fix szűrős félálarc",null,null,6375,"10/1",null,112,10525.125]
["3M 4279","FFABEK1P3D kombinált, fix szűrős félálarc",null,null,7310,"10/1",null,112,12068.81]
["3M 400","Előszűrő a 4000-es félálarcokhoz",null,null,161.5,"500/10*","R",112,266.63650000000001]
[]
["3M™ szűrőbetétek"]
[]
[]
["3M 2125","P2 szűrőbetét ",null,null,765,"80/20",2,108,1263.0150000000001]
["3M 2128","P2 aktívszenes szűrőbetét",null,null,909.5,"80/20",2,108,1501.5844999999999]
["3M 2135","P3 szűrőbetét ",null,null,969,"80/20",2,108,1599.819]
["3M 2138","P3 aktívszenes szűrőbetét",null,null,1096.5,"80/20",2,108,1810.3215]
["3M 502","Adapter a 2100-as részecskeszűrők gázszűrőhöz rögzítésére",null,null,544,"64/8",2,108,898.14400000000001]
["3M 5911","P1 részecske-előszűrő",null,null,306,"120/30",2,108,505.20600000000002]
["3M 5925","P2 részecske-előszűrő",null,null,680,"80/20",2,108,1122.68]
["3M 5935","P3 részecske-előszűrő",null,null,841.5,"80/20",2,108,1389.3165000000001]
["3M 501","Adapter az 5900-as előszűrők gázszűrőhöz rögzítésére",null,null,391,"20/2*",2,108,645.54100000000005]
["3M 6035","P3 szűrőbetét védőburkolattal mérgező kategóriájú részecskék ellen",null,null,1054,"80/4",2,108,1740.154]
["3M 6038","P3 szűrőbetét mérgező kategóriájú részecskék + hidrogénfluorid gáz ellen",null,null,1691.5,"64/8",2,108,2792.6664999999998]
["3M 6051","A1 gázszűrőbetét szerves gőzök ellen, 1000 ppm-ig",null,null,1113.5,"64/8",2,108,1838.3885]
["3M 6054","K1 gázszűrőbetét ammónia és származékai ellen",null,null,1402.5,"64/8",2,108,2315.5275000000001]
["3M 6055","A2 gázszűrőbetét szerves gőzök ellen 5000 ppm-ig",null,null,1317.5,"64/8",2,108,2175.1925000000001]
["3M 6057","ABE1 szűrőbetét szerves-, szervetlen- ill. savgőzök ellen",null,null,1232.5,"64/8",2,108,2034.8575000000001]
["3M 6059","ABEK1 szerves-, szervetlen-, savgőzök és ammónia ellen 1000 ppm-ig",null,null,1385.5,"64/8",2,108,2287.4605000000001]
["3M 6075","A1 szerves gőzök (1000ppm) plusz formaldehid (6 ppm) ellen",null,null,1453.5,"64/8",2,108,2399.7285000000002]
["3M 6096","HgP3 kombinált szűrőbetét higany és klórgáz ellen",null,null,4530.5,"32/4",2,108,7479.8554999999997]
["3M 6098","AXP3 betét 65°C forr.pont alatti szerves vegyületek és mérgező részecskék ellen",null,null,4250,"32/4",2,108,7016.75]
["3M 6099","ABEK2P3 kombinált gáz- (szerves, szervetlen, sav, ammónia) és részecskeszűrő",null,null,3162,"32/4",2,108,5220.4620000000004]
[]
["3M™ részecskeszűrő maszkok"]
[]
[]
["3M 8310","FFP1 NR D részecskeszűrő félálarc",null,null,242.25,"80/10*",2,"109",399.95474999999999]
["3M 8312","FFP1 NR D szelepes részecskeszűrő félálarc",null,null,391,"80/10*",2,"109",645.54100000000005]
["3M 8320","FFP2 NR D részecskeszűrő félálarc",null,null,391,"80/10*",2,"109",645.54100000000005]
["3M 8322","FFP2 NR D szelepes részecskeszűrő félálarc",null,null,586.5,"80/10*",2,"109",968.31150000000002]
["3M 8833","FFP3 R D szelepes részecskeszűrő félálarc",null,null,909.5,"80/10*",2,"109",1501.5844999999999]
["3M 8710","FFP1 NR D részecskeszűrő maszk",null,null,212.5,"240/20*",1,110,350.83749999999998]
["3M 8810","FFP2 NR D részecskeszűrő maszk",null,null,408,"240/20*",1,110,673.60800000000006]
["3M 8812","FFP1 NR D szelepes részecskeszűrő maszk",null,null,391,"240/10*",1,110,645.54100000000005]
["3M 8822","FFP2 NR D szelepes részecskeszűrő maszk",null,null,586.5,"240/10*",1,110,968.31150000000002]
["3M 8825","FFP2 R D szelepes részecskeszűrő maszk",null,null,1581,"50/5*",1,110,2610.2310000000002]
["3M 8835","FFP3 R D szelepes részecskeszűrő maszk",null,null,1827.5,"50/5*",1,110,3017.2024999999999]
["3M 9310","FFP1 NR D paneles részecskeszűrő maszk",null,null,255,"240/20*",1,111,421.005]
["3M 9312","FFP1 NR D szelepes paneles részecskeszűrő maszk",null,null,459,"120/10*",1,111,757.80899999999997]
["3M 9320","FFP2 NR D paneles részecskeszűrő maszk",null,null,493,"240/20*",1,111,813.94299999999998]
["3M 9322","FFP2 NR D szelepes paneles részecskeszűrő maszk",null,null,697,"120/10*",1,111,1150.7470000000001]
["3M 9330","FFP3 NR D paneles részecskeszűrő maszk, szelep nélkül",null,null,1164.5,"120/10*",1,111,1922.5895]
["3M 9332","FFP3 NR D szelepes paneles részecskeszűrő maszk",null,null,1351.5,"120/10*",1,111,2231.3265000000001]
["3M 9913","FFP1 NR D aktívszenes maszk (+szerves gőzök MK értékig)",null,null,935,"100/20*",1,112,1543.6849999999999]
["3M 9914","FFP1 NR D szelepes, aktívszenes maszk (+szerves gőzök)",null,null,1054,"100/10*",1,112,1740.154]
["3M 9915","FFP1 NR D aktívszenes maszk (+szerves és savas gőzök)",null,null,977.5,"100/20*",1,112,1613.8525]
["3M 9925","FFP2 NR D szelepes, aktívszenes (+hegesztési füstök és ózon)",null,null,1708.5,"80/10*",1,112,2820.7334999999998]
["3M 9926","FFP2 NR D szelepes, aktívszenes (+szerves,savas, hidrogén-fluorid gőzök)",null,null,1513,"100/10*",1,112,2497.9630000000002]
["3M 9928","FFP2 NR D szelepes, aktívszenes (+ködök, hegesztőfüstök, ózon), belső arcszigeteléssel",null,null,2006,"100/10","R",112,3311.9059999999999]
[]
["Uvex részecskeszűrő maszkok"]
[]
[]
["U2100","Uvex Classic FFP1 NR D formázott részecskeszűrő maszk",null,null,178.5,"240/20*","R","116",{"$f":"E723*1.651","v":294.70350000000002}]
["U2110","Uvex Classic FFP1 NR D formázott, szelepes részecskeszűrő maszk",null,null,221,"180/15*","R","116",364.87099999999998]
["U2200","Uvex Classic FFP2 NR D formázott részecskeszűrő maszk",null,null,212.5,"240/20*","R","116",350.83749999999998]
["U2210","Uvex Classic FFP2 NR D formázott, szelepes részecskeszűrő maszk",null,null,263.5,"180/15*","R","116",435.0385]
["U2220","Uvex Classic FFP2 NR D formázott, szelepes, aktívszenes maszk (+szerves gőzök MK értékig)",null,null,391,"180/15*","R","117",645.54100000000005]
["U2310","Uvex Classic FFP3 NR D formázott, szelepes részecskeszűrő maszk",null,null,586.5,"180/15*","R","117",968.31150000000002]
["U3100","Uvex Classic FFP1 NR D paneles részecskeszűrő maszk",null,null,153,"360/30*","R","116",252.60300000000001]
["U3110","Uvex Classic FFP1 NR D paneles, szelepes részecskeszűrő maszk",null,null,212.5,"180/15*","R","116",350.83749999999998]
["U3200","Uvex Classic FFP2 NR D paneles részecskeszűrő maszk",null,null,187,"360/30*","R","116",308.73700000000002]
["U3210","Uvex Classic FFP2 NR D paneles, szelepes részecskeszűrő maszk",null,null,238,"180/15*","R","116",392.93799999999999]
["U3220","Uvex Classic FFP2 NR D paneles, szelepes, aktívszenes maszk (+szerves gőzök MK értékig)",null,null,374,"180/15*","R","117",617.47400000000005]
["U3310","Uvex Classic FFP3 NR D paneles, szelepes részecskeszűrő maszk",null,null,561,"180/15*","R","117",926.21100000000001]
["U7110","Uvex Pro FFP1 R D formázott, szelepes részecskeszűrő maszk",null,null,374,"135/15*",null,"web",617.47400000000005]
["U8110","Uvex Pro FFP1 R D paneles, szelepes részecskeszűrő maszk",null,null,433.5,"360/15*",null,"web",715.70849999999996]
["U8210","Uvex Pro FFP2 R D paneles, szelepes részecskeszűrő maszk",null,null,612,"360/15*",null,"web",1010.412]
["U7232","Uvex Exxcel FFP2 R D climatec 3 kamrás (2 belégző-, 1 kilégzőszelepes) részecskeszűrő maszk",null,null,2031.5,"36/3*","R","117",3354.0065]
["U7330","Uvex Exxcel FFP3 R D climatec 3 kamrás (2 belégző-, 1 kilégzőszelepes) részecskeszűrő maszk",null,null,2159,"36/3*","R","117",3564.509]
[]
["3M™ alkatrészek"]
[]
[]
["3M 105","Tisztítókendő 3M álarcokhoz",null,null,93.5,"400*/40","R","web",154.36850000000001]
["3M 603","Elem 5900-as előszűrők közvetlen álarchoz rögzítésére (+501 is kell)",null,null,1003,"16/2",3,"web",1655.953]
["3M 6281","Fejpánt szerelvény 6000-es félálarchoz",null,null,1258,"20/5",3,"web",2076.9580000000001]
["3M 7581","Fejpánt szerelvény 7500-as félálarchoz",null,null,2558.5,"20/1",3,"web",4224.0834999999997]
["3M 7582","Belégző szelep 7500-hoz",null,null,926.5,"10*/1","R","web",1529.6514999999999]
["3M 7583","Kilégző szelep 7500-hoz",null,null,858.5,"10*/1","R","web",1417.3834999999999]
["3M 7586","Szűrő tartó 7500-hoz",null,null,1453.5,"20*/1","R","web",2399.7285000000002]
["3M 6878","Szemüveg készlet 6000-es teljesálarchoz",null,null,17714,"1/1","R","web",29245.814000000002]
["3M 6886","Látómező védő (sötétített) 6000-es teljesálarchoz",null,null,1198.5,"25*/1","R","web",1978.7235000000001]
["3M 6889","Kilégző szelep 6000-es teljesálarchoz",null,null,714,"10/1",3,"web",1178.8140000000001]
["3M 6864","Központi elem 6000-es teljesálarchoz",null,null,3935.5,"5*/1","R","web",6497.5105000000003]
["3M 6893","Belégző szelep 6000-es teljesálarchoz",null,null,467.5,"200/40*",3,"web",771.84249999999997]
["3M 6894","Belső maszk 6000-es teljesálarchoz",null,null,5049,"5/1",3,"web",8335.8989999999994]
["3M 6895","Szűrőbetét tömítés 6000-es teljesálarchoz",null,null,314.5,"80/20*",3,"web",519.23950000000002]
["3M 6897","Fejpánt szerelvény 6000-es teljesálarchoz",null,null,6103,"5/1",3,"web",10076.053]
["3M 6898","Csere látómező 6000-es teljesálarchoz",null,null,13540.5,"5/1",3,"web",22355.3655]
["3M 7883","Nyakpánt 6000-es teljesálarchoz",null,null,3281,"10*/1","R","web",5416.9310000000005]
[]
["3M™ szűrt- és nyomólevegős készülékek, fejrészek"]
[]
[]
["3M5245519","3M JUPITER szett: szűrt levegős készülék, 4 órás NiMH akku, töltő, A2P3 szűrő, PU légtömlő (fejvédő nélkül)",null,null,214200,1,"R","113-14",353644.2]
["3MTR315E","3M VERSAFLO szett: szűrt levegős készülék, akku, töltő, részecskeszűrő, légtömlő, áramlásjelző (fejvédő nélkül)",null,null,159417.5,1,"R","113-14",263198.29249999998]
["3M S-133","könnyű arcvédős csuklya, fehér S/M vagy M/L méret (HT-101 helyett)",null,null,8993,1,"R","113-14",14847.442999999999]
["3M S-333","könnyű, vegyszerálló arcvédős csuklya, szürke S/M vagy M/L méret (HT-103 helyett)",null,null,16192.5,1,"R","113-14",26733.817500000001]
["3M S-433","könnyű arc+vállvédős csuklya, fehér S/M vagy M/L méret (HT-120 helyett)",null,null,16099,1,"R","113-14",26579.449000000001]
["3M S-533","könnyű, vegyszerálló arc+vállvédős csuklya, fehér S/M vagy M/L méret",null,null,18164.5,1,"R","113-14",29989.589500000002]
["3M S-655","könnyű pp kámzsa belső gallérral, újrahasználható fejkeret, cserélhető külső",null,null,16949,1,"R","113-14",27982.798999999999]
["3M S-657","pp kámzsa dupla belső gallérral, újrahasználható fejkeret, cserélhető külső",null,null,16949,1,"R","113-14",27982.798999999999]
["3M S-757","könnyű kámzsa festéktartó pp anyagból, újrahasználható fejkeret, cserélhető külső",null,null,18589.5,1,"R","113-14",30691.264500000001]
["3M S-855","vegyszerálló csuklya vállrésszel, belső kámzsás, szigetelt varrású, újrahasználható  (HT-125 helyett)",null,null,29860.5,1,"R","113-14",49299.6855]
["3M M-106","szilárd, állítható fejkeret, arcvédő por, permet, vegyszer elleni szigeteléssel ",null,null,36558.5,1,"R","113-14",60358.083500000001]
["3M M-107","szilárd, állítható fejkeret, arcvédő por, permet, lángálló poliészter szigetelés",null,null,36312,1,"R","113-14",59951.112000000001]
["3M M-306","védősisak arcszigeteléssel, látómezővel por, permet, vegyszer ellen ",null,null,61472,1,"R","113-14",101490.272]
["3M M-307","védősisak arcszigeteléssel, látómezővel por, permet, vegyszer ellen, lángálló poliészter szigeteléssel",null,null,61472,1,"R","113-14",101490.272]
["3M M-406","védősisak arcszigeteléssel, Cordura® nyak- és vállvédővel ",null,null,90338,1,"R","113-14",149148.038]
["3M M-407","védősisak arcszigeteléssel, lángálló Nomex® nyak- és vállvédővel",null,null,96551.5,1,"R","113-14",159406.52650000001]
["3M S-200","3M S-200 nyomólevegős szabályozó egység: regulátor, öv, Y-cső, zárdugók",null,null,80826.5,1,"R","113-14",133444.5515]
["3M V-500","3M V-500E nyomólevegős szabályozó egység: regulátor, öv, integrált hangtompító, két csatlakozó",null,null,58148.5,1,"R","113-14",96003.173500000004]
["3M ACU-2","3M Aircare 500GR légszűrő egység nyomólevegős készülékhez: álló kivitel, csatlakozók nélkül ",null,null,141550.5,1,"R","113-14",233699.87549999999]
["3M ACU10","Szűrőkészlet 3M Aircare 500GR-hez",null,null,31450,1,"R","113-14",{"$f":"E784*1.651","v":51923.95}]
[]
["Rakodókesztyűk"]
[]
[]
[104,"PVC/nitril műbőr anyagból sárga,  jó vízállóságú, tenyérbéléses védőkesztyű",null,10,187,"120/12*",3,126,308.73700000000002]
[140,"Barna, erős marhahasíték fokozott igénybevételre (kopás-, szakítás-, szúrásállóság: 4-es szint)",null,10,875.5,"120/10",2,122,1445.4504999999999]
[148,"Vastag marhahasíték tenyérbéléssel, piros vászon kézháttal (a 155-ös női változata)",null,8,731,"120/10",3,122,1206.8810000000001]
[150,"Szürke marhahasíték tenyérbéléssel, fehér vászon kézhát",null,10,263.5,"120/12*",3,124,435.0385]
["150L","Szürke marhahasíték tenyérbéléssel, fehér vászon kézhát, extra nagy méret",null,"12",306,"120/12*",3,124,505.20600000000002]
["150S","Szürke marhahasíték tenyérbéléssel, fehér vászon kézhát, kis méret",null,"8",284.75,"120/12*","R","új",470.12225000000001]
[153,"Marhahasíték kesztyű színbőr tenyérfolttal, tenyérbéléssel",null,10,357,"120/12*",3,123,589.40700000000004]
[154,"Tenyéren, hüvelyk- és mutatóujjon dupla bőrrel erősített marhahasíték",null,10,297.5,"60/12*",3,123,491.17250000000001]
["154L","Tenyéren, hüvelyk- és mutatóujjon dupla bőrrel erősített marhahasíték, extra nagy méret",null,"12",289,"60/12*",3,123,477.13900000000001]
[155,"Kiváló szürke marhahasíték piros vászonnal, erős igénybevételre",null,10,782,"60/10",2,122,1291.0820000000001]
["152H","Erős marhahasíték tenyérbéléssel, nagy igénybevételre",null,"10",382.5,"120/12",2,"új",631.50750000000005]
[1155,"Vastag marhahasíték tenyérbéléssel, erős igénybevételre",null,10,314.5,"120/12*",3,123,519.23950000000002]
["1155L","Vastag marhahasíték tenyérbéléssel, erős igénybevételre, extra nagy méret",null,"12",340,"120/12*",3,123,561.34]
["1155S","Vastag marhahasíték tenyérbéléssel, erős igénybevételre, kis méret",null,"8",340,"120/12*","R","új",561.34]
[158,"Fekete marhahasíték sárga vászonnal, nagy igénybevételre",null,10,416.5,"120/12*",3,124,687.64150000000006]
["160","Vastag marhahasíték, bőr ujjközök (siklis), ököl és csuklórész, erős vászon, két méretben",null,"7/8",425,"120/12",2,"web",701.67499999999995]
["170","Vastag marhahasíték, bőr tenyérfolt, bőr ujjközök (siklis), ököl és csuklórész, erős vászon",null,"7/8",382.5,"120/12",2,123,631.50750000000005]
["171","Vastag marhahasíték, bőr tenyérfolt, bőr ujjközök (siklis), ököl és csuklórész, erős vászon",null,"10/11",484.5,"120/12",2,123,799.90949999999998]
["180","Erős, puha marhahasíték tenyér, vágás- és kopásbiztos, kötött poliamid/pamut alapkesztyű",null,"7/8",510,"100/10",2,124,842.01]
["181","Erős, puha marhahasíték tenyér, vágás- és kopásbiztos, kötött poliamid/pamut alapkesztyű",null,"10/11",510,"100/10",2,124,842.01]
[202,"Szürke marhahasíték tenyér, farmer kézhát és mandzsetta",null,10,238,"120/12*",3,124,392.93799999999999]
[204,"Marhahasíték tenyérbéléssel, sárga",null,10,178.5,"120/12*",3,126,294.70350000000002]
[200,"Sertéshasíték, sárga",null,10,221,"120/12*",3,126,364.87099999999998]
[205,"Sertéshasíték tenyérbéléssel, sárga",null,10,263.5,"120/12*",3,126,435.0385]
[250,"Fekete marhahasíték sárga vászonnal, nagy igénybevételre",null,10,493,"120/12*",3,125,813.94299999999998]
[260,"Színmarha egész bőrből, erős kézháttal",null,10,969,"120/12",2,125,1599.819]
[270,"Színmarha bútorbőr, tenyérbéléssel",null,10,229.5,"120/12*",3,125,378.90449999999998]
[272,"Multicolor színmarha, tenyérbéléssel",null,10,195.5,"120/12*",3,126,322.77050000000003]
[4120,"Zöld PVC-pamut kertészeti, jó vízállóságú kesztyű vászon kézháttal",null,10,153,"240/12*",2,146,252.60300000000001]
[]
["Kombinált bőr sofőrkesztyűk"]
[]
[]
["818-20","Puha színsertés, kék nylon kézhát csuklógumival",null,"8-10",697,"120/12",2,127,1150.7470000000001]
[" ",". . .  méretek: 8 (818),  9 (819),  10 (820)",null," ",null,". . . ",2,127]
["829-30","Puha színsertés, fehér vászon kézhát csuklógumival",null,"9-10",612,"120/12*",2,127,1010.412]
[" ",". . .  méretek:  9 (829),  10 (830)",null," ",null,". . . ",2,127]
["837-40","Puha színsertés, piros vászon kézhát, elasztikus, állítható csuklórész, . . .  méretek: 7 (837),  9 (839),  10 (840)",null,"7-10",663,"120/12",2,128,1094.6130000000001]
[]
["846-51","Színkecskebőr, rugalmas fehér dzsörzé kézháttal (11-es méretben is) ",null,"6-10",748,"100/10",2,127,1234.9480000000001]
[" ",". . .  méretek: 6 (846),  7 (847),  8 (848),  9 (849),  10 (850),  11 (851)",null," ",null,". . . ",2,127]
["858-60","Színkecskebőr, kék pamut kézhát, elasztikus csuklórész tépőzárral",null,"8-10",935,"120/10",2,128,1543.6849999999999]
[null,". . .  méretek: 8 (858),  9 (859),  10 (860)",null,null,null,". . . ",2,128]
["878-80","Színmarhabőr, piros pamut kézhát csuklógumival",null,"8-10",680,"120/10",2,127,1122.68]
[null,". . .  méretek: 8 (878),  9 (879),  10 (880)",null,null,null,". . . ",2,127]
["908-10","Sofőrkesztyű sertés velúrbőr, belső párnázat, PES kézhát, tépőzár",null,"8-10",1700,"120/12",2,128,2806.7]
[null,". . .  méretek: 8 (908),  9 (909),  10 (910)",null,null,null,". . . ",2,128]
["928-30","Sofőrkesztyű szintetikus bőr (PA/PU), belső párnázat, poliészter kézhát, Velcro",null,"8-10",2278,"120/12",2,128,3760.9780000000001]
[null,". . .  méretek: 8 (928),  9 (929),  10 (930)",null,null,null,". . . ",2,128]
["938-39","Spider szürke szintetikus bőr, narancs Spandex kézhát, csúszásbiztos PVC rács, tépőzár",null,"8-9",1445,"120/12",2,129,2385.6950000000002]
["940",". . .  méretek: 8 (938),  9 (939),  10 (940)",null,"10",1921,". . . ",2,129,3171.5709999999999]
["948-50","Kariboo sárga szín szarvasbőr tenyér, fekete Spandex kézhát, tépőzáras mandzsetta",null,"8-10",2312,"120/12",2,129,3817.1120000000001]
[null,". . .  méretek: 8 (948),  9 (949),  10 (950)",null,null,null,". . . ",2,129]
["968-970","3 ujján ujjvég nélküli sofőrkesztyű, szintetikus bőr (PA/PU), belső párnázat, állítható csukló",null,"8-10",1700,"120/12",2,129,2806.7]
[null,". . .  méretek: 8 (968),  9 (969),  10 (970)",null,null,null,". . . ",2,129]
["988-90","Ujjvég nélküli sofőrkesztyű, szintetikus bőr (PA/PU), belső párnázat, PES kézhát, Velcro",null,"8-10",1700,"120/12",2,129,2806.7]
[null,". . .  méretek: 8 (988),  9 (989),  10 (990)",null,null,null,". . . ",2,129]
[]
["Tiszta bőr munkakesztyűk"]
[]
[]
["1098-100","Erős, puha, 8-as vastagságú marhahasíték tenyér és kézhát",null,"8-10",816,"120/12*",2,130,{"$f":"E850*1.651","v":1347.2160000000001}]
[" ",". . .  méretek: 8 (1098),  9 (1099),  10 (1100)",null," ",null,". . . ",2,130]
["1109-10","Marhahasíték a tenyér és kézhát részen is",null,"9-10",357,"120/12*",2,130,589.40700000000004]
[" ",". . .  méretek: 9 (1109),  10 (1110)",null," ",null,". . .",2,130]
["1218-21","Szürke színmarha tenyér- és hasíték bőr kézhát, nagy igénybevételre (már 4 méretben!)",null,"8-11",629,"120/10*",2,131,1038.479]
[" ",". . .  méretek: 8 (1218),  9 (1219),  10 (1220),  11 (1221)",null," ",null,". . . ",2,131]
["1238-41","Szürke bivalybőr tenyér- és hasíték bőr kézhát, nagy igénybevételre",null,"8-11",612,"120/10*",2,131,1010.412]
[" ",". . .  méretek: 8 (1238),  9 (1239),  10 (1240),  11 (1241)",null,null,null,". . . ",2,131]
["2009-10","Finom színsertés tenyér és kézhát, sárga",null,"9-10",782,"120/12*",2,130,1291.0820000000001]
[" ",". . .  méretek: 9 (2009),  10 (2010)",null," ",null,". . . ",2,130]
["2208-11","Puha színmarhabőr tenyér és kézhát, sárga színű",null,"8-11",986,"120/12",2,131,1627.886]
[" ",". . .  méretek: 8 (2208),  9 (2209),  10 (2210),  11 (2211)",null," ",null,". . . ",2,131]
["2218-21","Színmarhabőr tenyér és kézhát, szürke színű",null,"8-11",850,"120/10",2,131,1403.35]
[" ",". . .  méretek: 8 (2218),  9 (2219),  10 (2220),  11 (2221)",null," ",null,". . . ",2,131]
["2228-31","Erős színmarhabőr tenyér és kézhát, sárga színű",null,"8-11",918,"120/10",2,"web",1515.6179999999999]
[" ",". . .  méretek: 8 (2228),  9 (2229),  10 (2230),  11 (2231)",null," ",null,". . . ",2,"web"]
["2247-51","Artériavédős, puha színkecskebőr gumírozott csuklórésszel",null,"7-10",1037,"120/10",2,132,1712.087]
[" ",". . .  méretek: 7 (2247),  8 (2248),  9 (2249),  10 (2250), 11 (2251)",null," ",null,". . . ",2,132]
["2258-61","Artériavédős, puha színmarhabőr gumírozott csuklórésszel",null,"8-11",867,"120/10",2,132,1431.4169999999999]
[null,". . .  méretek: 8 (2258),  9 (2259),  10 (2260), 11 (2261)",null,null,null,null,2,132]
[]
["Speciális bőr munkakesztyűk"]
[]
[]
["866-868","ESD antisztatikus, puha színsertés kesztyű, szénszálas textil kézháttal",null,"6-8",221,"240/10",2,134,364.87099999999998]
["869"," . . .  méretek: 6 (866),  7 (867),  8 (868),  9 (869)",null,"9",289,null,2,134,477.13900000000001]
["2268-70","Barna, víztaszító színmarhabőr velúr tenyérerősítéssel",null,"8-10",1547,"120/10",2,132,2554.0970000000002]
[" ",". . .  méretek: 8 (2268),  9 (2269),  10 (2270)",null," ",null,". . . ",2,132]
["2308-10","Puha, finom, víztaszító szürke színbáránybőr a tenyér- és kézhát részen is",null,"8-10",1003,"120/10",2,130,1655.953]
[" ",". . .  méretek: 8 (2308),  9 (2309),  10 (2310)",null," ",null,". . . ",2,130]
["2359-60","Elöl-hátul szivacsbéléses erdészkesztyű víztaszító színbőrből, artériavédővel",null,"9-10",1955,"100/10",2,133,3227.7049999999999]
[" ",". . .  méretek: 9 (2359),  10 (2360)",null," ",null,". . . ",2,133]
[2370,"Rezgéscsillapító kombinált kesztyű, marhahasíték tenyéren és ujjakon szivacsbéléssel",null,10,1360,"100/10",2,132,2245.36]
["2372","Rezgéscsillapító hasítékbőr kesztyű, marhahasíték tenyéren és kézháton is, szivacsbéléssel",null,10,1666,"100/10",2,132,2750.5660000000003]
[2377,"Rezgéscsillapító színbőr kesztyű, tenyéren energiaelnyelő szivacs (EN10819)",null,"10",4998,"100/10",2,132,8251.6980000000003]
[2373,"Téglafogó kesztyű, színbőr tenyér 50 fémszegeccsel",null,10,1241,"100/10",2,135,2048.8910000000001]
["2418-20","Olaj- és víztaszító, erős sárga színmarhabőr",null,"8-10",1632,"120/12",2,133,2694.4320000000002]
[" ",". . .  méretek: 8 (2418),  9 (2419),  10 (2420)",null,null,null,". . . ",2,133]
["2458-60","Olaj- és víztaszító színmarhabőr, artériavédővel, gumis csuklórésszel",null,"8-10",1632,"120/12",2,133,2694.4320000000002]
[" ",". . .  méretek: 8 (2458),  9 (2459),  10 (2460)",null," ",null,". . . ",2,133]
[2550,"Víztaszító színmarhabőr, állítható, 15cm-es mandzsettával",null,10,2193,"120/12",2,134,3620.643]
[462,"Vágásbiztos, kötött Para-aramid alapkesztyű marhahasíték tenyérrel, rugalmas mandzsettával",null,10,4352,"100/10",2,134,7185.152]
["L112","Láncfűrészhez vágásbiztos, vastag színmarhabőr aramidszállal",null,10,6256,"100/5",2,133,10328.656000000001]
[59880,"Színbőr tűzoltókesztyű, hõálló aramidszálas közbélés és pamut belsõ bélés",null,10,9248,"100/10",null,134,15268.448]
[]
["Hegesztőkesztyűk"]
[]
[]
[2507,"Marhahasítás 7 cm-es mandzsettával",null,10,493,"60/12*",3,135,813.94299999999998]
["2514-15","Marhahasítás 15 cm-es mandzsettával",null,10,391,"60/12*",3,135,645.54100000000005]
[2517,"3 ujjas marhahasíték 15 cm-es mandzsettával",null,10,629,"60/12",2,135,1038.479]
[2524,"Színmarha tenyerű, hasíték kézhátú hegesztőkesztyű",null,10,782,"60/12",2,136,1291.0820000000001]
[2530,"Színmarha tenyerű és kézhátú hegesztőkesztyű",null,10,901,"120/10",2,136,1487.5509999999999]
["2539-40","AVI  hegesztéshez kesztyű, puha báránybőrből",null,"9-10",1003,"120/10",2,136,1655.953]
[" ",". . .  méretek: 9 (2539),  10 (2540)",null," ",null,". . . ",2,136]
[2620,"Lángálló marhahasíték kevlar szállal varrva",null,10,986,"60/10",2,137,1627.886]
[2625,"Láng- és hőálló bélelt marhahasíték Kevlar® szállal",null,10,1207,"60/10",2,137,1992.7570000000001]
[2630,"Zöld szikraálló marhahasíték, bélelt",null,10,527,"60/12",2,136,870.077]
[2631,"Piros szikra- és hőálló marhahasíték, bélelt",null,10,578,"60/12",2,137,954.27800000000002]
[2633,"Kevlar® szállal varrt, bélelt, szikra- és hőálló piros marhahasíték",null,10,1037,"60/12",2,137,1712.087]
[2636,"Kevlar® szálas bélelt, szikra- hőálló, tenyérerősítéses kék marhahasíték",null,10,1700,"60/12",2,137,2806.7]
[2634,"Kézháton alupigmentált bevonatú, marhahasíték kesztyű, kontakt és sugárzó hő ellen",null,10,2210,"60/6",2,137,3648.71]
[]
["Hideg elleni színbőr kesztyűk"]
[]
[]
[300,"Színsertés pamutbéléssel, gumírozott mandzsettával",null,10,748,"120/12",3,138,{"$f":"E916*1.651","v":1234.9480000000001}]
[310,"Színmarha tenyérmegerősítéssel, szőrmebéléssel",null,10,357," 60/6*",3,138,589.40700000000004]
[330,"Vastag marhahasíték polárbéléssel és erős vászonnal",null,10,697,"120/12",3,138,1150.7470000000001]
[2465,"Finlande - vajszínű marhabőr, polárbéléssel",null,10,1343,"120/12",2,138,2217.2930000000001]
["2469-70","Labrador - vajszínű borjúbőr, 3M polárbéléssel",null,"9-10",2677.5,"120/12",2,139,4420.5524999999998]
[null,". . .  méretek: 9 (2469),  10 (2470)",null,null,null,". . . ",2,139]
[2475,"Kerguelen - fekete borjúbőr 3M Thinsulate® polárbéléssel",null,10,2677.5,"120/12",2,139,4420.5524999999998]
[2480,"Alaszka - sárga borjúbőr, 3M polárbéléssel",null,10,2210,"120/12",2,139,3648.71]
["2487-90","Islande - 32 cm-es színmarha, szőrmebéléssel és -csuklóval",null,"7-10",2210,"60/6",2,139,3648.71]
[null,". . .  méretek: 7 (2487), 8 (2488),  9 (2489),  10 (2490)",null,null,null,". . . ",2,139]
[]
["Bélelt textilkesztyűk"]
[]
[]
[4185,"Vastag konzervkesztyű, barna pamut, bolyhos belsővel",null,10,187,"300/12*","3","143",308.73700000000002]
["4186-88","Vastag, bélelt, dupla pamutkesztyű, kötött, rugalmas mandzsettával",null,"8-10",476,"100/5*","3","145",785.87599999999998]
[null,". . .  méretek: 8 (4186 fehér),  10 (4187 fehér),  10 (4188 fekete)",null," ",null,". . . *","3","145"]
["4248-50","Fekete polárkesztyű, elasztikus poliészter hátrésszel",null,"8-10",850,"120/12","3","145",1403.35]
[null,". . .  méretek: 8 (4248),  10 (4250)",null," ",null,"120/12","3","145"]
["4258","Párnázott, prémium női polárkesztyű, rugalmas, tépőzáras mandzsettával",null,"8",544,"120/12","3","új",898.14400000000001]
["4548-50","Thermolite® kesztyű hideg és meleg hőmérsékleti hatások ellen is!",null,"8-10",867,"100/10","3","145",1431.4169999999999]
[null,". . .  méretek: 8 (4548),  10 (4550)",null,null,null,". . .","3","145"]
["4558-60","Thermolite® kesztyű hideg és meleg hőmérsékleti hatások ellen is, PVC rácsozattal",null,"8-10",1088,"100/10","3",145,1796.288]
[null,". . .  méretek: 8 (4558),  10 (4560)",null,null,null,". . .","3",145]
[]
["Varrott textilkesztyűk"]
[]
[]
["4100-05","Interlock 30 gr-os pamutkesztyű mandzsettával",null,"7-9",74.8,"600/10*",2,142,123.4948]
[null,". . .",null,null,null,". . .*",2,142]
["4110-15","Szuper interlock 40 gr-os pamutkesztyű",null,"8-10",83.3,"600/10*",2,142,137.5283]
[null,". . .",null,null,null,". . .*",2,142]
["4146-51","Fehér pamut boykesztyű csuklógumival",null,"6-11",90.1,"600/10*",2,142,148.7551]
[" ",". . .  méretek: 6 (4146),  7 (4147),  8 (4148),  9 (4149),  10 (4150),  11 (4151)",null," ",null,". . . *",2,142]
[4152,"Fehér pamut 40 cm-es boykesztyű",null,9,119,"600/10*",2,144,196.46899999999999]
[4155,"Fehér vászon gumírozott mandzsettával",null,10,107.1,"300/12*",2,142,176.82210000000001]
[4175,"Fehér vászon 15 cm hosszú mandzsettával",null,10,182.75,"300/12*",2,144,301.72025000000002]
["4167-70","Fehér minipettyes pamutkesztyű",null,"7-10",170,"300/12*",2,143,280.67]
[" ",". . .  méretek:  7 (4167),  8 (4168),  9 (4169),  10 (4170)",null," ",null,". . . *",2,143]
["4177-80","Fekete minipettyes pamutkesztyű",null,"7-10",195.5,"300/12*",2,143,322.77050000000003]
[" ",". . .  méretek:  7 (4177),  8 (4178),  9 (4179),  10 (4180)",null," ",null,". . . *",2,143]
["4207-10","Fényező kesztyű, 100% szálmentes nejlon",null,"7-10",212.5,"600/12*",2,142,350.83749999999998]
[" ",". . .  méretek:  7 (4207),  8 (4208),  9 (4209),  10 (4210)",null," ",null,". . . *",2,142]
[]
["Kertészkesztyűk"]
[]
[]
["3848","Piros latex duplaszálas, kötött cérnakesztyűre mártva",null,"8",93.5,"250/10*",2,146,154.36850000000001]
["3850",". . . ",null,"10",119,". . . *",2,146,196.46899999999999]
["3858-60","Kék latex duplaszálas, kötött cérnakesztyűre mártva",null,"8-10",127.5,"300/10*",2,146,210.5025]
[null,". . .  méretek:  8 (3858),  10 (3860)",null,null,null,". . . *",2,146]
[4120,"Zöld PVC-pamut kertészkesztyű vászon kézháttal",null,10,153,"240/12*",2,146,252.60300000000001]
[4140,"Virágmitás vászon kertészkesztyű pettyezett tenyérreli,  női méret",null,"8-10",170,"240/12*",2,146,280.67]
[4145,"Zöld vászon kertészkesztyű pettyezett tenyérreli, férfi méret",null,null,170,"300/12*",2,146,280.67]
[4160,"Kertészkesztyű fehér vászon, csúszásbiztos piros PVC pettyekkel",null,8,119,"300/12*",2,146,196.46899999999999]
[4165,"Kertészkesztyű fehér vászon, csúszásbiztos fekete PVC pettyekkel",null,10,102,"300/12*",2,146,168.40200000000002]
["4382-84","14-es kötött poliamid, pamut belsővel és kent PVC tenyérrel",null,"8-10",263.5,"200/5*",2,143,435.0385]
[null,". . .  méretek:  8 (4382),  10 (4384)",null,null,null,". . . *",2,143]
[132348,"Minipöttyös, szürke pamut tenyér, rugalmas Spandex/pamut virágmintás kézhát ",null,"8",374,"100/10","2",147,617.47400000000005]
["132158-60","Vinyllel impregnált pamut tenyér PVC pöttyökkel, rugalmas Spandex kézhát, tépőzáras csukló",null,"8-10",867,"100/10","2",147,1431.4169999999999]
[null,". . .  méretek:  8 (132158),  10 (132160)",null,null,null,". . .","2",147]
["132378-80","Mikroszálas szürke poliamid tenyér, mintás pamut/Spandex kézhát és mandzsetta ",null,"8-10",654.5,"100/10","2",147,{"$f":"E977*1.651","v":1080.5795000000001}]
[null,". . .  méretek:  8 (132378 sárga/szürke),  10 (132380 zöld/szürke)",null,null,null,". . .","2",147]
["132478-80","Vinyllel impregnált pamut tenyér, gumis pamut kézhát és 15 cm hosszú mandzsetta",null,"8-10",518.5,"100/10","2",147,856.04349999999999]
[null,". . .  méretek:  8 (132478 piros/szürke),  10 (132480 zöld/szürke)",null,null,null,". . .","2",147]
[]
["Manipulációs kesztyűk"]
[]
[]
[130740,"Sofőr jellegű, erősített PA/PU tenyér, sárga fluo Spandex kézhát, tépőzáras mandzsetta",null,"10",2040,"100/10","2",148,3368.04]
["132118-20","Mikroszálas szürke poliamid tenyér, rugalmas Spandex/poliészter kézhát és mandzsetta ",null,"8-10",1105,"100/10","2",148,1824.355]
[null,". . .  méretek:  8 (132118 neonzöld/piros),  10 (132120 zöld/bézs)",null,null,null,". . . ","2",148]
["132168-70","Mikroszálas szürke poliamid tenyér, rugalmas Spandex/poliészter kézhát, tépőzáras mandzsetta",null,"8-10",1470.5,"100/10","2",148,2427.7955000000002]
[null,". . .  méretek:  8 (132168 zöld/narancs),  10 (132170 zöld/piros)",null,null,null,". . . ","2",148]
["132188-90","Sofőr jellegű, mikroszálas, szintetikus bőr tenyér, Spandex kézhát, tépőzáras csukló",null,"8-10",2031.5,"100/10","2",148,3354.0065]
[null,". . .  méretek:  8 (132188 szürke/neonzöld),  10 (132190 szürke/fekete)",null,null,null,". . .","2",148]
[]
["Kötött textilkesztyűk"]
[]
[]
["4192-94","Kék/szürke triplaszálas, kopásálló poliészter/pamut, 10-es kötés",null,"8-10",110.5,"200/10*",2,"új",182.43549999999999]
[null,". . .  méretek:  8 (4192),  10 (4194)",null,null,null,". . . *",2,"új"]
["4196-98","Fekete triplaszálas, finom pamut/poliészter cérnakesztyű, 10-es kötés",null,"8-10",110.5,"200/10*",2,"új",182.43549999999999]
[null,". . .  méretek:  8 (4196),  10 (4198)",null,null,null,". . . *",2,"új"]
["4300","Duplaszálas pamut cérnakesztyű, 12-es kötés, 17-es szálvastagság",null,"7",72.25,"250/10*",2,149,119.28475]
["4305",". . .",null,"9",72.25,". . . *",2,149,119.28475]
["4330","Triplaszálas pamut cérnakesztyű, 7-es kötés, 17-es szálvastagság",null,"7",80.75,"250/10*",2,149,133.31825000000001]
["4335",". . .",null,"9",80.75,". . . *",2,149,133.31825000000001]
["4340","Duplaszálas cérnakesztyű, 7-es kötés, 19-es szálvastagság",null,"7",55.25,"300/12*",2,149,91.217749999999995]
["4345",". . .",null,"9",55.25,". . . *",2,149,91.217749999999995]
["4348","Tenyerén pettyes, csúszásgátlós poliészter/pamut négy szálból",null,"7",76.5,"300/12*",2,150,126.3015]
["4349",". . .",null,"9",80.75,". . . *",2,150,133.31825000000001]
["4350","Vastag, mindkét oldalon pettyezett poliészter/pamut négy szálból",null,"7",93.5,"240/12*",2,150,154.36850000000001]
["4355",". . .",null,"9",93.5,". . . *",2,150,154.36850000000001]
["4360-65","Sárga pettyes, duplaszálas cérnakesztyű, 100% pamut",null,"7-9",114.75,"250/10*",2,150,189.45224999999999]
[null,". . .  méretek:  7 (4360),  9 (4365)",null,null,null,". . . *",2,150]
["4367-69","100% poliamid mindkét oldalán kék pettyekkel, kopásálló",null,"7-9",204,"250/10*",2,150,336.80400000000003]
[null,". . .  méretek:  7 (4367),  9 (4369)",null,null,null,". . . *",2,150]
["4370-72","Kék pettyes, vékony, poliamid/pamut, 14-es kötés",null,"7-9",216.75,"300/10*",2,"web",357.85424999999998]
[null,". . .  méretek:  7 (4370),  9 (4372)",null,null,null,". . . *",2,"web"]
["4374-76","Kopásálló, kék pöttyös vastag polipropilén/pamut",null,"8-10",259.25,"200/5*",2,151,428.02175]
[null,". . .  méretek:  8 (4374),  10 (4376)",null,null,null,". . . *",2,151]
["4377-79","Kopásálló, piros pettyes, vastag poliamid/pamut",null,"8-10",293.25,"200/5*",2,151,484.15575000000001]
[null,". . .  méretek:  8 (4377),  10 (4379)",null,null,null,". . . *",2,151]
["4387-89","Kopásálló  vastag, rugalmasan kézre simuló, 10-es kötött poliamid, puha pamut belsővel",null,"8-10",195.5,"200/5*",2,151,322.77050000000003]
[null,". . .  méretek:  8 (4387),  10 (4389)",null,null,null,". . . *",2,151]
["4397-99","Elasztikus, rugalmasan kézre simuló, ötszálas, 14-es kötött poliamid, pamut belsővel",null,"8-10",140.25,"300/10*",2,143,231.55275]
[null,". . .  méretek:  8 (4397),  10 (4399)",null,null,null,". . . *",2,143]
["4400-05","Elasztikus, rugalmasan kézre simuló, ötszálas, kötött, 100% poliamid, 14-es kötés",null,"8-10",165.75,"300/10*",2,149,273.65325000000001]
[null,". . .  méretek:  8 (4400),  10 (4405)",null,null,null,". . . *",2,149]
["4406-09","Elasztikus, kézre simuló, háromszálas, kötött, vékony poliamid",null,"6-10",123.25,"250/10*",2,"web",203.48575]
[null,". . .  méretek: 6 (4406),  7 (4407),  8 (4408),  9 (4409), 10 (4409+)",null,null,null,". . . *",2,"web"]
["4410-15","Elasztikus, 40 cm hosszú, 100% poliamid lycra",null,"7-9",246.5,"100/10*",2,"144",406.97149999999999]
[null,". . .  méretek:  7 (4410),  9 (4415)",null,null,null,". . . *",2,"144"]
[4500,"Csúszásbiztos pamut/poliészter, mindkét oldalán criss-cross ráccsal",null,10,199.75,"100/10*",2,151,329.78725000000003]
[4183,"Pamut csuklóvédő, 20 cm hosszú, gumírozott",null,null,93.5,"240/10*","2","144",154.36850000000001]
[4393,"Poliamid karvédő, 55 cm hosszú, gumírozott végekkel, pamut belsővel",null,null,386.75,"50/5","2","144",638.52425000000005]
[]
["Vágásbiztos textilkesztyűk"]
[]
[]
["4390-95","Vastag, kopásálló, hosszú élettartamú, mindkét oldalon pöttyös 100% poliamid (nylon)",null,"8-10",493,"240/12",3,153,813.94299999999998]
[null,". . .  méretek:  8 (4390),  10 (4395)",null,null,null,null,3,153]
["4420-25","Vékony vágásbiztos abralon, fokozottan kopásálló",null,"9",306,"100/10*",3,152,505.20600000000002]
[null,". . .  méretek:  7 (4420),  9 (4425)",null,null,null,". . . *",3,152]
["4440-45","Vastag vágásbiztos abralon, fokozottan kopásálló",null,"7-9",391,"100/10*",3,152,{"$f":"E1041*1.651","v":645.54100000000005}]
[null,". . .  méretek:  7 (4440),  9 (4445)",null,null,null,". . . ",3,152]
["4448-56","Vékony pettyezett abralon, vágás- és csúszásbiztos, kopásálló ",null,"7-9",323,"100/10*",3,152,533.27300000000002]
[null,". . .  méretek:  6 (4448), 7 (4450),  9 (4455),  10 (4456)",null,null,null,". . . *",3,152]
[4485,"Vastag pettyezett abralon, vágás- és csúszásbiztos, kopásálló ",null,10,408,"100/10*",3,152,673.60800000000006]
["4525","Emelt, 5-ös szinten vágásbiztos, hőálló, multiszálas (Kevlar/PA/pamut/acél) kesztyű - 10-es méret",null,"10",2057,"100/10",null,153,3396.107]
[null,". . .  méret:  10 (4525)",null,null,null,null,null,153]
["4530-35","5-ös szinten vágásbiztos, hőálló, multiszálas (Kevlar/PA/pamut/acél), pettyezett tenyérrel",null,"8-10",2006,"100/10",2,153,3311.9059999999999]
[null,". . .  méretek:  8 (4530),  10 (4535)",null,null,null,". . . ",2,153]
[]
["Nomex® és egyéb hőálló kesztyűk"]
[]
[]
[4685,"Hőálló nomex® kesztyű, 27 cm (350°C)",null,10,2856,"50/5",2,157,4715.2560000000003]
[4687,"Hőálló nomex® kesztyű, 35 cm (350°C)",null,10,3723,"50/5",2,157,6146.6729999999998]
[4690,"Egyujjas nomex® kesztyű, 33 cm (350°C)",null,10,6664,"50/5",2,157,11002.264000000001]
[4700,"Hurkolt pamutkesztyű gumírozott mandzsettával (100°C)",null,10,272,"120/5*",2,155,449.072]
[4715,"Hurkolt pamutkesztyű 15 cm-es mandzsettával (100°C)",null,10,391,"120/5*",2,155,645.54100000000005]
[4745,"Hurkolt 40 cm-es alkarvédő pamutból (250°C)",null," ",918,"72/6",2,155,1515.6179999999999]
["4925","Hő- és emelt szinten vágásbiztos Taeki® karvédő, 25 cm /db",null,null,612,null,null,155,1010.412]
["4935","Hő- és emelt szinten vágásbiztos Taeki® karvédő, 35 cm /db",null,null,748,null,null,155,1234.9480000000001]
["4945","Hő- és emelt szinten vágásbiztos Taeki® karvédő, 45 cm /db",null,null,867,null,null,155,1431.4169999999999]
["4960","Hő- és emelt szinten vágásbiztos Taeki® karvédő, 60 cm /db",null,null,1037,null,null,155,1712.087]
["4758-60","5-ös vágásbiztos, hőálló (250°C), hurkolt multiszálas (szintetikus, üvegszál, Spandex) kesztyű",null,"8-10",1751,"100/10",2,153,2890.9009999999998]
[null,". . .  méretek:  8 (4758),  9 (4759),  10 (4760)",null,null,null,". . .",2,153]
[59890,"28cm-es alumínizált kesztyű, aramid belső, kontakt+sugárzó hő-, láng-, olvadt fém ellen",null,10,8032.5,"50/5",2,155,13261.657499999999]
[59892,"38cm-es alumínizált kesztyű, aramid belső, kontakt+sugárzó hő-, láng-, olvadt fém ellen",null,10,9724,"50/5",2,155,16054.324000000001]
[]
["Kevlar® vágásbiztos és hőálló kesztyűk"]
[]
[]
["4600-05","Vékony, kötött vágásbiztos kevlár (100°C)",null,"7-9",901,"100/10",2,154,1487.5509999999999]
[null,". . .  méretek:  7 (4600),  9 (4605)",null,null,null,". . . ",2,154]
["4620-25","Vastag, kötött vágásbiztos kevlár (100°C)",null,"7-9",1513,"100/10",2,154,2497.9630000000002]
[null,". . .  méretek:  7 (4620),  9 (4625)",null,null,null,". . . ",2,154]
["4618-19","Ujjvég nélküli, közepes vastagságú, kötött vágásbiztos kevlár",null,"8-10",2380,"50/5",2,154,3929.38]
[null,". . .  méretek:  8 (4618),  10 (4619)",null,null,null,". . . ",2,154]
["4640-45","Vékony, vágásbiztos kevlár, csúszásgátló pöttyözéssel",null,"7-9",952,"100/10",2,154,1571.752]
[null,". . .  méretek:  7 (4640),  9 (4645)",null,null,null,". . . ",2,154]
[4655,"27 cm-es hő (250°C) - és vágásbiztos kevlár",null,9,3451,"50/5",2,156,5697.6009999999997]
[4657,"35 cm-es hő (250°C) - és vágásbiztos kevlár",null,9,3910,"50/5",2,156,6455.41]
[4659,"45 cm-es hő (350°C) - és vágásbiztos kevlár",null,10,6477,"50/5",2,156,10693.527]
[4660,"Egyujjas 40 cm-es hőálló (350°C) kívül kevlar® / nomex® belül",null,10,8415,"50/5",2,157,13893.165000000001]
[4662,"Ötujjas 40 cm-es hőálló (350°C) kívül kevlar® / nomex® belül",null,10,8534,"50/5",2,157,14089.634]
[4666,"Hő- és vágásbiztos kevlár karvédő, 35 cm",null,null,2278,"144/12",2,155,3760.9780000000001]
[4667,"Hő- és vágásbiztos kevlár karvédő, 45 cm ",null,null,2890,"144/12",2,155,4771.3900000000003]
[4668,"Hő- és vágásbiztos kevlár karvédő, 55 cm ",null,null,5389,"50/10",2,155,8897.2389999999996]
[4671,"Egyujjas, 39 cm-es hurkolt kevlár (500°C) plusz hőszigetelő béléssel",null,10,18360,"50/5",null,157,30312.36]
[4673,"Ötujjas, 38 cm-es hurkolt kevlár (500°C) plusz hőszigetelő béléssel",null,10,19669,"50/5","R",157,32473.519]
[59870,"Egyujjas, 50 cm-es szövött para-aramid (250°C), pamut béléssel",null,10,8347,"50/5",2,"156",13780.897000000001]
[59873,"Háromujjas, 38 cm-es szövött para-aramid (250°C), pamut béléssel",null,10,6222,"50/5",2,"156",10272.522000000001]
[59875,"Ötujjas, 38 cm-es szövött para-aramid (250°C), pamut béléssel",null,10,6222,"50/5",2,"156",10272.522000000001]
[]
["Precíziós szerelőkesztyűk"]
[]
[]
["6106-11S","Poliamid szerelőkesztyű poliuretán tenyérrel",null,"6-11",170,"100/10*",2,160,280.67]
[null,". . .  méretek:  6 (6106),  7 (6107),  8 (6108),  9 (6109),  10 (6110),  11 (6111)",null," ",null,". . . ",2,160]
["6106-11B","Szerelőkesztyű poliuretán tenyérrel",null,"6-11",136,"100/10*",2,160,224.536]
[" ",". . .  méretek:  6 (6106B),  7 (6107B),  8 (6108B),  9 (6109B),  10 (6110B),  11 (6111B)",null," ",null,". . . ",2,160]
["6126-31","Szürke szerelőkesztyű, poliuretán tenyérrel",null,"6-11",187,"100/10*",2,160,308.73700000000002]
[null,". . .  méretek:  6 (6126),  7 (6127),  8 (6128),  9 (6129),  10 (6130),  11 (6131)",null," ",null,". . . ",2,160]
["6136-41","Fekete szerelőkesztyű, poliuretán tenyérrel",null,"6-11",187,"100/10*",2,160,308.73700000000002]
[" ",". . .  méretek:  6 (6136),  7 (6137),  8 (6138),  9 (6139),  10 (6140),  11 (6141)",null," ",null,". . . ",2,160]
["6158-60S","Poliamid szerelőkesztyű poliuretán ujjbeggyel",null,"8-10",153,"100/10*",2,160,{"$f":"E1105*1.651","v":252.60300000000001}]
[null,". . .  méretek:  8 (6158),  9 (6159),  10 (6160)",null," ",null,". . . ",2,160]
["6156-60B","Szerelőkesztyű poliuretán ujjbeggyel",null,"6-8",136,"100/10*",2,160,{"$f":"E1107*1.651","v":224.536}]
[" ",". . .  méretek:  6 (6156B),  7 (6157B),  8 (6158B)",null," ",null,". . . ",2,160]
["6178-80","Antisztatikus ESD minősített poliamid/karbon kesztyű, poliuretán ujjbeggyel",null,"8-10",255,"100/10",2,160,{"$f":"E1109*1.651","v":421.005}]
[" ",". . .  méretek:   8 (6178),  10 (6180)",null," ",null,". . . ",2,160]
["6186-91","Antisztatikus ESD minősített poliamid/karbon kesztyű, poliuretán tenyérrel",null,"6-11",374,"100/10",2,160,{"$f":"E1111*1.651","v":617.47400000000005}]
[" ",". . .  méretek:  6 (6186),  7 (6187),  8 (6188),  9 (6189),  10 (6190)",null," ",null,". . . ",2,160]
["6227-30","Poliamid szerelőkesztyű szürke nitril tenyérrel és körömvédőkkel",null,"7-10",238,"100/10",2,161,{"$f":"E1113*1.651","v":392.93799999999999}]
[" ",". . .  méretek:  7 (6227),  8 (6228),  9 (6229),  10 (6230)",null," ",null,". . . ",2,161]
["6237-40","Poliamid szerelőkesztyű, habosított szürke nitril tenyérrel, csúszásbiztos ",null,"7-10",272,"100/10",2,162,{"$f":"E1115*1.651","v":449.072}]
[" ",". . .  méretek:  7 (6237),  8 (6238),  9 (6239),  10 (6240)",null," ",null,". . . ",2,162]
["6247-50","Poliamid szerelőkesztyű, lélegző poliuterán  tenyér, nitril pöttyökkel",null,"7-10",663,"100/10",2,161,{"$f":"E1117*1.651","v":1094.6130000000001}]
[" ",". . .  méretek:  7 (6247),  8 (6248),  9 (6249),  10 (6250)",null," ",null,". . . ",2,162]
["6277-80","Poliamid szerelőkesztyű, tenyéren és hátul ökölcsontig fekete nitrillel mártva",null,"7-10",306,"100/10",2,161,{"$f":"E1119*1.651","v":505.20600000000002}]
[" ",". . .  méretek:  7 (6277),  8 (6278),  9 (6279),  10 (6280)",null,null,null,". . . ",2,161]
["6287-90","Poliamid szerelőkesztyű, a tenyéren és kézháton is kék nitrillel mártva ",null,"7-10",527,"100/10",2,161,{"$f":"E1121*1.651","v":870.077}]
[" ",". . .  méretek:  7 (6287),  8 (6288),  9 (6289),  10 (6290)",null," ",null,". . . ",2,161]
["6316-20","Poliamid szerelőkesztyű, mikro-habosított fekete nitril tenyérrel, csúszásbiztos ",null,"6-10",442,"100/10",2,"új",{"$f":"E1123*1.651","v":729.74199999999996}]
[null,". . .  méretek:  6 (6316),  7 (6317),  8 (6318),  9 (6319),  10 (6320)",null,null,null,". . . ",2,"új"]
["6328-30","Poliamid szerelőkesztyű, tenyéren és hátul ökölcsontig fekete nitril, mikro-habosított",null,"8-10",493,"100/10",2,"új",{"$f":"E1125*1.651","v":813.94299999999998}]
[null,". . .  méretek:  8 (6328),  9 (6329),  10 (6330)",null,null,null,". . . ",2,"új"]
["6336-40","Poliamid élelmiszeripari kesztyű, habosított szellőző kék nitril tenyérrel",null,"6-10",578,"100/10",2,162,{"$f":"E1127*1.651","v":954.27800000000002}]
[" ",". . .  méretek:  6 (6336),  7 (6337),  8 (6338),  9 (6339),  10 (6340)",null,null,null,". . . ",2,162]
["6437-40","Poliamid szerelőkesztyű, érdesítetett szürke latex tenyérrel, csúszásbiztos ",null,"7-10",510,"100/10",2,162,{"$f":"E1129*1.651","v":842.01}]
[null,". . .  méretek:  7 (6437),  8 (6438),  9 (6439),  10 (6440)",null,null,null,". . . ",2,162]
["6457-60","Poliamid szerelőkesztyű, kondenzált fekete latex tenyérrel, csúszásbiztos ",null,"7-10",306,"100/10",2,162,{"$f":"E1131*1.651","v":505.20600000000002}]
[null,". . .  méretek:  7 (6457),  8 (6458),  9 (6459),  10 (6460)",null,null,null,". . . ",2,162]
["6446-50","Fluo narancs poliamid kesztyű, erős, fekete, érdesített latex, csúszásbiztos tenyérrel",null,"6-10",663,"100/10",2,162,{"$f":"E1133*1.651","v":1094.6130000000001}]
[null,". . .  méretek:  6 (6446), 7 (6447),  8 (6448),  9 (6449),  10 (6450)",null,null,null,". . . ",2,162]
["6637-40","Ninja poliamid kesztyű, habosított fekete PVC tenyér, Hydropellent™ vízlepergető",null,"8-10",527,"100/10",2,163,{"$f":"E1135*1.651","v":870.077}]
[" ",". . .  méretek:  7 (6637), 8 (6638),  9 (6639),  10 (6640)",null," ",null,". . . ",2,163]
["6657-60","Eurofit rugalmas Spandex/poliamid kesztyű, kék nitril-poliuretán bipolimer tenyérrel",null,"7-10",595,"100/10","2",163,{"$f":"E1137*1.651","v":982.34500000000003}]
[" ",". . .  méretek:  7 (6657),  8 (6658),  9 (6659),  10 (6660)",null,null,null,". . . ","2",163]
["6667-70","Eurofit rugalmas Spandex/nylon kesztyű, ökölcsontig kék nitril-poliuretánnal mártva",null,"7-10",595,"100/10","2",163,{"$f":"E1139*1.651","v":982.34500000000003}]
[null,". . .  méretek:  7 (6667),  8 (6668),  9 (6669),  10 (6670)",null,null,null,". . . ","2",163]
["6677-80","Eurobambou bambusz/Spandex/nylon kesztyű, tenyéren fekete nitrillel mártva",null,"7-10",578,"100/10","2",163,{"$f":"E1141*1.651","v":954.27800000000002}]
[null,". . .  méretek:  7 (6677),  8 (6678),  9 (6679),  10 (6680)",null,null,null,". . . ","2",163]
[]
["Tenyéren mártott, vágásbiztos szerelőkesztyűk"]
[]
[]
["3879-80","Kevlar® kesztyűre kondenzált kék csúszásbiztos latex, szellőző kézhát",null,"9-10",1972,"144/12",2,165,{"$f":"E1147*1.651","v":3255.7719999999999}]
[null,". . .  méretek: 9 (3879),  10 (3880)",null,null,null,". . .",2,165]
["3888-90","Kevlar® kesztyűre kondenzált szürke, vegyszerálló nitril, szellőző hát",null,"8-10",2074,"144/12",2,165,{"$f":"E1149*1.651","v":3424.174}]
[null,". . .  méretek: 8 (3888),  9 (3889),  10 (3890)",null," ",null,". . .",2,165]
["6807-10","Vágás- és kopásálló multiszálas (pe/pa/lycra) kesztyű, poliuretán tenyérrel, fehér",null,"7-10",1190,"144/12",2,164,{"$f":"E1151*1.651","v":1964.69}]
[" ",". . .  méretek:  7 (6807),  8 (6808),  9 (6809),  10 (6810)",null," ",null,". . . ",2,164]
["6827-30","Vágás- és kopásálló multiszálas (pe/pa/lycra) kesztyű, poliuretán tenyérrel, szürke",null,"7-10",1275,"144/12",2,164,{"$f":"E1153*1.651","v":2105.0250000000001}]
[" ",". . .  méretek:  7 (6827),  8 (6828),  9 (6829),  10 (6830)",null," ",null,". . . ",2,164]
["6836-41","Euro4 vágás- és kopásálló Dyneema®/pa, nitril-poliuretán fekete bipolimer tenyérrel",null,"6-11",1530,"100/10",2,164,{"$f":"E1155*1.651","v":2526.0300000000002}]
[" ",". . .  méretek:  6 (6836),  7 (6837),  8 (6838),  9 (6839),  10 (6840),  11 (6841)",null," ",null,". . . ",2,164]
["6847-50","Euro5 vágásálló kesztyű (Hppe/Spectra/Spandex), nitril-PU tenyér+ökölcsontig, fekete/zöld",null,"7-10",2584,"100/10",2,164,{"$f":"E1157*1.651","v":4266.1840000000002}]
[" ",". . .  méretek:  7 (6847),  8 (6848),  9 (6849),  10 (6850)",null," ",null,". . . ",2,164]
["6868-70","Hosszú szárú,  vágásálló (Hppe/Pa/Spandex), PU tenyér, extrém ellenállóság, 15 cm mandzsetta",null,"8-10",2652,"120/12",null,"új",{"$f":"E1159*1.651","v":4378.4520000000002}]
[" ",". . .  méretek:  8 (6868),  9 (6869),  10 (6870)",null,null,null,". . . ",null,"új"]
["6907-10","5-ös vágásálló, kopásbiztos, rugalmas Taeki® kesztyű, szürke poliuterán tenyérrel",null,"7-10",1190,"100/10",2,165,{"$f":"E1161*1.651","v":1964.69}]
[" ",". . .  méretek:  7 (6907),  8 (6908),  9 (6909),  10 (6910)",null,null,null,". . . ",2,165]
["6927-31","5-ös vágásálló, kopásbiztos, rugalmas Taeki® kesztyű, kondenzált fekete latex tenyér",null,"7-11",1326,"100/10",2,"web",{"$f":"E1163*1.651","v":2189.2260000000001}]
[" ",". . .  méretek:  7 (6927),  8 (6928),  9 (6929),  10 (6930)",null,null,null,". . . ",2,"web"]
["6947-50","5-ös vágásálló, kopásbiztos, rugalmas Taeki® kesztyű, fekete nitril tenyérrel",null,"7-10",1445,"100/10",2,165,{"$f":"E1165*1.651","v":2385.6950000000002}]
[" ",". . .  méretek:  7 (6947),  8 (6948),  9 (6949),  10 (6950)",null,null,null,". . . ",2,165]
["6957-60","5-ös vágásálló, kopásbiztos, multiszálas, tenyéren+hátul ökölcsontig fekete nitrillel",null,"7-10",1394,"100/10",2,165,{"$f":"E1167*1.651","v":2301.4940000000001}]
[" ",". . .  méretek:  7 (6957),  8 (6958),  9 (6959),  10 (6960)",null,null,null,". . . ",2,165]
["6987-90","EUROSAFE+ emelt szinten vágás+kopásálló, nitrillel mártott multiszálak (Kevlar/acél/üvegszál)",null,"7-10",2159,"100/10*",2,164,{"$f":"E1169*1.651","v":3564.509}]
[" ",". . .  méretek:  7 (6987),  8 (6988),  9 (6989),  10 (6990)",null,null,null,". . . ",2,164]
[]
["Mártott PVC kesztyűk"]
[]
[]
["3408-10","Vygen szellőző hátú bordó PVC",null,"8-10",399.5,"100/10*",2,166,{"$f":"E1175*1.651","v":659.57450000000006}]
[" ",". . .  méretek: 8 (3408),  9 (3409),  10 (3410)",null," ",null,". . . ",2,166]
["3419-20","PVC light piros, szellőző hátú,  gazdaságos védőkesztyű",null,"9-10",272,"100/10*",2,167,{"$f":"E1177*1.651","v":449.072}]
[null,". . .  méretek: 9 (3419),  10 (3420)",null,null,null,". . . *",2,167]
["3509-10","Vygen 27cm-es, bordó sav-, lúg-, olajálló",null,"9-10",527,"100/10*",2,166,{"$f":"E1179*1.651","v":870.077}]
[null,". . .  méretek: 9 (3509),  10 (3510)",null,null,null,". . . ",2,166]
["3519-20","PVC light 27 cm-es, piros, gazdaságos védőkesztyű",null,"9-10",331.5,"100/10*",2,167,{"$f":"E1181*1.651","v":547.30650000000003}]
[null,". . .  méretek: 9 (3519),  10 (3520)",null,null,null,". . . *",2,167]
["3619-20","PVC light 36 cm-es, piros, gazdaságos védőkesztyű",null,"9-10",357,"100/10*",2,167,{"$f":"E1183*1.651","v":589.40700000000004}]
[null,". . .  méretek: 9 (3619),  10 (3620)",null,null,null,". . . ",2,167]
["3634-36","Vygen 36 cm-es, bordó sav-, lúg-, olajálló, higiénikus Actifresh® kiképzéssel",null,"8-10",578,"100/10*",2,166,{"$f":"E1185*1.651","v":954.27800000000002}]
[null,". . .  méretek: 8 (3634),  9 (3635),  10 (3636)",null,null,null,". . . *",2,166]
[3640,"Vygen 40 cm-es, bordó sav-, lúg-, olajálló, higiénikus Actifresh® kiképzéssel",null,10,654.5,"50/10*",2,166,{"$f":"E1187*1.651","v":1080.5795000000001}]
[3641,"PVC light 40 cm-es, piros, gazdaságos védőkesztyű",null,10,391,"100/10*",2,167,{"$f":"E1188*1.651","v":645.54100000000005}]
[3669,"PVC 70 cm-es, vállig érő  sav-, lúg-, olajálló",null,9.5,2575.5,"36/6",2,166,{"$f":"E1189*1.651","v":4252.1504999999997}]
["3718-20","Vysol 27 cm csúszásgátlós polimer-neoprén, vegyszerálló, Actifresh® kiképzéssel",null,"8-10",561,"100/10*",2,166,{"$f":"E1190*1.651","v":926.21100000000001}]
[" ",". . .  méretek: 8 (3718),  9 (3719),  10 (3720)",null," ",null,". . . ",2,166]
["3738-40","Vysol 40 cm csúszásgátlós polimer-neoprén, vegyszerálló, Actifresh® kiképzéssel",null,"8-10",773.5,"100/10*",2,166,{"$f":"E1192*1.651","v":1277.0485000000001}]
[" ",". . .  méretek: 8 (3738),  9 (3739),  10 (3740)",null," ",null,". . . ",2,166]
["3769-70","Érdesített PVC, 34 cm-es, kék, sav-, lúg-, olajálló, antibakteriális Actifresh® kiképzéssel",null,"9-10",892.5,"100/10",2,167,{"$f":"E1194*1.651","v":1473.5174999999999}]
["3768",". . .  méretek: 8 (3768),  9 (3769),  10 (3770)",null,"8",756.5,". . . ",2,167,{"$f":"E1195*1.651","v":1248.9815000000001}]
[]
["Hideg elleni mártott védőkesztyűk"]
[]
[]
["3788-90","Érdesített kék PVC kesztyű bolyhos téli béléssel, 34 cm-es, sav-, lúg-, olajálló, Actifresh®",null,"8-10",2371.5,"100/10",2,168,{"$f":"E1200*1.651","v":3915.3465000000001}]
[" ",". . .  méretek: 8 (3788), 9 (3789), 10 (3790)",null,null,null,". . . ",2,168]
["3874-75","Szürke latex hideg elleni belső bolyhozással, pamut-akril-poliészterre mártva ",null,"9-10",680,"144/12",2,168,{"$f":"E1202*1.651","v":1122.68}]
[null,". . .  méretek: 9 (3874),  10 (3875)",null,null,null,". . . ",2,168]
["3918-20","Sárga fluo téli poliészter védőkesztyű Hydropellent™ PVC mártással  ",null,"8-10",1504.5,"100/10",2,169,{"$f":"E1204*1.651","v":2483.9295000000002}]
[null,". . .  méretek: 8 (3918), 9 (3919), 10 (3920)",null,null,null,". . . ",2,169]
[3929,"PVC fluo kesztyű, bélelt, gumírozott mandzsetta, antibakteriális Actifresh® kiképzéssel",null,10,1232.5," 36/6",2,168,{"$f":"E1206*1.651","v":2034.8575000000001}]
[3939,"Bélelt PVC fluo kesztyű, 30 cm, vegyszerálló, antibakteriális Actifresh® kiképzéssel",null,10,1317.5," 36/6",2,168,{"$f":"E1207*1.651","v":2175.1925000000001}]
["6528-31","Narancs fluo téli kötött védőkesztyű, erős, fekete érdesített latex tenyér, poliészter bélés",null,"8-11",977.5,"100/10",2,169,{"$f":"E1208*1.651","v":1613.8525}]
[" ",". . .  méretek:  8 (6528),  9 (6529),  10 (6530), 11 (6531)",null," ",null,". . . ",2,169]
["6608-11","Eurowinter poliamid szerelőkesztyű, érdesített latex tenyér, meleg akril bélés, Hydropellent felület",null,"8-11",1436.5,"100/10",2,"új",{"$f":"E1210*1.651","v":2371.6615000000002}]
[null,". . .  méretek:  8 (6978),  9 (6979),  10 (6980),  11 (6981)",null,null,null,". . . ",2,"új"]
["6628-30","Euroice poliamid szerelőkesztyű, habosított PVC tenyér, hurkolt polárbélés, Hydropellent felület",null,"8-10",1164.5,"100/10",2,169,{"$f":"E1212*1.651","v":1922.5895}]
[null,". . .  méretek:  8 (6628),  9 (6629),  10 (6630)",null,null,null,". . . ",2,169]
["6978-81","Euroice poliamid szerelőkesztyű, habosított latex tenyér, hurkolt polár bélés, Hydropellent felület",null,"8-11",1606.5,"50/5",2,169,{"$f":"E1214*1.651","v":2652.3315000000002}]
[null,". . .  méretek:  8 (6978),  9 (6979),  10 (6980),  11 (6981)",null,null,null,". . . ",2,169]
[]
["Mártott, érdesített latex kesztyűk"]
[]
[]
[3800,"Sárga krepp latex vágásbiztos, csúszásgátló, szellőző hátú",null,10,229.5,"120/12*",2,170,{"$f":"E1220*1.651","v":378.90449999999998}]
[3801,"Sárga krepp latex merev mandzsettás, vágás-, csúszásbiztos",null,10,null,"120/12*",2,170]
["3803","Zöld krepp latex vágásbiztos, csúszásgátló, szellőző hátú",null,"8",399.5,"120/12*",2,170,{"$f":"E1222*1.651","v":659.57450000000006}]
["3804-05",". . .  méretek:  8 (3803),  9 (3804),  10 (3805)",null,"9-10",501.5,". . . *",2,170,{"$f":"E1223*1.651","v":827.97649999999999}]
["3807-10","Kondenzált vágás- és csúszásbiztos, erősített, zöld latex",null,"7-10",799,"72/12*",2,170,{"$f":"E1224*1.651","v":1319.1490000000001}]
[" ",". . .  méretek:  7 (3807),  8 (3808),  9 (3809),  10 (3810)",null," ",null,". . . ",2,170]
[3815,"Végig mártott, zöld, vágásbiztos, csúszásgátló, erősített latex, 32cm",null,"10",787.95,"120/12",2,171,{"$f":"E1226*1.651","v":1300.9054500000002}]
[" ",". . .  méret:10 (3815)",null," ",null,". . . ",2,171]
["3817-20","Narancs latex, saválló, vágásbiztos, csúszásgátló, erősített, 32cm",null,"7-10",1606.5,"60/12",2,171,{"$f":"E1228*1.651","v":2652.3315000000002}]
[" ",". . .  méretek: 7 (3817),  8 (3818),  9 (3819),  10 (3820)",null," ",null,". . . ",2,171]
[3830,"Prevent vulkanizált vágás- és szúrásbiztos narancs latex",null,10,901,"120/10",2,171,{"$f":"E1230*1.651","v":1487.5509999999999}]
[3831,"Vulkanizált erős, piros Ecoline latex, szellőző, kötött háttal",null,10,246.5,"120/12*",2,171,{"$f":"E1231*1.651","v":406.97149999999999}]
["3838-40","Prodefender vulkanizált, szellőző hátú, zöld latex,  vágás- és szúrásbiztos",null,"8-10",561,"144/12*","1",171,{"$f":"E1232*1.651","v":926.21100000000001}]
[" ",". . .  méretek:  8 (3838),  9 (3839),  10 (3840)",null," ",null,". . .*","1",171]
["3863-65","Kondenzált, vékony és erős, csúszásbiztos narancs latex, kötött, szellőző pamut háttal",null,"8-10",357,"120/12",2,170,{"$f":"E1234*1.651","v":589.40700000000004}]
[null,". . .  méretek: 8 (3863),  9 (3864),  10 (3865)",null," ",null,". . . ",2,170]
["3868-70","Kondenzált, vékony és erős, csúszásbiztos kék latex, kötött, szellőző pamut háttal",null,"8-10",527,"120/12",2,170,{"$f":"E1236*1.651","v":870.077}]
[null,". . .  méretek: 8 (3868),  9 (3869),  10 (3870)",null," ",null,". . . ",2,170]
[]
["Végig mártott, vegyszerálló latex"]
[]
[]
["5017-20","Háztartási gumikesztyű, rózsaszín, 0,4 mm vastag, pamutbolyhozott belsővel, 30 cm",null,"7-10",153,"100/10*",2,172,{"$f":"E1242*1.651","v":252.60300000000001}]
[" ",". . .  méretek:  7 (5017),  8 (5018),  9 (5019),  10 (5020)",null," ",null,". . . *",2,172]
["5027-30","Háztartási gumikesztyű, vegyszerálló, sárga, 0,5 mm, pamutbolyhozott belső, 30cm",null,"7-10",195.5,"100/10*",2,172,{"$f":"E1244*1.651","v":322.77050000000003}]
[" ",". . .  méretek:  7 (5027),  8 (5028),  9 (5029),  10 (5030)",null," ",null,". . . *",2,172]
["5057","Háztartási gumikesztyű, kék, 0,4 mm vastag, pamutbolyhozott belsővel, 27cm",null,"7-es",102,"144/12*",2,"web",{"$f":"E1246*1.651","v":168.40200000000002}]
["5058-60",". . .  méretek:  8 (5058),  9 (5059),  10 (5060)",null,"8-10",170,". . . *",2,"web",{"$f":"E1247*1.651","v":280.67}]
["5219-20","Csúszásmentes 1,3 mm vastag kék gumikesztyű",null,"9-10",909.5,"144/12",3,173,{"$f":"E1248*1.651","v":1501.5844999999999}]
[" ",". . .  méretek:  9 (5219),  10 (5220)",null," ",null,". . . ",3,173]
["5206-10","Vastag (1,3 mm), saválló kék gumikesztyű, 30 cm-es, pamutra mártva",null,"6-10",1020,"100/10",3,173,{"$f":"E1250*1.651","v":1684.02}]
[" ",". . .  méretek:  6 (5206),  7 (5207),  8 (5208),  9 (5209),  10 (5210)",null," ",null,". . . ",3,173]
["5227-30","Vastag (1,3 mm), saválló kék gumikesztyű, 30 cm-es, nylonra mártva",null,"7-10",850,"100/10",3,173,{"$f":"E1252*1.651","v":1403.35}]
[" ",". . .  méretek:  7 (5227),  8 (5228),  9 (5229),  10 (5230)",null," ",null,". . . ",3,173]
[]
["Villanyszerelő gumikesztyűk"]
[]
[]
[8026,"Elektromos szigetelő védőkesztyű : 2500V / 500V",null,"8/11",5049,10,null,173,{"$f":"E1258*1.651","v":8335.8989999999994}]
[8056,"Elektromos szigetelő védőkesztyű : 5000V / 1000V",null,"8/11",6222,10,null,173,10272.522000000001]
[8110,"Elektromos szigetelő védőkesztyű : 10000V / 7500V",null,"9/11",8432,10,null,173,13921.232]
[8210,"Elektromos szigetelő védőkesztyű : 20000V / 17500V",null,"9/11",10234,10,null,173,16896.333999999999]
[8310,"Elektromos szigetelő védőkesztyű : 30000V / 26500V",null,"8/11",12801,10,null,173,21134.451000000001]
[8410,"Elektromos szigetelő védőkesztyű : 40000V / 36000V",null,"9/11",21896,10,"R",173,36150.296000000002]
["2516","NKI kiszedő védőkesztyűvel, kapcsolótáblákhoz, megszakításra ",null,null,18530,null,null,"új",30593.03]
[]
["Varrott nitrilkesztyűk "]
[]
[]
[9040,"Varrott bordó nitril, rugalmas pamut kézháttal, csuklógumírozással",null,10,612,"120/12",3,172,{"$f":"E1269*1.651","v":1010.412}]
["9059-60","Varratmentes kötött nylonkesztyű, bézs vagy fekete nitrillel teljesen mártva",null,"9-10",850,"100/10",3,172,{"$f":"E1270*1.651","v":1403.35}]
[null,". . .  méretek:  9 (9059),  10 (9060)",null,null,null,null,null,172]
[]
["Végig mártott, vegyszerálló neoprén, nitril"]
[]
[]
["5307-11","Vegyszer-, oldószerálló neoprén kesztyű, fekete",null,"7-11",450.5,"100/10*","2",174,{"$f":"E1276*1.651","v":743.77549999999997}]
[" ",". . .  méretek:  7 (5307),  8 (5308),  9 (5309),  10 (5310),  11(5311)",null," ",null,". . . *","2",174]
["5507-10","Nitril Plus zöld sav-, lúg-, olaj-, zsír- és vegyszerálló kesztyű, 33 cm ",null,"7-10",297.5,"100/10*",2,174,{"$f":"E1278*1.651","v":491.17250000000001}]
[" ",". . .  méretek:  7 (5507),  8 (5508),  9 (5509),  10 (5510)",null," ",null,". . . *",2,174]
["5527-30","Nitril Super zöld vegyszerálló, 33 cm, vastagabb (0,46 mm), finomabban érdesített",null,"7-10",408,"100/10",2,174,{"$f":"E1280*1.651","v":673.60800000000006}]
[" ",". . .  méretek:  7 (5527),  8 (5528),  9 (5529),  10 (5530)",null," ",null,". . . ",2,174]
["5538-41","45 cm hosszú Nitril Plus zöld sav-, lúg-, olaj-, zsír- és vegyszerálló kesztyű, 0,56 mm vastag",null,"8-10",1411,"36/6",2,174,{"$f":"E1282*1.651","v":2329.5610000000001}]
[" ",". . .  méretek:  8 (5538),  9 (5539),  10 (5540),  11 (5541)",null," ",null,". . . ",2,174]
["5557-60","Akrilonitril kék vegyszerálló kesztyű, 33 cm hosszú és 0,22 mm vastag",null,"7-10",323,"100/10*","2",174,{"$f":"E1284*1.651","v":533.27300000000002}]
[" ",". . .  méretek:  7 (5557),  8 (5558),  9 (5559),  10 (5560)",null," ",null,". . . *","2",174]
[]
["Mártott nitrilkesztyűk mandzsettával"]
[]
[]
["9307-10","Eurodex ökölcsontig mártott, szellőző hátú sárga nitril, gumis mandzsettával, Actifresh®",null,"7-10",425,"100/10*","1",175,{"$f":"E1290*1.651","v":701.67499999999995}]
[" ",". . .  méretek:  7 (9307),  8 (9308),  9 (9309),  10 (9310)",null," ",null,". . . *","1",175]
["9407-10","Eurolité ökölcsontig mártott, szellőző hátú kék nitril, gumis mandzsettával, Actifresh®",null,"7-10",425,"100/10*","1",175,{"$f":"E1292*1.651","v":701.67499999999995}]
[" ",". . .  méretek:  7 (9407),  8 (9408),  9 (9409),  10 (9410)",null," ",null,". . . *","1",175]
["9438-40","Eurolité kézháton is mártott kék nitril, gumis mandzsettával, Actifresh®",null,"8-10",527,"100/10*","1",175,{"$f":"E1294*1.651","v":870.077}]
[" ",". . .  méretek:  8 (9438),  9 (9439),  10 (9440)",null," ",null,". . . *","1",175]
["9608-10 ","Eurotril ökölcsontig kétszer mártott kék nitril, szellőző hát, gumis mandzsetta, Actifresh®",null,"8-10",476,"100/10*","1",176,{"$f":"E1296*1.651","v":785.87599999999998}]
[" ",". . .  méretek:  8 (9608),  9 (9609),  10 (9610)",null," ",null,". . . *","1",176]
["9638-40","Eurotril kétszer, kézháton is mártott kék nitril, gumis mandzsettával, Actifresh®",null,"8-10",544,"100/10*","1",176,{"$f":"E1298*1.651","v":898.14400000000001}]
[" ",". . .  méretek:  8 (9638),  9 (9639),  10 (9640)",null," ",null,". . . *","1",176]
["9628-30","Herkules kétszer mártott, szellőző hátú kék nitril, merev mandzsetta, Actifresh®",null,"8-10",578,"100/10*","1",176,{"$f":"E1300*1.651","v":954.27800000000002}]
[" ",". . .  méretek:  8 (9628),  9 (9629),  10 (9630)",null," ",null,". . . *","1",176]
["9649-50","Herkules kétszer, kézháton is mártott kék nitril, merev mandzsetta, Actifresh®",null,"9-10",578,"100/10*","1",176,{"$f":"E1302*1.651","v":954.27800000000002}]
[" ",". . .  méretek:  9 (9649),  10 (9650)",null," ",null,". . . *","1",176]
["9659-60","Tenyéren vágásbiztos Kevlar®-ra, háton pamutra kétszer mártott nitril, PVC mandzsettával",null,"9-10",2176,"100/10*","1",175,{"$f":"E1304*1.651","v":3592.576}]
[null,". . .  méretek:  9 (9659),  10 (9660)",null,null,null,". . . *","1",175]
[]
["Mártott Ecoline nitrilkesztyűk"]
[]
[]
["9317-21","Nitril light Eco szellőző hátú sárga nitril, gumis mandzsettával",null,"7-11",187,"100/10*",3,177,{"$f":"E1310*1.651","v":308.73700000000002}]
[" ",". . .  méretek:  7 (9317),  8 (9318),  9 (9319),  10 (9320),  11 (9321)",null," ",null,". . . *",3,177]
["9417-21","Nitril light Eco szellőző hátú, kék vastag nitril, gumis mandzsetta",null,"7-11",272,"100/10*",3,177,{"$f":"E1312*1.651","v":449.072}]
[" ",". . .  méretek:  7 (9417),  8 (9418),  9 (9419),  10 (9420),  11 (9421)",null," ",null,". . . *",3,177]
["9448-50","Nitril light Eco kézháton is mártott, kék vastag nitril, passzés",null,"8-10",289,"100/10*",3,177,{"$f":"E1314*1.651","v":477.13900000000001}]
[" ",". . .  méretek:  8 (9448),  9 (9449),  10 (9450)",null," ",null,". . . *",3,177]
["9618-20","Nitril light Eco kétszer, kézháton is mártott kék nitril, merev mandzsettával",null,"8-10",306,"100/10*",2,177,{"$f":"E1316*1.651","v":505.20600000000002}]
[" ",". . .  méretek:  8 (9618),  9 (9619),  10 (9620)",null," ",null,". . . *",2,177]
[]
["Egyszerhasználatos kesztyűk"]
[]
[]
["5706-12","Vinyl kesztyű, lúgálló, púderozott   / 100 db",null,"6-12",765,"1000/100","* 2",178,{"$f":"E1322*1.651","v":1263.0150000000001}]
[" ",". . .  méretek:  6 (5706),  8 (5708),  10 (5710),  12 (5712)",null," ",null,". . . ","* 2",178]
["5716-22","Vinyl kesztyű, lúgálló, púder nélküli   / 100 db",null,"6-12",901,"1000/100","* 2",178,{"$f":"E1324*1.651","v":1487.5509999999999}]
[" ",". . .  méretek:  6 (5716),  8 (5718),  10 (5720),  12 (5722)",null," ",null,". . . ","* 2",178]
["5746-52","Vinyl kék színű kesztyű, lúgálló, púderozott   / 100 db",null,"6-12",918,"1000/100","* 2",178,{"$f":"E1326*1.651","v":1515.6179999999999}]
[" ",". . .  méretek:  6 (5746),  8 (5748),  10 (5750),  12 (5752)",null," ",null,". . . ","* 2",178]
["5806-12","Latex vizsgálókesztyű, púderozott   / 100 db",null,"6-12",1207,"1000/100","* 2",178,{"$f":"E1328*1.651","v":1992.7570000000001}]
[" ",". . .  méretek:  6 (5806),  8 (5808),  10 (5810),  12(5812)",null," ",null,". . . ","* 2",178]
["5816-20","Latex púder nélküli vizsgálókesztyű   / 100 db",null,"6-10",1666,"1000/100","* 2",178,{"$f":"E1330*1.651","v":2750.5660000000003}]
[" ",". . .  méretek:  6 (5816),  8 (5818),  10 (5820)",null," ",null,". . . ","* 2",178]
["5877-79","Gumi ujjvédő   / 100 db",null,"3-5",323,10000,"* 2",178,{"$f":"E1332*1.651","v":533.27300000000002}]
[" ",". . .  méretek:  3 (5877),  4 (5878),  5 (5879)",null," ",null,". . . ","* 2",178]
["5906-12","Nitril kesztyű, púderozott, kék   / 100 db",null,"6-12",1513,"1000/100","* 2",178,{"$f":"E1334*1.651","v":2497.9630000000002}]
[" ",". . .  méretek:  6 (5906),  8 (5908),  10 (5910),  12 (5912)",null," ",null,". . . ","* 2",178]
["5916-22","Nitril púder nélküli vizsgálókesztyű   / 100 db",null,"6-12",1377,"1000/100","* 2",178,{"$f":"E1336*1.651","v":2273.4270000000001}]
[null,". . .  méretek:  6 (5916),  8 (5918),  10 (5920),  12 (5922)",null," ",null,". . . ","* 2",178]
["5949-50","Polietilén fóliakesztyű   / 100 db",null,"8-10",153,10000,"* 2",178,{"$f":"E1338*1.651","v":252.60300000000001}]
[" ",". . .  méretek:  8 (5949),  10 (5950)",null," ",null,". . . ","* 2",178]
[]
["Uvex speciális mártott védőkesztyűk"]
[]
[]
["U60492","Uvex Helix C5wet emelt vágás+kopásálló bambusz/Dyneema/PA/üvegszál HPE nitrillel mártott",null,"7-11",3230,"100/10*","R",180,{"$f":"E1344*1.651","v":5332.7300000000005}]
["U60496","Uvex Helix C5wet plus, emelt vágás+kopásálló, ökölcsontig mártott változat, mosható",null,"7-11",3791,"100/10*","R",180,6258.9409999999998]
["U60558","Uvex Profi Ergo XG pamut alapkesztyűn ökölcsontig NBR nitrilgumi + extrém csúszásálló xg bevonat",null,"7-10",1105,"100/10*","R",180,1824.355]
["U60208","Uvex Profi Ergo XG pamut alapkesztyűn csuklóig NBR nitrilgumi + extrém csúszásálló xg bevonat",null,"7-10",1445,"100/10*","R",180,2385.6950000000002]
["U60535","Uvex Protector Chemical vágásbiztos+vegyszerálló (!) többrétegű Dyneema/NBR nitril, 27 cm",null,"9-10",8568,"50/10*","R","web",14145.768]
["U60122","Uvex Profastrong vegyszerálló zöld nitrilkesztyű, 0,38 mm vastag, 33 cm hosszú",null,"7-10",442,"144/12*","R",180,729.74199999999996]
["U60119","Uvex Profapren vegyszerálló, szilikonmentes sötétkék neoprén, 0,75 mm / 33cm",null,"7-10",833,"60/10*","R",180,1375.2830000000001]
["U60193","Uvex Profagrip ásványi olaj-, sav-, lúgálló, csúszásbiztos feketen HPV-PVC 0,5 mm / 35 cm",null,"9-11",2380,"60/10*","R",181,3929.38]
["U60557","Uvex Rubiflex S XG fekete/kék NBR nitrilgumi + extrém csúszásálló xg bevonat, 0,4 mm/ 35 cm",null,"8-11",2890,"60/10*","R",181,4771.3900000000003]
["U89651","Uvex Rubiflex S long gumis végű, vegyszerálló, csúszásbiztos NBR nitril, 0,5 mm / 60 cm-es",null,"9-11",5610,"60/10*","R","web",9262.11]
["U60243","Uvex Profabutyl savak, lúgok, ketonok, észterek, aldehidek ellen, 0,5 mm / 35 cm",null,"9-11",8925,"1*","R",181,14735.175000000001]
["U60222","Uvex Pofaviton klóros és aromás szénhidrogének, savak, benzinek ellen 0,6 mm / 35 cm",null,"9-11",25381,"1*","R",181,41904.031000000003]
[]
["Coverguard Footwear® és EuroProtection® védőlábbelik"]
[]
[]
["LEP34","ACROITE (S3 HRO CK) színbőr fémmentes cipő, 300°C-ig hőálló, kompozit kapli, Wellmax® talp, fémmentes",null,"39/46",8959,"10/1",null,203,{"$f":"E1360*1.651","v":14791.309000000001}]
["LEP36-37","ACTINOTE (S1P CK) piros/fekete sportcipő és bakancs, színbőr/vászon, kompozit kapli+talplemez, PU/TPU",null,"38/47",8279,"10/1",null,189,13668.629000000001]
["LEP54-55","ALTAITE (S3 HRO CK) barna színbőr cipő és bakancs, 300°C-ig hőálló, kompozit+Wellmax® fémmentes",null,"37/47",10863,"10/1",null,191,17934.813000000002]
["LEP58","ANKERITE (S1P HRO CK) fémmentes velúrbőr cipő, 300°C-ig hőálló, kompozit+Wellmax®, fémmentes",null,"37/47",6222,"10/1",null,203,10272.522000000001]
["LEP16-17","AMBER (S3 CK) bőr cipő és bakancs, kompozit orrmerevítővel és talplemezzel, fémmentes",null,"37/47",6256,"10/1",null,193,10328.656000000001]
["LEP50-51","ANDESITE (S3 CK) nubuk bőr cipő és bakancs, kompozit kapli, Wellmax® talplemez, fémmentes",null,"37/47",7905,"10/1",null,197,13051.155000000001]
["LEP48-49","ARAGONITE (S1P CK) fekete bivalybőr cipő és bakancs, kompozit kapli+talp, Tybrelle bélés, fémmentes",null,"39/47",10982,"10/1",null,197,18131.281999999999]
["LEP11","ARAMIS (01) bakancs, olaj- és saválló, antisztatikus, acél nélkül",null,"36/48",3400,"10/1",1,192,5613.4]
["LEX21","ARES (S3 CK) nappa bőr bakancs, kompozit lábujjvédő+talplemez, szellőző bélés, Coolmax betét",null,"37/48",12546,"10/1",null,212,20713.446]
["LEP38","ARGENTITE (S1P CK) bebújós nubuk cipő, gyönygyvászon betét, kompozit kapli és talplemez",null,"38/47",6409,"10/1",null,"web",10581.259]
["LEP68-69","ASCANITE (S1P HRO CK) khaki nubukbőr/vászon sportcipő és bakancs, kompozit kapli+talplemez, fémmentes",null,"37/47",8432,"10/1",null,198,13921.232]
["LEP13","ATHOS (S1P) bakancs, olaj- és saválló, antisztatikus, acélkapli és -talp",null,"34/49",3485,"10/1",1,192,5753.7349999999997]
["LEP30-31","AVENTURINE (S3 CK) fekete vízlepergető színbőr cipő és bakancs, kompozit/kevlar, fémmentes",null,"38/47",9571,"10/1",null,198,15801.721]
["LEP14-15","AZURITE (S3) orrborításos bőr cipő és bakancs, acélkapli+talp",null,"36/48",4845,"10/1",null,192,7999.0950000000003]
["LEP87","BONGO (S1P) szandál, kompozit kaplis és talplemezes, orrborításos,fémmentes",null,"36/48",6698,"10/1","R",196,11058.398000000001]
["LEP89","BONI (01)  kényelmes szandál nubuk bőrből, acél nélkül, fényvisszaverő díszcsíkkal",null,"36/48",4471,"10/1",null,196,7381.6210000000001]
["LEP88","BONO (S1)  kényelmes szandál nubuk bőrből, acélkaplival, fényvisszaverő díszcsíkkal",null,"36/48",4675,"10/1",null,196,7718.4250000000002]
["LEP84","BOSCO (S1P) szandál, acélkaplis és talplemezes, széles orr-rész, csúszásbiztos talp",null,"36/48",4471,"10/1",null,196,7381.6210000000001]
["LEP82","CARLO (S1) cipő, acél orrmerevítő, széles orr-rész, csúszásbiztos, olaj-, saválló talp",null,"36/48",3978,"10/1",1,194,6567.6779999999999]
["LEP28-29","CERUSITE (S3 CK) fekete nubukbőr cipő és bakancs, kompozit orrmerevítővel és talplemezzel, fémmentes",null,"37/47",11509,"10/1",null,199,19001.359]
["LEP20-21","COBALT (S1P CK) kékesszürke hasítékbőr cipő és bakancs, kompozit kapli+talp",null,"38/47",5933,"10/1",null,187,9795.3829999999998]
["LEP18-19","COPPER (S1P) barna velúrbőr cipő és bakancs, acélkapli és -talp, orr és sarokborítás",null,"36/47",4828,"10/1",null,188,7971.0280000000002]
["LEX10","CORSICA (S3 CK HRO HI WR) színbőr hőálló talpú és felsőrészű, kompozitos félcipő",null,"38/48",10072.5,"10/1",null,191,16629.697500000002]
["LEP10","CYRANO (01) cipő, olaj- és saválló, antisztatikus, acél nélkül",null,"36/48",3400,"10/1",1,192,5613.4]
["LEP39","DIAMANT (S1P) szürke nubukbőr cipő, gyönygyvászon, PU orrborítás, acélkapli+talp",null,"38/47",6103,"10/1",null,186,10076.053]
["LEP93","ELBA (S2) bakancs, acélkapli, kényelmes talpbélés, széles orr-rész, olaj-, saválló talp",null,"36/48",4590,"10/1",null,195,7578.09]
["LEP91","ELBI (02) thermokaplis bakancs, kényelmes talpbélés, széles orr-rész, olaj-, saválló talp",null,"36/48",4471,"10/1",null,195,7381.6210000000001]
["LEP95","ELBO (S3 CK) bakancs PU orrborítással, CK kompozit kaplival, talplemezzel",null,"36/48",5610,"10/1",null,195,9262.11]
["LEP22-23","EMERALD (S1P CK) khakizöld nubuk cipő és bakancs, TPU (240ºC), kompozit kapli+talp",null,"38/47",8330,"10/1",null,187,13752.83]
["LEX20","ERMES (S3 CK) nappa bőr cipő, kompozit lábujjvédő és talplemez, szellőző bélés, Coolmax betét",null,"37/48",12070,"10/1",null,212,19927.57]
["LEX23","ESTIA (S1P CK) nubuk bőr bakancs, kompozit lábujjvédő+talplemez, szellőző bélés, Coolmax betét",null,"37/48",10710,"10/1",null,212,17682.21]
["LEP52-53","HEDEN (S1P CK) cipő és bakancs, kompozit kapli, Wellmax® talplemez, spec. antislip talp",null,"37/47",9248,"10/1",null,"web",15268.448]
["LEX22","HELIOS (S1P CK) nubuk bőr cipő, kompozit lábujjvédő és talplemez, szellőző bélés, Coolmax betét",null,"37/48",10319,"10/1",null,212,17036.669000000002]
["LEP57","HELVITE (S3 HRO CK) cipő, bőr/pes felső, 300°C-ig hőálló, kompozit kapli, Wellmax® lemez, fémmentes",null,"37/47",9724,"10/1",null,186,16054.324000000001]
["LEP46-47","HILLITE (S1P CK) nubuk/PA cipő és bakancs, kompozit+Wellmax®, fényvisszaverő elemek, fémmentes",null,"39/46",8024,"10/1",null,188,13247.624]
["LEX11","ISLANDA (S3 CK HRO HI WR) színbőr hőálló talpú és felsőrészű, kompozitos bakancs",null,"38/48",10752.5,"10/1",null,191,17752.377499999999]
["LEP80","KARLI (01) félcipő, acél nélkül, széles orr-rész, csúszásbiztos, olaj-, saválló talp",null,"36/48",3859,"10/1",1,194,6371.2089999999998]
["LEP26-27","MAGNOLITE (S3 CK) bőr cipő és bakancs, kompozit orrmerevítővel és talplemezzel, fémmentes",null,"37/47",6341,"10/1",null,193,10468.991]
["LEP32","MARBLE (S3 CK) barna nubukbőr, kompozit kapli és -talp, TPU (180ºC), Tybrelle bélés",null,"37/48",10608,"10/1",null,189,17513.808000000001]
["LEP72","MELLITE (01) fekete vízlepergető színbőr cipő Cambrelle® betéttel, lábujjvédő nélkül",null,"38/47",7769,"10/1","R",203,12826.619000000001]
["LEP76","MITO (S3) színbőr félcipő, sportos fazon acélkapli és -taplemez, széles orr-rész, olajálló",null,"36/48",5601.5,"10/1",null,190,9248.076500000001]
["LEP70-71","MOGANITE (S3 CK) fekete vízlepergető színbőr cipő és bakancs, kompozit, Cambrelle® betét",null,"38/47",8279,"10/1","R",203,13668.629000000001]
["LEP77","MURO (S3) színbőr bakancs, sportos fazon acélkapli és -taplemez, széles orr-rész, olajálló",null,"36/48",5967,"10/1",null,190,9851.5169999999998]
["LEP43","ONYX (S1P) fekete nubukbőr bakancs, gyönygyvászon, bokatartó betét, acélkapli+talp",null,"38/46",8296,"10/1",null,186,13696.696]
["LEX17","ORION (S3 CK) színbőr bakancs, kompozit lábujjvédő és talplemez, szellőző bélés",null,"35/48",8670,"10/1",null,199,14314.17]
["LEP73","ORTHITE (S2) folyadéklepergető mikroszálas, szellőző cipő, acélkapli, csúszásálló SRA talp",null,"36/47",5695,"10/1","R",206,9402.4449999999997]
["LEP41","OXO  (01) szürke nubuk bakancs, gyönygyvászon, orrborítás, acél nélkül",null,"38/47",5372,"10/1",null,186,8869.1720000000005]
["LEP40","OXY  (S1P) szürke nubuk bakancs, gyönygyvászon, orrborítás, acélkapli, talplemez",null,"38/47",5474,"10/1",null,186,9037.5740000000005]
["LEP83","PAOLO (S1) bakancs, acél orrmerevítő, széles orr-rész, csúszásbiztos, olaj-, saválló talp",null,"36/48",4063,"10/1",1,194,6708.0129999999999]
["LEP81","PAULI (01)  bakancs, acél nélkül, széles orr-rész, csúszásbiztos, olaj-, saválló talp",null,"36/48",3859,"10/1",1,194,6371.2089999999998]
["LEP86","PEDRO (S1P CK) fémmentes bakancs, kompozit talplemez és -lábujjvédő, széles orr-rész",null,"36/48",5355,"10/1",1,194,8841.1049999999996]
["LEX16","PEGAZUS (S3 CK) színbőr félcipő, kompozit lábujjvédő és talplemez, szellőző bélés",null,"35/48",8160,"10/1",null,199,13472.16]
["LEP12","PORTHOS (S1P) cipő, olaj- és saválló, antisztatikus, acélkapli és -talp",null,"34/49",3485,"10/1",1,192,5753.7349999999997]
["LEP09","SANDALITE (S1) csatos szandál, olaj- és saválló, antisztatikus talp, acélkapli",null,"38/48",3859,"10/1",1,196,6371.2089999999998]
["LEP44","SPINELLE (S1P) szürke velúr cipő, szellőző narancs betét és fémgombok, acélkapli+talp",null,"34/47",4437,"10/1",null,189,7325.4870000000001]
["LEP45","SUN (S1P) szürke velúrbőr cipő szellőző lukakkal, acéltalppal és -kaplival",null,"36/48",4199,"10/1",null,203,6932.549]
["LEP74","TRAP (02) nubukbőr félcipő, trekking fazon, kényelmes talpbélés, kapli nélkül",null,"36/48",5831,"10/1",null,190,9626.9809999999998]
["LEP75","TREK (02) nubukbőr bakancs, trekking fazon, kényelmes talpbélés, kapli nélkül",null,"36/48",6094.5,"10/1",null,190,10062.0195]
["LEP78","TRIP (S3) nubukbőr félcipő, trekking fazon, acélkapli, talplemez, kényelmes talpbélés",null,"36/48",6222,"10/1",null,190,10272.522000000001]
["LEP79","TÚRA (S3) nubukbőr bakancs, trekking fazon, acélkapli, talplemez, kényelmes talpbélés",null,"36/48",6451.5,"10/1",null,190,10651.4265]
["LEP90","VELENCE (02) félcipő, thermokaplis, kényelmes talpbéléssel",null,"36/48",4369,"10/1",null,195,7213.2190000000001]
["LEP94","VERA (S3 CK) félcipő PU orrborítással, CK kompozit kaplival, talplemezzel",null,"36/48",5610,"10/1",null,195,9262.11]
["LEP92","VERONA (S2) félcipő, acélkapli, kényelmes talpbélés",null,"36/48",4539,"10/1",null,195,7493.8890000000001]
["LEP85","VITO (S1P CK) fémmentes cipő, kompozit talplemez és -lábujjvédő, széles orr-rész",null,"36/48",5355,"10/1",1,194,8841.1049999999996]
[]
["Coverguard Footwear® téli bélelt lábbelik, bőrcsizmák"]
[]
[]
["LEP66","MUSCOVITE (S3) magaszárú bőrbakancs, végig szőrmebéléssel, vízálló orrborítással",null,"38/47",7378,"10/1",null,"201",{"$f":"E1428*1.651","v":12181.078}]
["LEP96","TARNA (S2 CK) kompozit lábujjvédő, végig szőrmebélés, plusz orrborítás, teljesen fémmentes",null,"37/48",6035,"10/1",null,201,9963.7849999999999]
["LEP61","PIEMONTITE (S3 CK) barna színbőr, szőrmebélés, kompozit lábujjvédő, Welmax® talplemez, fémmentes",null,"38/47",9809,"10/1",null,201,16194.659]
["LEP60","PYRITE (S3 CK) barna, bélés nélküli színbőr, fémmentes, kompozit lábujjvédő, Welmax® , fémmentes",null,"38/47",9826,"10/1",null,201,16222.726000000001]
["LEP62","POWERLITE (S3 CK) fekete színbőr, szőrmebélés, kompozit lábujjvédő, Welmax® talplemez, fémmentes",null,"38/47",9809,"10/1",null,201,16194.659]
["LEP63","PLATINUM (S3 CK) fekete, bélés nélküli színbőr, kompozit lábujjvédő, Welmax® talplemez, fémmentes",null,"38/47",9826,"10/1",null,201,16222.726000000001]
["LEP97","SWAT (S2 WRU CK) fűzős és cipzáros surranó, kiváló minőségű színbőr, kompozit kapli, PU orrborítás",null,"37/47",11483.5,"10/1",null,202,18959.2585]
[]
["EuroProtection®  és speciális védőlábbelik"]
[]
[]
["LEP24","QUARTZ (S3 CK) lábfejvédős bőr bakancs, gyorscsat, kétrétegű PU (180ºC) talp, kompozit",null,"39/46",7327,"10/1",null,200,12096.877]
["LEP25","QUADRUFITE (S3 HRO CK) lábfejvédős bőr bakancs, 300ºC-ig hőálló nitrilgumi talp, kompozit",null,"38/47",10217,"10/1",null,200,16868.267]
["LEX39","ETNA (S3 HRO HI) teljesen sima, hőálló talpú színbőr aszfaltozó bakancs, színbőr, kompozitos",null,"39/48",9987.5,"10/1",null,200,16489.362499999999]
["LEX32","AMPER (SBP WR IS 1000V) bőr vill.szer.cipő, szigetelő gumitalp, kompozit orr, acél talplemez",null,"36/48",8670,"10/1","R",202,14314.17]
["LEX33","VOLT (SBP WR IS 1000V) bőr vill.szer. bakancs,  szigetelő gumitalp, kompozit orr, acél talplemez",null,"36/48",9350,"10/1","R",202,15436.85]
["LEX35","OHM (SBP WR IS 1000V) bőr vill.szer.surranó,  szigetelő gumitalp, kompozit orr, acél talplemez",null,"36/48",10242.5,"10/1","R",202,16910.3675]
["LPD78","VANEK (OBP WR IS 500V) színbőr vill.szer. bakancs, orrmerevítő nélkül, talplemezzel",null,"36/48",10370,"10/1",null,"web",17120.87]
["LPD77","GORCSEV (OBP WR IS 500V) színbőr vill.szer. félcipő, orrmerevítő nélkül, talplemezzel",null,"37/48",10370,"10/1",null,"web",17120.87]
["LPD70","WOOD (S3 HRO HI CI WR) vágásbiztos, magas szárú bakancs láncfűrész ellen",null,"40/46",35402.5,"10/1","R",200,58449.527500000004]
["50140-47","FIRE (S3HRO.HI.WR) tűzoltó színbőr magas szárú bakancs, gyorskioldó, orrmerevítő, talplemez",null,"39/47",41947.5,"10/1","R",349,69255.322499999995]
["LPD28","EXTRA (S1P) extra méretű színbőr bakancs, acél orrmerevítővel, talplemezzel",null,"49/52",13770,null,null,null,22734.27]
["LPD29","EXTRA (S1P) extra méretű színbőr cipő, acél orrmerevítővel, talplemezzel",null,"49/52",13132.5,null,null,null,21681.7575]
[]
["Coverguard Footwear® női védőlábbelik"]
[]
[]
["LCG57","KASOLITE (S1P HRO CK) barna velúr/gyönygyvászon, 300°C-ig hőálló, kompozit+Wellmax®",null,"36/41",9095,"10/1","R",206,15015.844999999999]
["LCG58","KERNITE (S3 HRO CK) fekete színbőr, 300°C-ig hőálló, kompozit+Wellmax®, fémmentes",null,"36/41",10412.5,"10/1","R",206,17191.037499999999]
[]
["EuroProtection® fehér szintetikus bőr védőlábbelik"]
[]
[]
["LCG70","OKENITE (S2) folyadéklepergető mikroszálas szellőző cipő, acélkaplival",null,"37/47",5253,"10/1",null,"205",8672.7029999999995]
["LCG40","MALI (02) thermokaplis cipő, csúszásbiztos, antisztatikus",null,"36/48",4216,"10/1",null,204,6960.616]
["LCG42","LUNA (S2) acélkaplis cipő, csúszásbiztos, antisztatikus",null,"36/48",4352,"10/1",null,204,7185.152]
["LCG41","ALBI (02) thermokaplis bakancs, csúszásbiztos, antisztatikus",null,"36/48",4233,"10/1",null,204,6988.683]
["LCG43","ALBA (S2) acélkaplis bakancs, csúszásbiztos, antisztatikus",null,"36/48",4369,"10/1",null,204,7213.2190000000001]
["LCG44","BIRDI (02) bebújós, thermokaplis cipő, csúszásbiztos, antisztatikus",null,"36/48",4114,"10/1",null,204,6792.2139999999999]
["LCG45","BIRDA (S2) bebújós, acélkaplis cipő, csúszásbiztos, antisztatikus",null,"36/48",4233,"10/1",null,204,6988.683]
["LCG48","BUBI (01) fehér thermokaplis szandál, csúszásbiztos, antisztatikus",null,"36/48",4233,"10/1",null,204,6988.683]
["LCG49","BUBO (S1) fehér acélkaplis szandál, csúszásbiztos, antisztatikus",null,"36/48",4369,"10/1",null,204,7213.2190000000001]
[]
["Védőklumpák"]
[]
[]
["LCG72","OKENITE (S1) folyadéklepergető mikroszálas klumpa, levehető pánt, acélkapli, csúszásgátló talp",null,"37/47",5644,"10/1",null,"205",9318.2440000000006]
["LTO11","SZANI (E) kétrétegű, fa / PU talpú klumpa",null,"35/48",5865,"10/1",null,205,9683.1149999999998]
["LTO10","PILLE (OB E) sarokpántos fehér papucs, antisztatikus",null,"35/47",3400,"10/1",null,205,5613.4]
["LSO40","VILA (S1) emelt sarkú, acélkaplis bőr klumpa, anatómiai bőr talpbetét, antibakteriális",null,"35/47",9078,"10/1",null,205,14987.778]
["LSO41","VILI (01) emelt sarkú, bőr klumpa, előrehajtható pánt, antibakteriális, anatómiai betét",null,"35/47",8925,"10/1",null,205,14735.175000000001]
[]
["Uvex® védőlábbelik"]
[]
[]
["U69848","Uvex Motion Light (S2 ESD) nubuk bakancs, szellőző belső, energiaelnyelő sarok, acélkapli ",null,"38/48",14662.5,"10/1","R",214,24207.787499999999]
["U69838","Uvex Motion Light (S2 ESD) nubuk félcipő, szellőző belső, energiaelnyelő sarok, acélkapli ",null,"38/48",14407.5,"10/1","R",214,23786.782500000001]
["U69808","Uvex Motion Light (S1 ESD) nubuk szandál, szellőző belső, energiaelnyelő sarok, acélkapli ",null,"38/48",13940,"10/1","R",214,23014.94]
["U69862","Uvex Motion Light (S3 ESD) színbőr bakancs, szellőző belső, energiaelnyelő sarok, acélkapli ",null,"38/48",17807.5,"10/1","R",214,29400.182499999999]
["U69978","Uvex Motion (01 ESD) fekete szellőzőlyukas velúr cipő,  hydroflex® energiaelnyelő sarok, kapli nélkül ",null,"36/50",17977.5,"10/1","R",215,29680.852500000001]
["U69898","Uvex Motion (S1 ESD) fekete szellőzőlyukas velúr cipő,  hydroflex® energiaelnyelő sarok, acélkapli",null,"36/48",18615,"10/1","R",215,{"$f":"E1488*1.651","v":30733.365000000002}]
["U94961","Uvex Motorsport (01) rugalmas nappabőr cipő, energiaelnyelő hydroflex® GEL, kapli nélkül",null,"36/48",22482.5,"10/1","R",215,37118.607499999998]
["U94969","Uvex Motorsport (S1) rugalmas nappabőr cipő, energiaelnyelő hydroflex® GEL, acélkaplival",null,"36/48",23077.5,"10/1","R",215,38100.952499999999]
["U84012","Uvex Quatro Pro (S3) bőr bakancs, orrborítás, softgrip talp, anti-twist sarok, footfit-system, hydroflex®",null,"38/50",17595,"10/1","R",215,29049.345000000001]
["U84002","Uvex Quatro Pro (S3) bőr cipő, orrborítás, softgrip talp, anti-twist sarok, footfit-system, hydroflex®",null,"38/50",16362.5,"10/1","R",215,27014.487499999999]
[]
["Lotto® works védőlábbelik"]
[]
[]
["ON4405","BLACK SPRINT (S3) fekete bőr védőbakancs acél orrmerevítővel és kompozit talppal",null,"38/47",12410,"10/1",null,"213",20488.91]
["ON4408","BLACK SPRINT (S3) fekete bőr védőcipő acél orrmerevítővel és kompozit talppal ",null,"38/47",11177.5,"10/1",null,"213",18454.052500000002]
["ON4411","OLYMPYC 700 (S1P) kényelmes, sportos nubuk/vászon bakancs, acélkapli és kompozit talp",null,"38/47",19507.5,"10/1","R","213",32206.8825]
["ON4412","OLYMPYC 500 (S1P) kényelmes, sportos nubuk/vászon cipő, acélkapli és kompozit talp",null,"38/47",18232.5,"10/1","R","213",30101.857500000002]
["ON4409","OLYMPYC 900 MID (S3) kényelmes, sportos nubukbőr bakancs orrborítással, acélkapli és kompozit talp",null,"38/47",20825,"10/1","R","web",34382.074999999997]
["ON4410","OLYMPYC 900 (S3) kényelmes, sportos nubukbőr cipő orrborítással, acélkapli és kompozit talp",null,"38/47",19507.5,"10/1","R","web",32206.8825]
["ON4401","SPRINT 700 (S1P) szellőző, lukacsos velúr cipő, acélkapli és kompozit talp",null,"38/47",14875,"10/1","R","web",24558.625]
["OF9368","SPIDER (S1) sportos szandál orrborítással, acélkapli és -talplemez, anatomikus betét",null,"38/47",17680,"10/1",null,"web",29189.68]
[]
["Dunlop® védőcsizmák"]
[]
[]
["D95035-47","DUNLOP Pricemastor zöld sav- és lúgálló PVC csizma ",null,"35/47",1751,10,2,209,2890.9009999999998]
["D95535-47","DUNLOP Pricemastor fekete sav- és lúgálló PVC csizma ",null,"35/47",1462,6,2,209,2413.7620000000002]
["D95635-47","DUNLOP Pricemastor fehér sav- és lúgálló PVC csizma ",null,"35/47",3187.5,6,2,208,5262.5625]
["D95236-47","DUNLOP Devon acélkaplis és  acél talplemezes PVC csizma ",null,"36/47",3442.5,6,null,209,5683.5675000000001]
["D95337-47","DUNLOP Dee rövid szárú, sav- és lúgálló PVC csizma ",null,"37/47",1938,10,2,208,3199.6379999999999]
["D95136-45","DUNLOP Acifort Tricolour fehér PVC csizma speciális kétrétegű talppal",null,"36/46",4717.5,6,"R",208,7788.5924999999997]
["D79940-47","DUNLOP Acifort High Voltage villanyszerelő (1000V) védőcsizma acélkaplival",null,"40/47",9987.5,6,null,208,16489.362499999999]
["D95736-49","DUNLOP Purofort Plus kényelmes, kiváló hőszigetelő, energiaelnyelő és csúszásbiztos",null,"39/49",13132.5,6,null,209,21681.7575]
["D95836-49","DUNLOP Purofort Plus prémium PU védőcsizma acél orrmerevítővel és talplemezzel",null,"39/49",15512.5,6,null,209,25611.137500000001]
["D95937-49","DUNLOP Firefighter tűzoltó védőcsizma acélkaplival és -talplemezzel",null,"39/46",22185,3,null,null,36627.434999999998]
[]
["Egyéb csizmák, PVC lábbelik"]
[]
[]
["D96040-46","Lumberjack vágásbiztos erdészeti csizma láncfűrészes munkákhoz, acélkaplival és -talppal",null,"40/46",21063,"6","R",352,34775.012999999999]
["95836-48","Szőrmés csizma  PVC anyagból, műszőrme béléssel, kötős",null,"36/48",3400,6,2,207,5613.4]
["95934-47","Csizmabélés, magasszárú téli, filc anyagból",null,"35/47",756.5,"50/5",2,207,1248.9815000000001]
["95636-48","PVC cipő zoknira húzható, víz- és lúgálló, zöld",null,"36/48",1700,12,null,207,2806.7]
["95736-46","Nitriltalpú cipő, zoknira húzható, víz- és lúgálló, fehér",null,"36/46",1912.5,12,null,207,3157.5374999999999]
["LEU10","Kerti papucs, zöld színű, alacsony kérgű, vízálló",null,"35/46",892.5,12,null,207,1473.5174999999999]
["LEU30","Stoprain PVC bakancs acélkaplival, sav-, lúg-, vízálló",null,"39/46",5652.5,10,null,207,9332.2775000000001]
[]
["Cipővédők"]
[]
[]
[45240,"Gumis nylon cipővédő, kék                              100 db/ doboz",null,"db",637.5,"10 dob.",2,210,1052.5125]
[45245,"Csúszásbiztos polipropilén cipővédő, kék     100 db/ doboz",null,"db",1742.5,"3 dob.",2,210,2876.8674999999998]
[45250,"Csúszásbiztos fehér pp. cipővédő kék pe. talppal   50 db/ doboz",null,"db",1190,"20 dob.",2,210,1964.69]
[45255,"Polietilén csizmavédő                                         50 db/ doboz",null,"db",1912.5,"10 dob.","1","web",3157.5374999999999]
[]
["Kiegészítők lábbelikhez"]
[]
[]
["LZT37-47","Filc talpbetét, nedvszívó, meleg, 3mm vastag",null,"37-47",229.5,10,"1",210,378.90449999999998]
["LYT35-45","Sport talpbetét, rugalmas, csúszásbiztos, mosható latex/vászon",null,"35-45",399.5,10,"1",210,659.57450000000006]
["LXT35-45","Párnázott talpbetét, higiénikus, szellőző és nedvszívó anyagból",null,"35-45",425,10,"1",210,701.67499999999995]
["LVT39-46","Bőr talpbetét, 1,8 mm vastag marhabőrből",null,"39-46",374,"10","1",210,617.47400000000005]
["LEPFZ1","Cipőfűző, hengeres 4mm átmérőjű, 90 cm hosszú, fekete",null,null,93.5,"100/10","3","210",154.36850000000001]
["LEPFZ2","Cipőfűző, hengeres 4mm átmérőjű, 110 cm hosszú, fekete",null,null,93.5,"100/10","3","210",154.36850000000001]
["LEPFZ3","Cipőfűző, lapos, 1cm széles, 90 cm hosszú, fekete",null,null,119,"100/10","3","210",196.46899999999999]
["LEPFZ4","Cipőfűző, lapos, 1cm széles, 110 cm hosszú, fekete",null,null,119,"100/10","3","210",196.46899999999999]
["LEPFZ5","Cipőfűző,  lapos, 1cm széles, 90 cm hosszú, narancs/fekete",null,null,110.5,"100/10","3","210",182.43549999999999]
["LEPFZ6","Cipőfűző, hengeres 4mm átmérőjű, 90 cm hosszú, zöld/fekete",null,null,110.5,"100/10","3","210",182.43549999999999]
[]
["Zoknik"]
[]
[]
["ZOKNI","Eco nyári zokni 100% pamut alapanyagból, fehér vagy sötét színben",null,"35-45",238,"100/5","2","web",{"$f":"E1556*1.651","v":392.93799999999999}]
["ZOKNI.","Eco téli zokni 80% pamut, 20% poliamid frottír, fehér vagy sötét színben",null,"35-45",289,"100/5","2","web",477.13900000000001]
["ZOKNI1-2","Comfort nyári zokni 100% pamut alapanyagból, antisztatikus, fehér vagy sötét színben",null,"35-49",255,"180/5","1","211",421.005]
["ZOKNI3-4","Comfort téli zokni 90% pamut, 10% poliamid alapanyagból, antisztatikus, fehér vagy sötét színben",null,"35-49",374,"120/5","1","211",617.47400000000005]
["SYL3-4","Sylvia téli térdzokni: 25% gyapjú, 30% poliészter, 45% akril, kék szín",null,"39/42/46",408,"120/10",4,"web",673.60800000000006]
["ARBB3-4","Arborea 95% Thermolite, 5% Spandex, hőszigetelő zokni, fekete",null,"39/42/46",918,"120/12","4",211,1515.6179999999999]
["NATG3-4","Natura 85% pamut, 15% Spandex, természetes és rugalmas anyagok, szürke",null,"39/42/46",595,"120/12","4",211,982.34500000000003]
["BAMB3-4","Bambou 85% bambusz, 15% Spandex, antibakteriális, természetes és rugalmas, fekete",null,"39/42/46",646,"120/12","4",211,1066.546]
["BASG3-4","Bamboussa 85% bambusz, 15% Spandex, antibakteriális szürke bokazokni",null,"39/42/46",544,"120/12","4",211,898.14400000000001]
["ZOKNI5-6","Sea Classic prémium zokni, tengeri alga és ezüstion összetevők, antibakteriális, tartós ",null,"30-47",1011.5,"180/5",null,210,1669.9865]
["ZOKNI7-8","Sea Trek prémium sportzokni, tengeri alga és ezüstion összetevők, antibakteriális, tartós ",null,"36-47",1453.5,"180/5",null,210,2399.7285000000002]
["ZOKNI9","Sea Sneakers prémium zokni, tengeri alga és ezüstion összetevők, antibakteriális, tartós ",null,"30-47",875.5,"180/5",null,210,1445.4504999999999]
[]
["Hegesztőpajzsok"]
[]
[]
[66200,"Ívhegesztő kézipajzs, 50 x 105-ös látómező",null,null,799,10,null,219,1319.1490000000001]
[66201,"Ívhegesztő kézipajzs, 90 x 110-es látómező",null,null,850,10,null,219,1403.35]
[66202,"Döntött kézi hegesztőpajzs, 90 x 110-es látómező",null,null,1751,10,null,219,2890.9009999999998]
[66203,"Döntött kézi hegesztőpajzs, 90 x 110-es látómező, nyitható alsó ablakkal",null,null,5049,10,null,"219",8335.8989999999994]
["66204","Üvegszálas, döntött kézi hegesztőpajzs, 90 x 110-es látómező",null,null,3493.5,null,null,"új",5767.7685000000001]
[66500,"Hegesztő fejpajzs fix üveggel, 50 x 105-ös látómező",null,null,2210,10,null,220,3648.71]
[66510,"Hegesztő fejpajzs fix üveggel, 90 x 110-es látómező",null,null,2295,10,null,220,3789.0450000000001]
["66514","Üvegszálas fejpajzs fix üveggel, 90 x 110-es látómező",null,null,4360.5,null,null,"új",7199.1855000000005]
[66600,"Hegesztő fejpajzs felhajtható üveggel, 50 x 105-ös",null,null,2992,10,null,220,4939.7920000000004]
[66610,"Hegesztő fejpajzs felhajtható üveggel, 90 x 110-es",null,null,3281,10,null,220,5416.9310000000005]
[66611,"Cserélhető, állítható fejkosár hegesztőpajzsokhoz",null,null,1275,10,null,220,2105.0250000000001]
[66612,"90 x 110-es felhajtható üvegtartó ablak hegesztőpajzsokhoz",null,null,1275,"10*",null,"220",2105.0250000000001]
[66613,"Fejpajzzsal (90 x110) egybeépített nyak- és mellvédő, erős, puha marhahasíték bőrből",null,null,8534,10,null,"220",14089.634]
[66620,"Sisakra szerelhető fejpajzs, 90 x 110-es látómező",null,null,7225,10,null,224,11928.475]
[]
["Elektrooptikai hegesztőpajzsok"]
[]
[]
["66795","Dragon elektrooptikai pajzs 9-13 fokozattal, fényelemes",null,null,13642.5,null,null,"221",22523.767500000002]
["66800","Salamander elektrooptikai pajzs 9-13 fokozattal, fényelemes",null,null,23545,"1",null,"221",38872.794999999998]
["66805","Phenix elektrooptikai pajzs 9-13 fokozattal, fényelemesenix elektrooptikai pajzs 9-13 fokozattal, fény+lítium elemes",null,null,35912.5,"1",null,"221",59291.537499999999]
[66809,"Optrel® OSE Satellite automata pajzs 5-9/9-13 fokozattal",null,null,97792.5,1,"R","web",161455.41750000001]
["3M-501105","3MTM SpeedglasTM 9100V automata pajzs 5-8/9-13 fokozattal, 45 x 93 mm látótér",null,null,84192.5,1,"R",222,139001.8175]
["3M-501815","3MTM SpeedglasTM 9100X automata pajzs 5-8/9-13 fokozattal, oldalablak, 54 x 107 mm",null,null,97792.5,1,"R",222,161455.41750000001]
["3M-501825","3MTM SpeedglasTM 9100XX automata pajzs 5-8/9-13 fokozattal, oldalablak, 73 x 107 mm",null,null,111392.5,1,"R",222,183909.01750000002]
["3M-751x","3MTM SpeedglasTM 100  automata, elemes hegesztőpajzs 8-12 fokozattal",null,null,46070,1,"R",223,76061.570000000007]
[null,". . . Lánglovag (3M 751220), Barbár (3M 751320), Kiborg (3M 751520), Gladiátor (3M 751620)",null," "]
[]
["Alkatrészek automata pajzsokhoz"]
[]
[]
[66810,"Külső polikarbonát előtétüveg Dragon/Salamander pajzsokhoz",null,"110x90",467.5,"50db",null,"új",771.84249999999997]
["66811","Külső polikarbonát előtétüveg Phenix pajzsokhoz",null,"133x114",510,"50db",null,"új",842.01]
[66812,"Belső polikarbonát előtétüveg Dragon pajzshoz",null,"97x47",297.5,"50db",null,"új",491.17250000000001]
["66813","Belső polikarbonát előtétüveg Salamander pajzshoz",null,"96x51,5",297.5,"50db",null,"új",491.17250000000001]
["66814","Belső polikarbonát előtétüveg Phenix pajzshoz",null,"98x66,5",297.5,"50db",null,"új",491.17250000000001]
["66816","Izzadságszívó homlokszalag Dragon/Salamander fejpántszerelvényekhez, 20x4 cm",null,null,297.5,"10db",null,"új",491.17250000000001]
[66821,"Külső védőlemez 66810 Optrel pajzshoz   /5db",null,null,8075,"5db",null,"web",13331.825000000001]
[66822,"Belső védőlemez 66810 Optrel pajzshoz  /5db",null,null,2337.5,"5db",null,"web",3859.2125000000001]
["3M426000","Külső előtétüveg SpeedglassTM 9002 pajzsokhoz  /10db",null,null,6587.5,"10db",null,"új",10875.9625]
["3M428000","Belső előtétüveg SpeedglassTM 9002 pajzsokhoz  /5db",null,null,3315,"5db",null,"új",5473.0650000000005]
["3M776000","Külső védőlemez SpeedglasTM 100 hegesztőpajzsokhoz  /10db",null,null,5482.5,"100/10db","3R","új",9051.6075000000001]
["3M777000","Karcálló külső védőlemez SpeedglasTM 100 hegesztőpajzsokhoz  /10db",null,null,8585,"100/10db","3R","új",14173.835000000001]
["3M165015","Fejpántszerelvény SpeedglasTM 100 hegesztőpajzsokhoz",null,null,5780,1,"R","új",9542.7800000000007]
["3M167520","Izzadságszívó textil homlokszalag SpeedglasTM 100 fejpántszerelvényhez  /2db",null,null,4250,"10/2db","R","új",{"$f":"E1616*1.651","v":7016.75}]
["3M751x90","Pajzstest SpeedglasTM 100 hegesztőpajzsokhoz",null,null,19040,1,"R","új",31435.040000000001]
["3M750020","Automata kazetta SpeedglasTM 100V (8-12) hegesztőpajzsokhoz",null,null,38675,1,"R","új",63852.425000000003]
[]
["Automata hegesztőpajzsok légzésvédővel"]
[]
[]
["3M546615","Speedglass Adflo® szett: 9100FX felhajtható, automata pajzs, X kazettával, motoros légzésvédővel",null,null,313650,"1","R",222,517836.15]
["3M852016","3M Fresh-air C nyomólevegős egység Speedglass hegesztőpajzzsal",null,null,79050,"1","R","új",130511.55]
[]
["Hegesztő szűrőüvegek, látómezők"]
[]
[]
[63100,"Víztiszta előtétüveg hegesztőpajzshoz, 50 x 105 mm ",null,"50x105",39,"100/25*",2,219,64.388999999999996]
["63109-13","Sötétített cserélhető hegesztőüveg, 50 x 105 mm, DIN 9 - DIN 14 között",null,". . . ",111,"100/10*",2,219,183.261]
[63300,"Víztiszta előtétüveg hegesztőpajzshoz, 90 x 110 mm ",null,"90x110",39,"100/25*",2,219,64.388999999999996]
["63309-13","Sötétített cserélhető hegesztőüveg, 90 x 110 mm, DIN 9 - DIN 14 között",null,". . . ",111,"100/10*",2,219,183.261]
["60822m","Polikarbonát csere-előtétlencse hegesztőszemüvegbe, víztiszta  ",null,"Ø 50",115,"50/10*",2,"224",189.86500000000001]
["60823-28","Kerek cserelencse hegesztőszemüvegbe,   3-tól 9-es sötétségig",null,"Ø 50",115,"50/10*",2,224,189.86500000000001]
[]
["Hegesztő függönyök, ponyvák"]
[]
[]
[66924,"Lansflex védőfüggöny hegesztési terület elkülönítésére, 2,1 x 2 m, keret, fékezhető kerekek",null,"2,1x2",72037.5,1,null,223,118933.91250000001]
[66944,"Lansflex védőfüggöny 2,1 x 4 m . . .",null,null,102170,1,null,223,168682.67]
[66918,"Lansarc  hegesztőfüggöny 1,8 x 1,3 m, 0,4mm vastag, hőálló PVC, függesztőgyűrűkkel",null," ",9987.5,1,null,223,16489.362499999999]
[66966,"Ponyva, késleltetett éghetőségű, 150 cm széles, akasztógyűrűkkel / fm",null,"fm",9860,1,null,223,16278.86]
[]
["Hegesztőruházat"]
[]
[]
[56600,"Hegesztőkötény, 60 x 90 cm, vastag, egész marhabőrből",null,"60x90",1785,"25/1",null,225,2947.0349999999999]
[56602,"Hegesztőkötény, 70 x 110 cm",null,"70x110",2252.5,"25/1",null,225,3718.8775000000001]
[56605,"Hegesztőkötény, 90 x 120 cm",null,"90x120",2890,"25/1",null,225,4771.3900000000003]
["57455-57","Hegesztőkabát, marha hasítékbőr",null,"L/XXL",7820,"10/1",null,225,12910.82]
["57465-67","Hegesztőnadrág, marha hasítékbőr",null,"L/XXL",9052.5,"10/1",null,225,14945.6775]
[57460,"Hegesztő lábszárvédő, tépőzáras, marha hasítékbőrből",null,null,1572.5,"50/5",2,226,2596.1975000000002]
[57461,"Hegesztő lábszárvédő, csatos, marha hasítékbőrből",null,null,1912.5,"100/10",2,226,3157.5374999999999]
[57540,"Hegesztő karvédő, gumis, marha hasítékbőrből",null,null,1530,"50/5",2,226,2526.0300000000002]
[57541,"Hegesztő karvédő, csatos, marha hasítékbőrből",null,null,1912.5,"100/10",2,226,3157.5374999999999]
[57550,"Hegesztő karvédő, lángmentesített pamutból",null,null,2635,"10/1",null,"226",4350.3850000000002]
["57553","Hegesztő lábszárvédő, lángmentesített pamutból",null,null,3272.5,"10/1",null,"226",5402.8975]
[57555,"Hegesztő kámzsa fejre és nyakra, lángmentesített pamutból",null,null,2125,"10/1",null,"226",3508.375]
[57560,"Hegesztő kámzsa fejre és nyakra, marha hasítékbőrből",null,null,1870,"10/1",null,226,3087.37]
[57566,"Szemüveggel egybeépített, színbőr hegesztő fej-,  arc-, nyakvédő",null,null,13005,"10/1",null,226,21471.255000000001]
[]
["EP workwear® munkaruházat"]
[]
[]
["FACTORY királykék, egyenes fazonú, klasszikus munkaruhák (245g/m2 35% pamut, 65% poliészter):",null,null,null,null,null,null,"253"]
["RFABV","Factory munkakabát, derekánál gumírozott dzseki fazon, rejtett húzózár, elasztikus mandzsetta, 4 zseb",null,"S/XXXL",2720,"20/1",1,253,4490.72]
["RFABP","Factory deréknadrág, gumibetétes, cipzáros nadrág, övbújtatókkal, biztonsági varrás az ülepen, 6 zseb",null,". . . ",2720,"20/1",1,253,4490.72]
["RFABB","Factory mellesnadrág, csatokkal állítható, hátul gumírozott vállpánt, oldalgombos derék, 5 zseb",null,". . . ",2975,"20/1",1,253,4911.7250000000004]
[null,null,null,null,null,null,null,"253"]
["FACTORY sötétzöld, egyenes fazonú, klasszikus munkaruhák (245g/m2 35% pamut, 65% poliészter):",null,null,null,null,null,null,"253"]
["RFAVV","Factory munkakabát, derekánál gumírozott dzseki fazon, rejtett húzózár, elasztikus mandzsetta, 4 zseb",null,"S/XXXL",2805,"20/1",1,253,4631.0550000000003]
["RFAVP","Factory deréknadrág, gumibetétes, cipzáros nadrág, övbújtatókkal, biztonsági varrás az ülepen, 6 zseb",null,". . . ",2762.5,"20/1",1,253,4560.8874999999998]
["RFAVB","Factory mellesnadrág, csatokkal állítható, hátul gumírozott vállpánt, oldalgombos derék, 5 zseb",null,". . . ",3102.5,"20/1",1,253,5122.2275]
[null,null,null,null,null,null,null,253]
["FACTORY szürke, egyenes fazonú, klasszikus munkaruhák (245g/m2 35% pamut, 65% poliészter):",null,null,null,null,null,null,"253"]
["RFAGV","Factory munkakabát, derekánál gumírozott dzseki fazon, rejtett húzózár, elasztikus mandzsetta, 4 zseb",null,"S/XXXL",2805,"20/1",1,253,4631.0550000000003]
["RFAGP","Factory deréknadrág, gumibetétes, cipzáros nadrág, övbújtatókkal, biztonsági varrás az ülepen, 6 zseb",null,". . . ",2762.5,"20/1",1,253,4560.8874999999998]
["RFAGB","Factory mellesnadrág, csatokkal állítható, hátul gumírozott vállpánt, oldalgombos derék, 5 zseb",null,". . . ",3102.5,"20/1",1,253,5122.2275]
[null,null,null,null,null,null,null,253]
["Kétcipzáros szerelőoverall, 245g/m² kopásálló, nagy szakítószilárdságú anyag, két húzózár végig, ruha fölött is kényelmesen viselhetõ:",null,null,null,null,null,null,"254"]
[74500,". . . piros (74520), szürke (..530), kék (..540), zöld (..550), sötétkék (..560), bézs (..570), fekete (..580)",null,"S/XXXL",4097,"10/1",1,254,6764.1469999999999]
[null,null,null,null,null,null,null,"254"]
["ZORAN sötétzöld, szürke díszítés   ZORAN királykék, sötétkék díszítés RED piros, szürke dísz (290g/m2 35% pamut, 65% poliészter):",null,null,null,null,null,null,"254"]
["R-BO/ZO-V","Kabát dzsekifazonú, hat zsebbel, cipzárral",null,"44/64",6120,"10/1",1,"256-57",{"$f":"E1684*1.651","v":10104.120000000001}]
["R-BO/ZO-P","Deréknadrág biztonsági varrás, dupla térdfolt, hét zseb",null,". . . ",5559,"10/1",1,"256-57",9177.9089999999997]
["R-BO/ZO-B","Kertésznadrág gumis vállpánt, oldalgombos gumizott derék, nyolc zseb és térdeplőtasak",null,". . . ",6817,"10/1",1,"256-57",11254.867]
["R-BO/ZO-G","Mellény cipzáros, hoszított hátrész févyvisszaverő csíkkal, és hét zseb, zöld",null,". . . ",3553,"10/1",1,"256-57",5866.0029999999997]
[null,null,null,null,null,null,null,"256-57"]
["XGCAV","CARPATE zöld  sokzsebes vadászmellény                         ",null,"XL/XXL",4547.5,25,2,"web",7507.9224999999997]
["XGCAN","CARPATE fekete ",null,". . .",null,". . . ",2,"web"]
[]
["Coverguard® munkaruházat családok"]
[]
[]
["BOUND BLACK fekete eltérő színű biztonsági díszvarrás (300g/m2, 60% pamut, 40% poliészter):"]
["RBOVB","Kabát levehető ujjakkal, dzseki fazon, rejtett húzózár, 8 zseb, fényvisszaverő díszcsíkok",null,"S/3XL",8993,"10/1",null,233,14847.442999999999]
["RBOPB","Deréknadrág kopásálló Cordura® térd és boka, 11 zseb plusz 7 kivehető szerszámtartó zseb",null,". . . ",8993,"10/1",null,233,14847.442999999999]
["RBOGB","Mellény cipzáros, 6 zsebbel, fényvisszaverő díszcsíkokkal, fekete vállbetét",null,". . . ",3264,"10/1",null,233,5388.8640000000005]
[]
["BOUND NAVY királykék, eltérő színű biztonsági díszvarrás (300g/m2, 60% pamut, 40% poliészter):"]
["RBOVN","Kabát levehető ujjakkal, dzseki fazon, rejtett húzózár, 8 zseb, fényvisszaverő díszcsíkok",null,"S/3XL",8993,"10/1",null,233,14847.442999999999]
["RBOPN","Deréknadrág kopásálló Cordura® térd és boka, 11 zseb plusz 7 kivehető szerszámtartó zseb",null,". . . ",8993,"10/1",null,233,14847.442999999999]
["RBOGN","Mellény cipzáros, 6 zsebbel, fényvisszaverő díszcsíkokkal, fekete vállbetét",null,". . . ",2482,"10/1",null,233,4097.7820000000002]
[]
["BOUND GREEN khaki, eltérő színű biztonsági díszvarrás (300g/m2, 60% pamut, 40% poliészter):"]
["RBOVG","Kabát levehető ujjakkal, dzseki fazon, rejtett húzózár, 8 zseb, fényvisszaverő díszcsíkok",null,"S/3XL",8993,"10/1",null,235,14847.442999999999]
["RBOPG","Deréknadrág kopásálló Cordura® térd és boka, 11 zseb plusz 7 kivehető szerszámtartó zseb",null,". . . ",8993,"10/1",null,235,14847.442999999999]
["RBOGG","Mellény cipzáros, 6 zsebbel, fényvisszaverő díszcsíkokkal, fekete vállbetét",null,". . . ",2601,"10/1",null,235,4294.2510000000002]
["RBOSG","Short kopásálló Cordura® térdű bermuda, 11 zseb plusz 7 kivehető szerszámtartó zseb",null,". . . ",6732,"10/1",null,235,11114.532000000001]
[]
["BOUND JEANS farmeros, sötét indigó szín, vastag, kopásálló, rugalmas strech alapanyag (320g/m2, 55% pamut, 42% poliészter, 3% Spandex):"]
["RBOVJ","Kabát levehető ujjakkal, dzseki fazon, rejtett húzózár, 8 zseb, fényvisszaverő díszcsíkok",null,"S/3XL",8840,"10/1",null,237,14594.84]
["RBOBJ","Kertésznadrág kopásálló Cordura® térd és boka, 14 zseb plusz 7 kivehető szerszámtartó",null,". . . ",6885,"10/1",null,237,11367.135]
["RBOPJ","Deréknadrág kopásálló Cordura® térd és boka, 11 zseb plusz 7 kivehető szerszámtartó zseb",null,". . . ",8993,"10/1",null,237,14847.442999999999]
["RBOGJ","Mellény cipzáros, 6 zsebbel, fényvisszaverő díszcsíkokkal, antimagnetikus telefontartóval",null,". . . ",3264,"10/1",null,237,5388.8640000000005]
["RBOSJ","Short kopásálló Cordura® térdű bermuda, 11 zseb plusz 7 kivehető szerszámtartó zseb",null,". . . ",6732,"10/1",null,237,11114.532000000001]
[]
["SNIPER ELITE vadászzöld színű, tartós munkaruházat homok díszítéssel, sok zsebbel  (325g/m2,  100% testbarát pamut):"]
["RSNIV","Kabát dzseki fazon rejtett húzózárral, hátrészen bõségránccal, hat zsebbel",null,"S/3XL",5797,"10/1",1,239,9570.8469999999998]
["RSNIP","Deréknadrág dupla térdfolttal, térdeplõtasakkal, hét zsebbel",null,". . . ",4556,"10/1",1,239,7521.9560000000001]
["RSNIB","Kertésznadrág gumis vállpánt, oldalgombos gumizott derék, tizenkét zseb és térdeplőtasak",null,". . . ",6222,"10/1",1,239,10272.522000000001]
["RSNIG","Mellény egyenes szabású, cipzáros mellény hét rátétes- és két cipzáros zseb tolltartókkal",null,". . . ",3145,"10/1",1,239,5192.3950000000004]
["RSNIS","Rövidnadrág bermuda a derékpántnál gumibetéttel és hét zsebbel",null,". . . ",4080,"10/1",1,239,6736.08]
[]
["MERCURE királykék munkaruházat, rendkívül erős 340 g/m²-es 100% pamut, sávoly szövésű, szanforizált, mindkét oldalán duplán szegett:"]
[74100,"Mercure munkakabát, 100% pamut, királykék rejtett gombolás, négy zseb",null,"40/58",3706,"10/1",null,241,6118.6059999999998]
[74200,"Mercure deréknadrág, 100% pamut, biztonsági varrás, négy zseb",null,"38/58",3196,"10/1",null,241,5276.5960000000005]
[74300,"Mercure mellesnadrág, 100% pamut, gumis vállpánt, fémcsatok, öt zseb",null,"36/58",6324,"10/1",null,241,10440.924000000001]
["74300 D","Mercure dupla méretű királykék mellesnadrág, 100% pamut, 340g/m²",null,"40/58",4998,"10/1",null,241,8251.6980000000003]
[74400,"Mercure Confort overall, 100% pamut, cipzáros fazon bőségránccal, négy zsebbel",null,"36/58",5950,"10/1",null,241,9823.4500000000007]
["74106-406","Mercure munkaruházat, nagy méretek: 60-as, 62-es (kabátból 64-es is)",null,"60/62"]
[]
["CARPENTER bézs munkaruházat narancs díszítéssel (245g/m2, 60% testbarát pamut, 40% kopásálló poliészter):"]
["RCARV","Kabát dzsekifazonú, rejtett húzózáras, nyolc zseb, plusz derékon hátsó nagy rekesz",null,"S/3XL",3570,"10/1",1,"web",5894.07]
["RCARP","Deréknadrág biztonsági varrás, dupla térdfolt, kilenc zseb",null,"XS/3XL",3213,"10/1",1,"web",5304.6630000000005]
["RCARB","Kertésznadrág gumis vállpánt, oldalgombos gumizott derék",null,"Xlnon",3629.5,"10/1",1,"web",5992.3045000000002]
["RCARC","Overall állitható csukló- és bokarész, térdeplőtasak, 15 zseb",null,". . . ",4904.5,"10/1",1,"web",8097.3294999999998]
["RCARG","Mellény cipzáros, állítható aljrésszel és sok zsebbel",null,". . . ",2873,"10/1",1,"web",4743.3230000000003]
[]
["NAVY sötétkék munkaruházat szürke díszítéssel (245g/m2, 60% testbarát pamut, 40% kopásálló poliészter):"]
["RNAVV","Kabát dzsekifazonú, rejtett húzózáras, nyolc zseb, plusz derékon hátsó nagy rekesz",null,"S/3XL",5185,"10/1",1,245,8560.4349999999995]
["RNAVP","Deréknadrág biztonsági varrás, dupla térdfolt, kilenc zseb",null,". . . ",4080,"10/1",1,245,6736.08]
["RNAVB","Kertésznadrág gumis vállpánt, oldalgombos gumizott derék",null,". . . ",4828,"10/1",1,246,7971.0280000000002]
["RNAVS","Rövidnadrág bermuda a derékpántnál csatos övszalaggal",null,". . . ",3774,"10/1",1,245,{"$f":"E1744*1.651","v":6230.8739999999998}]
["RNAVC","Overall állitható csukló- és bokarész, térdeplőtasak, 15 zseb",null,". . . ",7004,"10/1",1,246,11563.603999999999]
["RNAVZ","Kétcipzáros szerelőoverall, két húzózár végig, ruha fölött is viselhetõ - Navy és Paddock",null,". . . ",7837,"10*",1,246,12938.887000000001]
["RNAVG","Mellény cipzáros, állítható aljrésszel és sok zsebbel",null,". . . ",3332,"10/1",1,246,5501.1320000000005]
[]
["PADDOCK szürke munkaruházat narancs díszítéssel (245g/m2, 60% testbarát pamut, 40% kopásálló poliészter):"]
["RPADV","Kabát dzsekifazonú, rejtett húzózáras, nyolc zseb, plusz derékon hátsó nagy rekesz",null,"S/3XL",5100,"10/1",1,249,8420.1]
["RPADP","Deréknadrág biztonsági varrás, dupla térdfolt, kilenc zseb",null,". . . ",4029,"10/1",1,248,6651.8789999999999]
["RPADB","Kertésznadrág gumis vállpánt, oldalgombos gumizott derék",null,". . . ",4624,"10/1",1,249,7634.2240000000002]
["RPADS","Rövidnadrág bermuda a derékpántnál csatos övszalaggal",null,". . . ",4284,"10/1",1,248,7072.884]
["RPADC","Overall állitható csukló- és bokarész, térdeplőtasak, 15 zseb",null,". . . ",7004,"10/1",1,248,11563.603999999999]
["RPADG","Mellény cipzáros, állítható aljrésszel és sok zsebbel",null,". . . ",3859,"10/1",1,249,6371.2089999999998]
[]
["GARDENER khaki munkaruházat sötétkék díszítéssel (245g/m2, 60% testbarát pamut, 40% kopásálló poliészter):"]
["RGARV","Kabát dzsekifazonú, rejtett húzózáras, nyolc zseb, plusz derékon hátsó nagy rekesz",null,"M,XXL,3XL",4250,"10/1",1,251,7016.75]
["RGARP","Deréknadrág biztonsági varrás, dupla térdfolt, kilenc zseb",null,"XXL,3XL",3740,"10/1",1,251,6174.74]
["RGARB","Kertésznadrág gumis vállpánt, oldalgombos gumizott derék",null,"S,M,XL,XXL,3XL",3340.5,"10/1",1,251,5515.1655000000001]
["RGARG","Mellény cipzáros, állítható aljrésszel és sok zsebbel",null,". . . ",3264,"10/1",1,251,5388.8640000000005]
[]
["OPERATOR homokszín/szürke díszítéssel  (245g/m2, 60% pamut, 40% poliészter):"]
["ROPEV","Kabát 2/1 levehető ujjú, rejtett húzózáras, nyolc zseb, plusz derékon hátsó nagy rekesz",null,"S/XXL",6545,"10/1","R","242",10805.795]
["ROPEP","Deréknadrág biztonsági varrás, dupla térdfolt, kilenc zseb",null,"XS/3XL",4675,"10/1","R","242",7718.4250000000002]
[]
["MAGMA szürke munkaruházat piros díszítéssel (245g/m2, 35% testbarát pamut, 65% kopásálló poliészter):"]
["RMAGV","Kabát dzsekifazonú, állig érő húzózár, öt zseb, állítható mandzsetta",null,"S/3XL",4462.5,"10/1",1,"243",7367.5875000000005]
["RMAGP","Deréknadrág biztonsági varrás, dupla térdfolt, hat zseb",null,". . . ",3723,"10/1",1,"243",6146.6729999999998]
["RMAGB","Kertésznadrág gumis vállpánt, oldalgombos gumizott derék",null,". . . ",4428.5,"10/1",1,"243",7311.4535000000005]
[]
["CLASS szürke munkaruhák nagy igénybevételre (275g/m2, 65% poliészter, 35% pamut):"]
["RCLVG","Class kabát, cipzáras plusz patentos, 8 zseb,  plusz derékon hátsó nagy rekesz",null,"S/3XL",7140,"10/1",null,"230",11788.14]
["RCLPG","Class deréknadrág, Cordura® térd és boka, 10 zseb, végig tripla varrás, térdeplőtasak",null,"S/3XL",7140,"10/1",null,"230",11788.14]
[]
["CLASS fekete munkaruhák nagy igénybevételre (275g/m2, 65% poliészter, 35% pamut):"]
["RCLVB","Class kabát, cipzáras plusz patentos, 8 zseb,  plusz derékon hátsó nagy rekesz",null,"S/3XL",7140,"10/1",null,"230",11788.14]
["RCLPB","Class deréknadrág, Cordura® térd és boka, 10 zseb, végig tripla varrás, térdeplőtasak",null,"S/3XL",7140,"10/1",null,"230",11788.14]
[]
["CLASS barna munkaruhák nagy igénybevételre (275g/m2, 65% poliészter, 35% pamut):"]
["RCLVC","Class kabát, cipzáras plusz patentos, 8 zseb,  plusz derékon hátsó nagy rekesz",null,"S/3XL",7140,"10/1",null,"230",11788.14]
["RCLPC","Class deréknadrág, Cordura® térd és boka, 10 zseb, végig tripla varrás, térdeplőtasak",null,"S/3XL",7140,"10/1",null,"230",11788.14]
[]
["CLASS fehér/szürke munkaruhák nagy igénybevételre (275g/m2, 65% poliészter, 35% pamut):"]
["RCLVW","Class kabát, cipzáras plusz patentos, 8 zseb,  plusz derékon hátsó nagy rekesz",null,"S/3XL",7140,"10/1",null,"230",11788.14]
["RCLPW","Class deréknadrág, Cordura® térd és boka, 10 zseb, végig tripla varrás, térdeplőtasak",null,"S/3XL",7140,"10/1",null,"230",11788.14]
[]
["Gasztro ruházat"]
[]
[]
["45900","Szakácskabát hosszú ujjú, fehér, bordó szegély, kétsoros, cserélhető gombolás, 35% pamut, 65% pes, 245g/m2",null,"XS/3XL",3289.5,"10/1",null,"258",5430.9645]
["45920","Szakácskabát rövid ujjú, fehér, fekete gallér, kétsoros, cserélhető gombolás, 35% pamut, 65% pes, 245g/m2 ",null,"XS/3XL",2932.5,"10/1","R","258",4841.5574999999999]
["45940","Szakácsnadrág pepita mintás, apró kockákkal, gumibetétes derék, oldalzsebek díszszegéllyel, 100%, 245g/m2",null,"XS/3XL",3170.5,"10/1",null,"258",5234.4955]
["45960","Szakácsnadrág pepita mintás, nagyobb kockák, gumibetétes derék, oldalzsebek díszszegéllyel, 100%, 245g/m2",null,"XS/3XL",3493.5,"10/1","R","258",5767.7685000000001]
["45990-92","Séfsapka bőségráncokkal, magas fejtetővel, fehér, fekete vagy kockás színben, 35% pamut, 65% pes, 190g/m2",null," ",880,"10/1","R","258",1452.88]
["45993-95","Szakácssapka lapos fejtetővel, gumibetéttel, fehér, fekete vagy kockás színben, 35% pamut, 65% pes, 190g/m2",null," ",370,"10/1","R","258",610.87]
["45996-98","Fejkendős sapka hátul kötővel, fehér, fekete vagy kockás színben, 35% pamut, 65% pes, 190g/m2",null," ",510,"10/1","R","258",842.01]
["45980-83","Teljes kötény, széles mellzseb, kontraszt díszcsík, fehér, fekete, bordó, zöld, 35% pamut, 65% pes, 245g/m2",null,"90x70",1317.5,"10/1",null,"259",2175.1925000000001]
["45980V","Teljes kötény, impregnált kivitel, fehér, fekete, bordó, zöld, 35% pamut, 65% pes, 245g/m2",null,"90x70",1640,"10/1","R","258",2707.64]
["45985-88","Félkötény, széles mellzseb, kontraszt díszcsík, fehér, fekete, bordó, zöld, 35% pamut, 65% pes, 245g/m2",null,"72x85",1130.5,"10/1",null,"259",1866.4555]
["45985V","Félkötény, impregnált kivitel, fehér, fekete, bordó, zöld, 35% pamut, 65% pes, 245g/m2",null,"72x85",1310,"10/1","R","258",2162.81]
[]
["Fehér textilruházat"]
[]
[]
[45800,"Fehér köpeny, 120 cm hosszú, 100% pamut, 230 g/m²",null,"44/62",2839,"10/1",null,260,4687.1890000000003]
[45840,"Fehér kabát, egyenes fazon, 100% pamut, 230 g/m²",null,"44/62",2414,"10/1",null,260,3985.5140000000001]
[45820,"Fehér deréknadrág, 3 zseb, övbújtatók, 100% pamut, 230 g/m²",null,"44/62",2278,"10/1",null,260,{"$f":"E1808*1.651","v":3760.9780000000001}]
[45860,"Fehér kertésznadrág, gumibetétes vállpánt, 4 zseb, 100% pamut, 230 g/m²",null,"44/62",2839,"10/1",null,260,4687.1890000000003]
["RFAWV","Factory fehér kabát, dzseki fazon, 4 zseb, 35% pamut, 65% poliészter, 245g/m2",null,"S/3XL",4165,"10/1",null,253,6876.415]
["RFAWP","Factory fehér deréknadrág, gumibetét, biztonsági varrás, 6 zseb, 35% pamut, 65% poliészter, 245g/m2",null,"S/3XL",4165,"10/1",null,253,6876.415]
["RFAWB","Factory fehér mellesnadrág, csatos, gumírozott vállpánt, 5 zseb, 35% pamut, 65% poliészter, 245g/m2",null,"S/3XL",4845,"10/1",null,253,7999.0950000000003]
["45880","Női köpeny klasszikus galléros fazon, két oldalzseb, 100% pamut, 220 g/m²",null,"XS/XL",2873,"10/1",null,259,4743.3230000000003]
["45890","Női tunika gallér nélküli karcsúsított fazon, 35% pamut, 65% poliészter, 245g/m2",null,"XS/XL",2873,"10/1",null,259,4743.3230000000003]
["45630-31","Élelmiszeripari pamutsapka, sildes, gumis hátsórésszel, sima vagy hálós tetővel",null,null,612,"20/5",2,346,1010.412]
[56190,"Vászonkötény, fehér vagy kék színben, 90 x 70 cm-es, 100% pamut ",null,"90x70",969,"10/1","1",275,1599.819]
[]
["Food fehér vízhatlan ruházat"]
[]
[]
[56200,"Food kötény, könnyű, vegyszerálló 210g/m2 PU anyag PVC háttal, 120 x 90 cm",null,"120x90",2805,"25/1",null,261,4631.0550000000003]
[45350,"Food karvédő, olaj-és vegyszerálló PU anyag PVC háttal, gumis végekkel, 45 x 20 cm",null,"45x20",1190,"100/10",null,261,1964.69]
["FOOV","Food kabát, vízhatlan, vegyszerálló 40% poliuretán 60% poliészter, levehető kapucni",null,"S/XXL",6290,"10/1",null,261,10384.790000000001]
["FOOB","Food mellesnadrág, gumis vállpánttal, bellső mellzsebbel, szűkíthető bokarésszel",null,"S/XXL",5057.5,"10/1",null,261,8349.9325000000008]
["FOOG","Food mellény, vízhatlan külső, 100g/m2 bélés, álló gallér",null,"S/XXL",5057.5,"10/1",null,261,8349.9325000000008]
[]
["Vízhatlan PVC védőöltözetek"]
[]
[]
[50200,"PVC esőruha, sav- és lúgálló, kapucnis",null,null,null,10,3,262]
[null,". . . zöld:     M(50200), L(50201),  XL(50202),  XXL(50203),  XXXL(50204)",null,"M-3XL",1360,10,3,262,2245.36]
[null,". . . sárga:  M(50210), L(50211),  XL(50212),  XXL(50213),  XXXL(50214)",null,"M-3XL",1360,". . . ",3,262,2245.36]
[50300,"PVC esőköpeny, 120 cm hosszú",null,null,null,20,3,262]
[null,". . . zöld:     M(50300), L(50301),  XL(50302),  XXL(50303),  XXXL(50304)",null,"M-3XL",1139,20,3,262,1880.489]
[null,". . . sárga:  M(50310), L(50311),  XL(50312),  XXL(50313),  XXXL(50314)",null,"M-3XL",1139,". . . ",3,262,1880.489]
[50400,"PVC esőköpeny, 100 cm hosszú",null,null,null,20,3,262]
[null,". . . zöld:     L(50401),  XL(50402),  XXL(50403),  XXXL(50404)",null,"L-3XL",1122,20,3,262,1852.422]
[null,". . . sárga:  L(50411),  XL(50412),  XXL(50413),  XXXL(50414)",null,"L-3XL",1122,". . . ",3,262,1852.422]
["99538-48","Nadrág+csizma  sav- és lúgálló, hónaljig érő PVC, pánttal",null,"38/48",9690,null,null,266,15998.19]
[99500,"Vastag PVC felső a nadrág+csizmához, sav- és lúgálló",null,"XL/XXL",5355,null,null,266,8841.1049999999996]
["99338-48","Combcsizma  sav- és lúgálló, PVC, zöld vagy fehér",null,"38/48",8755,null,null,266,14454.505000000001]
[]
["Vízhatlan PA orkánöltözetek"]
[]
[]
[50500,"Vízhatlan sav- és lúgálló orkánruha",null,"M-3XL",2040,20,2,264,3368.04]
[null,". . . zöld:     M(50500), L(50501),  XL(50502),  XXL(50503),  XXXL(50504)",null,"M-3XL",2040,20,2,264,3368.04]
[null,". . . sárga:  M(50510), L(50511),  XL(50512),  XXL(50513),  XXXL(50514)",null,". . . ",null,". . . ",2,264]
[null,". . . kék:      M(50520), L(50521),  XL(50522),  XXL(50523),  XXXL(50524)",null,". . . ",null,". . . ",2,264]
["50700",". . . fluo sárga/fekete:      L(50711),  XL(50712),  XXL(50713),  XXXL(50714)",null,"L-3XL",3060,". . . ",2,336,5052.0600000000004]
[null,". . . fluo narancs/fekete:  L(50731),  XL(50732),  XXL(50733),  XXXL(50734)",null,". . . ",null,". . . ",2,336]
["50540",". . . terepmintás:            L(50541),  XL(50542),  XXL(50543),  XXXL(50544)",null,". . . ",2507.5,". . . ",2,264,4139.8824999999997]
[50550,"Vízhatlan orkándzseki, 80 cm hosszú",null,"L-3XL",1657.5,20,2,263,2736.5325000000003]
[null,". . . zöld:     L(50551),  XL(50552),  XXL(50553),  XXXL(50554)",null,"L-3XL",1657.5,20,2,263,2736.5325000000003]
[null,". . . kék:      L(50571),  XL(50572),  XXL(50573),  XXXL(50574)",null,". . . ",null,". . . ",2,263]
[50580,"Vízhatlan orkán overall két cipzárral",null,"XL-XXL",2762.5,20,2,263,4560.8874999999998]
[" ",". . . zöld:     XL(50582),  XXL(50583)",null,"XL-XXL",2762.5,20,2,263,4560.8874999999998]
[null,". . . kék:      XL(50592),  XXL(50593)",null,". . . ",null,". . . ",2,263]
[50600,"Vízhatlan orkánköpeny, 120 cm hosszú",null,"L-3XL",1742.5,20,2,263,2876.8674999999998]
[null,". . . zöld:     L(50601),  XL(50602),  XXL(50603),  XXXL(50604)",null,"L-3XL",1742.5,20,2,263,2876.8674999999998]
[null,". . . sárga:  L(50611),  XL(50612),  XXL(50613),  XXXL(50614)",null,". . . ",null,". . . ",2,263]
[null,". . . kék:      L(50621),  XL(50622),  XXL(50623),  XXXL(50624)",null,". . . ",null,". . . ",2,263]
[]
["Vízhatlan PU védőöltözetek"]
[]
[]
["50900-23","Vízhatlan, hajlékony PU/PVC esőruha, erős 300 g/m2 anyag, varrott plusz hegesztett",null,"M/XXL",6120,10,null,"265",10104.120000000001]
[null,". . . zöld:     M(50900), L(50901),  XL(50902),  XXL(50903)",null,"M/XXL",6120,10,null,"265",10104.120000000001]
[" ",". . . sárga:  M(50910), L(50911),  XL(50912),  XXL(50913)",null,". . . ",null,". . . ",null,"265"]
[null,". . . kék:      M(50920), L(50921),  XL(50922),  XXL(50923)",null,". . . ",null,". . . ",null,"265"]
["50800-23","Vízhatlan, hajlékony poliuretán esőruha, könnyű 170 g/m2, varrott plusz hegesztett, szellőző",null,"M/XXL",6417.5,10,null,"265",10595.2925]
[null,". . . zöld:     M(50800), L(50801),  XL(50802),  XXL(50803)",null,"M/XXL",6417.5,10,null,"265",{"$f":"E1872*1.651","v":10595.2925}]
[" ",". . . sárga:  M(50810), L(50811),  XL(50812),  XXL(50813)",null,". . . ",null,". . . ",null,"265"]
[null,". . . kék:      M(50820), L(50821),  XL(50822),  XXL(50823)",null,". . . ",null,". . . ",null,"265"]
["50850-53","Hajlékony poliuretán esőkabát, zöld, 170 g/m2 könnyű, varrott plusz hegesztett, szellőző",null,"M/XXL",5822.5,10,null,"265",9612.9475000000002]
["50880-93","Vízhatlan poliuretán overall, két cipzáros, könnyű 170 g/m2, varrott plusz hegesztett",null,"M/XXL",13557.5,"10","R","265",22383.432499999999]
[null,". . . zöld:     M(50880), L(50881),  XL(50882),  XXL(50883)",null,". . . ",null,null,null,"265"]
[null,". . . kék:      M(50890), L(50891),  XL(50892),  XXL(50893)",null,". . . ",null,null,null,"265"]
[]
["Kötények"]
[]
[]
[56175,"Sav- és lúgálló zöld PVC kötény,  110 x 75 cm",null,"110x75",391,50,2,266,645.54100000000005]
[56176,". . .                                                 120 x 90 cm",null,"120x90",578,". . . ",2,266,954.27800000000002]
[56180,"Sav- és lúgálló fehér PVC kötény, 110 x 75 cm",null,"110x75",391,50,2,266,645.54100000000005]
[56181,". . .                                                 120 x 90 cm",null,"120x90",578,". . . ",2,266,954.27800000000002]
[56182,"Fehér műbőr henteskötény,sav-, lúg-, olajálló, 0,8 mm vastag",null,"100x70",1870,10,null,266,3087.37]
[56183,". . .",null,"120x90",2550,". . . ",null,266,4210.05]
[56184,"Zöld műbőr kötény,sav-, lúg-, olajálló, 0,8 mm vastag",null,"100x70",1870,10,null,266,3087.37]
[56185,". . .",null,"120x90",2550,". . . ",null,266,4210.05]
[]
["Buck Up® pólók, ingek"]
[]
[]
["ZANTBL","Antares pamutpóló, 150 g/m², fehér színben",null,"S/XXL",637.5,"10/1","2",268,1052.5125]
["ZANT…",". . . egyéb színek:  szürke (GC), fekete (NO), sötétkék (MA), világoskék (CI), zöld (VF), sárga (JA), piros (RG)",null,". . .",680,". . . ","2",268,1122.68]
["ZASTBL","Asterion pamutpóló, 190 g/m², fehér színű",null,"S/XXL",850,"10/1","2",268,1403.35]
["ZAST…",". . . egyéb színek: sötétkék (MA), szürke (GC), fekete (NO)",null,". . .",960.5,". . . ","2",268,1585.7855]
["ZTUP","UP póló, 180 g/m², 95%pamut 5%Spandex, formatartó, elasztikus anyag, díszvarrással",null,"S/XXL",2023,"10",null,270,3339.973]
["ZTUP…",". . . színek: fehér (W), sötétkék (N), szürke, fekete (B), barna (T)",null,". . .",null,". . . ",null,270]
["ZCAS","Castor teniszpóló, 220 g/m², galléros, gombos, fehér (BL) és bézs(BE) színben",null,"S/XXL",1050,20,2,269,1733.55]
["ZCAS…",". . . egyéb színek: sötétkék (MA), világoskék (CI), piros (RG), szürke (GC), fekete (NO)",null,". . .",1598,". . . ",2,269,2638.2980000000002]
["ZCUR","Cursa  teniszpóló, 220 g/m², hosszú ujjú, galléros",null,"S/XXL",2125,20,2,269,3508.375]
["ZCUR…",". . . egyéb színek: sötétkék (MA), szürke (GC), fekete (NO)",null,". . .",null,". . . ",2,269]
["ZARA","Ara ujjatlan, környakas póló, 150 g/m², 80% pamut, 20% poliészter",null,"S/XXXL",1275,"10",2,"új ",2105.0250000000001]
["ZARA…",". . . színek: fehér (BL), bézs (BE), barna (LM), kék (MA), szürke (GC), sötétszürke (MG), fekete (NO)",null,". . .",null,". . .",2,"új "]
["ZAUR","Auriga hosszú ujjú, környakas póló, 190 g/m², 80% pamut, 20% poliészter",null,"S/XXXL",2550,"10",2,"271",4210.05]
["ZAUR…",". . . színek: fehér (BL), bézs (BE), barna (LM), kék (MA), szürke (GC), sötétszürke (MG), fekete (NO)",null,". . . ",null,". . .",2,"271"]
["ZARI","Aries V nyakas rövid ujjú póló, 150 g/m², 80% pamut, 20% poliészter",null,null,1657.5,"10",2,270,2736.5325000000003]
["ZARI…",". . . színek: fehér (BL), bézs (BE), barna (LM), kék (MA), szürke (GC), sötétszürke (MG), fekete (NO)",null,". . .",null,". . .",2,270]
["ZAQU","Aquila V nyakas hosszú ujjú póló, 150 g/m², 80% pamut, 20% poliészter",null,"S/XXXL",2125,"10",2,"271",3508.375]
["ZAQU…",". . . színek: fehér (BL), bézs (BE), barna (LM), kék (MA), szürke (GC), sötétszürke (MG), fekete (NO)",null,". . . ",null,". . .",2,"271"]
[]
["Carewear® UV protection fényvédő ruházat"]
[]
[]
["UV451K","Hosszú ujjú póló, beleszőtt UPF 50+ fényvédő, fehér, könnyű, szellőző, gyerek méretek",null,"2-10",4710,"10/1",null,"272",7776.21]
["UV451A","Hosszú ujjú póló, beleszőtt UPF 50+ fényvédő, fehér, könnyű, szellőző, felnőtt méretek",null,"XS/XXL",5270,"10/1",null,"272",8700.77]
["UV453K","Galléros teniszpóló, rövid ujjú, beleszőtt UPF 50+ fényvédő, tencel sun, fehér, gerek méretek",null,"2-10",5780,"10/1",null,"272",9542.7800000000007]
["UV453A","Galléros teniszpóló, rövid ujjú, beleszőtt UPF 50+ fényvédő, tencel sun, fehér, felnőtt méretek",null,"XS/XXL",6000,"10/1",null,"272",9906]
["UV452K","Galléros teniszpóló, hosszú ujjú, beleszőtt UPF 50+ fényvédő, tencel sun, fehér, gerek méretek",null,"2-10",6200,"10/1",null,"272",10236.200000000001]
["UV452A","Galléros teniszpóló, hosszú ujjú, beleszőtt UPF 50+ fényvédő, tencel sun, fehér, felnőtt méretek",null,"XS/XXL",6410,"10/1",null,"272",10582.91]
[]
["Buck Up® nadrágok"]
[]
[]
["XSIRJE","Sirius farmernadrág, kék, egyenes fazonú, 100% pamut, öt zsebbel, 420 g/m²",null,"36/56",4292.5,10,null,273,7086.9175000000005]
["XSKAJE","Skat farmernadrág, koptatott kék, 100% pamut, hét zseb, két hátsó szerszámtartó, 420 g/m²",null,"36/56",4547.5,"10",null,"273",7507.9224999999997]
["XSPIJE","Spica farmernadrág, koptatott indigó, 100% pamut, nyolc zseb és térderősítés, 355 g/m²",null,"36/56",4802.5,"10",null,"273",7928.9274999999998]
["XPICJ","Pick up farmernadrág, kék, szakadásálló Cordura® térd- és bokarész, 5% rugalmas spandex",null,"XS/3XL",9180,null,null,"273",15156.18]
["RBOP","BOUND II pantallók, Cordura® térd+bokarész, sok zseb, 300g/m2, homok-bézs (S) vagy piros ( R)",null,"S/3XL",5763,"10",null,274,9514.7129999999997]
[]
["Meleg alsóruházat"]
[]
[]
[576660,"Jégeralsó  szürke, bolyhos",null,"XS/4XL",2975,5,2,267,{"$f":"E1936*1.651","v":4911.7250000000004}]
[576670,"Jégerfelső szürke, bolyhos",null,"XS/4XL",2975,5,2,267,4911.7250000000004]
[576680,"Jégeralsó fehér, pamut",null,"M/3XL",1530,20,null,267,2526.0300000000002]
[576690,"Jégerfelső fehér, pamut",null,"L/XXL",1530,20,null,267,2526.0300000000002]
["XBODP","Bodywarmer  jégeralsó, szója SPF/Spandex szellőző, selymes, szürke thermo anyag",null,"M/XL",5227.5,20,null,"267",8630.6025000000009]
["XBODT","Bodywarmer jégerfelső, szója SPF/Spandex szellőző, selymes, szürke thermo anyag",null,"M/XL",5227.5,20,null,"267",8630.6025000000009]
["XBOLP","Bodywarmer Lady női jégerfelső, szója SPF/Spandex szellőző, selymes, szürke thermo anyag",null,"S/L",5312.5,20,null,"267",8770.9375]
["XBOLT","Bodywarmer Lady női jégeralsó, szója SPF/Spandex szellőző, selymes, szürke thermo anyag",null,"S/L",5312.5,20,null,"267",8770.9375]
["XBOSB","Bodysoft boxer, 65% bambusz, 30% tencel, 5% Spandex, fekete antibakteriális anyag",null,"M/XL",2550,20,null,267,4210.05]
["XBOSS","Bodysoft rövid ujjú felső, 65% bambusz, 30% tencel, 5% Spandex, fekete, antibakteriális",null,"M/XL",3782.5,20,null,267,6244.9075000000003]
["75838-41","Flaneling, 550 g-os hosszú ujjú pamut, kisebb méret (38-tól 42-ig)",null,"38/42",1581,10,null,275,2610.2310000000002]
["75842-47","Flaneling, 550 g-os hosszú ujjú pamut, nagyobb méret (43-tól 48-ig)",null,"43/48",1887,10,null,275,3115.4369999999999]
["57659-63","Vesevédő műszőrmés, 25 cm széles, 90-130 cm hosszú",null,"90/130",1827.5,5,2,275,3017.2024999999999]
[]
["EP workwear® ízületvédők és övek"]
[]
[]
["RKNEE","Térdeplőbetét Coverguard® munkanadrágok dupla, zárható térdtasakjába",null,null,1275,null,null,"275",2105.0250000000001]
["RKNEG","Coverguard® minősített térdvédő, gélt tartalmazó EVA szivacs belső, vízhatlan műanyag külső",null," ",5270,"10",null,"275",8700.77]
[57650,"Bőr térdvédő szivacsbéléssel, csatos pánttal",null,null,1657.5,"100/5",2,275,2736.5325000000003]
[57656,"Confort 18 csúszásbiztos gumi térdvédő",null,null,2550,"100/10","R",275,4210.05]
[57657,"Sárga csúszásbiztos poliuretán térdvédő",null,null,2210,"100/5",2,275,3648.71]
[78450,"Térdvédő etilén-vinil-acetát párnázat, szellőző külső PVC burok, rugalmas pántok",null,null,2720,10,null,275,4490.72]
[57670,"Csuklószorító, bőr   / db",null,null,340,"100/10",3,"web",561.34]
[57680,"Vállvédő, marhabőr, párnás szvacsbetéttel",null,null,1827.5,"5/1","2",275,3017.2024999999999]
[5880,"Ujjvédő szín marhabőrből, csuklószalaggal   / db",null,null,255,"100/10",3,"web",421.005]
["78120-23","Deréktámasztó öv szélesebb, dupla neoprén, szellőző hátrész, merevítők, állítható vállpántok",null,"S/XL",4930,10,null,276,8139.43]
["78210-12","Rugalmas kéztámasz neoprénből, tépőzárral",null,"S/M/L",1912.5,10,2,276,3157.5374999999999]
[78250,"Csuklószorító hüvelyktámasszal, neoprén",null,"L/XL",2720,10,2,276,4490.72]
["78310-12","Rugalmas könyökvédő neoprénből, tépőzárral",null,"S/M/L",2422.5,10,2,276,3999.5475000000001]
["78350-52","Térdvédő , rugalmas, szigetelő neoprénből, tépőzárral",null,null,3102.5,10,2,276,5122.2275]
["RBELB","Deréköv munkaruhákhoz, állítható, műanyag csatos poliamid hevederszalag, 140 cm",null,null,510,10,null,276,842.01]
["RBELC","Coverguard deréköv, állítható, fémcsatos pamutvászon, 120 x 4 cm",null,null,2210,10,null,276,3648.71]
["RBELE","Coverguard deréköv, állítható, fémcsatos, rugalmas polipropilén/elasztán, 120 x 4 cm",null,null,2210,10,null,276,3648.71]
[]
["Lotto® Works munkaruhák"]
[]
[]
["ON8973","Deréknadrág acélkék szín, biztonsági varrás, kopásálló poliészter betétek, 6 zseb, 100% pamut, 240 g/m²",null,"S/XXL",13345,null,"R","277",22032.595000000001]
["ON8979","Kabát kétkocsis cipzár, két nagy zseb, gumibetétes aljrész, 100% pamut, 240 g/m²",null,"S/XXL",14237.5,null,"R","277",23506.112499999999]
["ON8977","Mellény betétes vállrész, lecipzározható plusz szerszámtartó zsebek, 100% pamut, 240 g/m² ",null,"S/XXL",11432.5,null,"R","277",18875.057499999999]
["OL8021","Flex póló, feliratos, acélkék színű, 100% pamut, 180 g/m²",null,"S/XXL",7650,"10/1",null,"277",12630.15]
["OL8023","Flex teniszpóló, feliratos, galléros piké fazon, acélkék,180 g/m²",null,"S/XXL",10242.5,"10/1",null,"277",16910.3675]
["ON8968","Force polár pulóver cipzáros acélkék mikropolár, két zseb, 260 g/m² ",null,"S/XXL",5142.5,"10/1","R","277",8490.2674999999999]
["OH4390","Lotto Worker teniszpóló, galléros, zsebes piké fazon, 220 g/m² pamut, acélkék színben",null,"S/XXL",5695,"10/1",null,"277",9402.4449999999997]
["OJ3711","Lotto Cross pamutpóló, mintás, 165 g/m², acélkék színben",null,"S/XXL",4547.5,"10/1",null,"277",7507.9224999999997]
[]
["Buck Up® pulóverek"]
[]
[]
["XSUP","UP belül bolyhos kamionos pulóver cipzáros nyakkal, 60% poliészter, 40% pamut, 320 g/m2",null,"M/XXL",5822.5,10,null,"282",9612.9475000000002]
[null,". . . színek: fekete (XSUPB), fehér (XSUPW), dohány (XSUPT)",null,". . .",null,". . . ",null,"282"]
["XKAU","KAUS környakas pulóver, 50% pamut 50% poliészter, 320 g/m2 (szürke, fekete XXL méretben is)",null,"M/XXL",3740,10,null,"282",6174.74]
[null,". . . színek: kék (XKAUMA), szürke (XKAUGC), fekete (XKAUNO), piros (XKAURG)",null,". . .",null,". . . ",null,"282"]
["XMIR","MIRAM kötött kamionos pulóver cipzáros nyakkal, 70% akril, 30% gyapjú, 380 g/m2",null,"M/XXL",null,10,null,"282"]
[null,". . . színek: kék (XMIRAM), zöld (XMIRVO), szürke (XMIRGA), fekete (XMIRNO)",null,". . .",4632.5,". . . ",null,"282",7648.2574999999997]
[null,". . . bézs (XMIRBE)",null,". . .",2082.5,null,null,null,3438.2075]
["XPEG","PEGASUS cipzáras szabadidőfölső, kapucni, bolyhos belső,  60% pamut, 40% poliészter, 340 g/m2",null,"S/XXXL",5822.5,null,null,283,9612.9475000000002]
[null,". . . színek:  kék (XPEGMA), barna (XPEGLM), szürke (XPEGGC)",null,". . . ",null,null,null,283]
["XPHO","PHOENIX bebújós szabadidőfölső, kapucni, bolyhos belső,  60% pamut, 40% poliészter, 340 g/m2",null,"S/XXXL",5737.5,null,null,283,9472.6124999999993]
[null,". . . színek:  kék (XPHOMA), barna (XPHOLM), szürke (XPHOGC)",null,". . . ",null,null,null,283]
["XKAP","KAP bebújós, galléros pulóver, gombos nyak, könyökerősítés, 60% pamut, 40% poliészter, 340 g/m2",null,"S/XXXL",5100,null,null,283,8420.1]
[null,". . . színek:  kék (XKAPMA), barna (XKAPLM), szürke (XKAPMG), fekete (XKAPNO)",null,". . . ",null,null,null,283]
[]
["Coverguard® bélelt mellények"]
[]
[]
["RNAVM","NAVY Medium sötétkék/szürke bélelt mellény",null,"M/XXL",6290,10,null,"245",{"$f":"E2003*1.651","v":10384.790000000001}]
["XGCHB","CHOUKA  kék steppelt mellény, három zsebbel",null,"M/XXXL",2040,10,null,284,3368.04]
["XGCSB","CHOUKA  SLEEVE kék, levehető ujjakkal mellénnyé alakítható kabát",null,"M/XXL",3110,10,null,284,5134.6099999999997]
["XGCOB","CONDOR  kék steppelt mellény, zsebekkel",null,"S/XXXL",2770,10,null,284,4573.2700000000004]
["XGCON","CONDOR  fekete",null,"S/XXXL",2640,10,null,"284",4358.6400000000003]
["XALBW","ALBATROS  fehér steppelt mellény",null,"S/XXL",2550,"10/1",null,"286",4210.05]
["Y52500","ARCO kék vízhatlan mellény, sokzsebes",null,"S/XXXL",4080,10,null,284,6736.08]
["Y52510","ARCO zöld",null,". . .",null,". . . ",null,284]
["XPOLV","POLENA  zöld sokzsebes mellény          ",null,"S/XXXL",3320,10,null,285,{"$f":"E2011*1.651","v":5481.32}]
["XPOLB","POLENA  kék",null,". . .",null,". . .",null,285]
["XPOLN","POLENA  fekete",null,null,null,". . .",null,285]
["XPSLB","POLENA SLEEVE  kék, levehető ujjakkal mellénnyé alakítható kabát",null,"M/XXL",4640,10,null,285,{"$f":"E2014*1.651","v":7660.64}]
["XPSLV","POLENA SLEEVE  zöld",null,". . .",null,". . . ",null,285]
["XBREV","BRESSAN  vadászmellény, zöld, sokzsebes, erősített vállú",null,"S/XXXL",4000,10,null,286,{"$f":"E2016*1.651","v":6604}]
["XLEMB","LEMAN  sötétkék/kék kifordítható vízhatlan/polár mellény",null,"M/XXL",3910,10,null,287,{"$f":"E2017*1.651","v":6455.41}]
["XLEMG","LEMAN  szürke/fekete",null,". . .",null,". . . ",null,"287"]
["XCARB","CARISTE  kék/szürke kifordítható vízhatlan/polár mellény",null,"M/XXL",4680,10,null,287,{"$f":"E2019*1.651","v":7726.68}]
["XCARN","CARISTE  fekete/szürke",null,". . .",null,". . . ",null,287]
["XGRIP","RIPSTOP kék/fekete sokzsebes mellény, szakadásbiztos, vízhatlan anyag, polár belső",null,"M/XXL",5150,10,null,288,{"$f":"E2021*1.651","v":8502.65}]
["XGRIS","RIPSTOP szürke/fekete mellény",null,". . .",null,". . . ",null,288]
["XGMRI","RIPSTOP fekete/barna sokzsebes mellény, szakadásbiztos, vízhatlan anyag, taft belső",null,". . .",null,". . . ",null,288]
["XGMRB","RIPSTOP fekete/fekete mellény",null,". . .",null,". . . ",null,288]
[]
["Polár és softshell mellények"]
[]
[]
["XGPOB","POLÁR mellény, kék, két zsebbel",null,"M/XXL",2640,10,null,286,{"$f":"E2029*1.651","v":4358.6400000000003}]
["XGPOG","POLÁR mellény, szürke",null,". . .",null,". . . ",null,"286"]
["XGPON","POLÁR mellény, fekete",null,". . .",null,". . . ",null,"286"]
["XGANB","ANGARA  kék mellény, vastag mikro-polár",null,"XS/XXL",4850,10,null,289,{"$f":"E2032*1.651","v":8007.35}]
["XGANR","ANGARA  piros mellény",null,". . .",null,". . . ",null,289]
["XGANM","ANGARA  barna mellény",null,". . .",null,". . . ",null,"289"]
["XGANG","ANGARA  szürke mellény",null,". . .",null,". . . ",null,"289"]
["XSOFT","SOFT  fekete cipzáros polármellény",null,"XS/XL",3960,10,null,null,{"$f":"E2036*1.651","v":6537.96}]
["XYAGR","YANG  piros mellény, háromrétegű, lélegző és vízhatlan softshell anyagból",null,"S/3XL",5950,10,null,"289",{"$f":"E2037*1.651","v":9823.4500000000007}]
["XYAGB","YANG  fekete mellény",null,"S/XXL",null,10,null,"289"]
["XTAGB","TAO fekete mellény, lélegző, szél- és vízálló softshell anyag, fényvisszaverő csík",null,"M/XXL",7769,10,null,"új",{"$f":"E2039*1.651","v":12826.619000000001}]
[]
["Coverguard® polár pulóverek, kabátok"]
[]
[]
["XSHVB","SHARKI fekete, 600 g/m2 vízlepergető dupla mikropolár külső, hőszigetelő műszőrme belső ",null,"M/XXL",9392.5,10,null,"292",{"$f":"E2044*1.651","v":15507.0175}]
["XWIVB","WINDTECH lélegző, vízlepergető, 320 g/m2 fekete polár, 5000 mm/3000 mpv, belső membrán",null,"M/XXL",8500,10,null,"292",{"$f":"E2045*1.651","v":14033.5}]
["XLOOB","LOO  kapucnis, lélegző, vízlepergető, 320 g/m2 fekete polár, 10000 mm/3000 mpv, membrán",null,null,9137.5,10,null,"292",{"$f":"E2046*1.651","v":15086.012500000001}]
["XVANB","ANGARA  kék cipzáros pulóver, vastag 450 g/m2-es mikropolár",null,"XS/3XL",4850,10,null,290,{"$f":"E2047*1.651","v":8007.35}]
["XVANR","ANGARA  piros",null,"XS/XXL",null,". . .",null,290]
["XVANM","ANGARA  barna",null,". . .",null,". . .",null,290]
["XVANN","ANGARA fekete",null,". . .",null,". . .",null,290]
["XVANV","ANGARA  zöld ",null,". . .",null,". . .",null,290]
["XVANG","ANGARA  szürke",null,". . .",null,". . .",null,290]
["XAUTN","AUTAN  sötétszürke mikropolár, vízálló váll-, mell-, könyökrésszel",null,"XS/XL",7395,10,null,291,{"$f":"E2053*1.651","v":12209.145}]
["XAUSB","AUSTRU 2/1-ben fekete polár,  320 g/m2, levehető ujjak, rejtett kapucni, vízhatlan szürke betétek",null,"S/XXL",9052.5,null,null,"291",{"$f":"E2054*1.651","v":14945.6775}]
["XARTN","ARTISAN  fekete, 2/1-ben levehető ujjú, sok zseb, vízhatlan betétek, derékvédő",null,"S/XXXL",7230,10,null,291,{"$f":"E2055*1.651","v":11936.73}]
["XPANR","ANGARA  piros bebújós pulóver, mikro-polár",null,"S/XXL",5700,10,null,294,{"$f":"E2056*1.651","v":9410.7000000000007}]
["XPANM","ANGARA  barna",null,". . .",null,". . .",null,294]
["XPANB","ANGARA  kék ",null,". . .",null,". . .",null,294]
["XPANN","ANGARA  fekete ",null,". . .",null,". . .",null,"294"]
["XVPOB","POLÁR cipzáros pulóver, kék, 340 g/m2-es polár anyag, végig cipzáros, oldalzsebes ",null,"S/XXXL",3570,10,null,295,{"$f":"E2060*1.651","v":5894.07}]
["XVPON","POLÁR cipzáros pulóver, fekete",null,"M/XXL",null,". . . ",null,295]
["XVPOG","POLÁR cipzáros pulóver, szürke",null,"M/XXL",null,10,null,295]
["XPPOB","POLÁR bebújós pulóver, kék ",null,"M/XXL",3830,10,null,295,{"$f":"E2063*1.651","v":6323.33}]
["XPPON","POLÁR bebújós pulóver, fekete",null,". . .",null,". . .",null,295]
["XPPOG","POLÁR bebújós pulóver, szürke",null,". . .",null,". . .",null,295]
[]
["Coverguard® softshell pulóverek, kabátok"]
[]
[]
["XYINR","YIN piros, cipzáros, kapucnis kabát, három rétegű, lélegző és vízhatlan softshell, 310 g/m2",null,"XS/XL",7610,10,null,293,{"$f":"E2070*1.651","v":12564.11}]
["XYINB","YIN fekete",null,". . .",null,". . .",null,293]
["XYIFT","YIN dohánybarna, fényvisszaverő díszcsíkkal",null,". . .",null,". . .",null,293]
["XYIFV","YIN zöld színű, fényvisszaverő díszcsíkkal",null,". . .",null,". . .",null,293]
["XYIFA","YIN azúrkék, fényvisszaverő díszcsíkkal",null,"XS/XL",6550,". . .",null,293,10814.05]
["XYINC","YIN rézvörös",null,"XS/XL",4760,". . .",null,293,7858.76]
["XYANR","YANG  piros, cipzáros kabát, három rétegű, lélegző és vízhatlan softshell, 310 g/m2",null,"S/XXL",7140,10,null,293,11788.14]
["XYANB","YANG  fekete",null,". . .",null,". . .",null,293]
["XYAFT","YANG  dohánybarna, fényvisszaverő díszcsíkkal",null,". . .",null,". . .",null,293]
["XYAXN","YANG XTRA kiválóan hőszigetelő fekete softshell kabát, négy zseb, lélegző/5000 mvp, vízhatlan/8000 mm",null,"S/XXXL",8120,null,null,"új",13406.12]
["XROLB","ROLAND  fekete softshell kabát piros cipzárral, kétrétegű, lélegző és vízhatlan, 280 g/m2",null,"L/XXL",7250,10,null,"294",11969.75]
["XROLR","ROLAND  piros softshell kabát fekete cipzárral",null,"S/XXL",null,". . .",null,"294"]
[]
["Átmeneti kabátok, anorákok"]
[]
[]
["XSWEN","SWEEPER  fekete vízhatlan, szellőző átmeneti kabát",null,"S-XXL",5185,10,null,"web",8560.4349999999995]
["XOUES","OUEST  kék ",null,"S/XL",3320,". . . ",null,"web",5481.32]
["XCOAB","COAST  fekete, vízhatlan, bebújós anorák, oldalt nyitható, szellőző bélés    ",null,"S/XXL",7097.5,10,null,296,11717.9725]
["7COAY","COAST  fluo sárga vízhatlan, bebújós anorák, oldalt nyitható, szellőző bélés",null,"M/XXL",7565,10,null,"296",12489.815000000001]
["XTYPB","TYPHON  fekete, lélegző kabát plusz nadrág, vízhatlan, szakadásbiztos PA/PU Ripstop",null,"M/XXL",12240,null,null,"296",20208.240000000002]
[]
["Hagyományos Coverguard® télikabátok"]
[]
[]
["XOUEP","PoleOUEST  kék",null,"XS/3XL",5916,10,null,297,9767.3160000000007]
["XNORP","PoleNORD    piros",null,"XS/3XL",5916,". . . ",null,297,9767.3160000000007]
["XEQUP","PoleEQUATEUR   fekete",null,"s,m,xl,xxl",5125.5,". . .",null,"297",8462.2005000000008]
["XKABB","KABAN  kék kabát, kényelmes belső, polárgallér, rejtett kapucni",null,"M/3XL",5910,10,null,307,9757.41]
["XISAN","ISA  fekete polárbéléses kabát fényvisszaverő csíkkal ",null,"M/XXL",6332.5,10,null,308,10454.9575]
["XIREL","IRELAND  kék télikabát, poliészter béléses",null,"M/XXL",4930,10,null,308,8139.43]
["XCOBI","CONNEMARA sötét-/királykék vízhatlan kabát, poliészter bélés",null,"M/XXL",4930,". . .",null,308,8139.43]
["Y53230","FLOPP kék, vízhatlan, kapucnis kabát",null,"S/3XL",4462.5,10,null,310,7367.5875000000005]
["Y53240","FLOPP zöld  . . .",null,". . .",null,". . . ",null,310]
[]
["Ripstop hasadásbiztos télikabátok"]
[]
[]
["XRIPB","RIPSTOP  sötétkék/fekete kabát, szakadásbiztos anyag, polárbélés",null,"S/3XL",6970,10,null,301,11507.47]
["XRIPG","RIPSTOP  zöld/fekete",null,"M/XXL",6970,". . . ",null,301,11507.47]
["XRIPR","RIPSTOP  piros/szürke",null,". . .",6970,". . . ",null,301,11507.47]
["XRIPS","RIPSTOP  szürke/fekete . . . ",null,". . .",7610,". . . ",null,301,12564.11]
["XRIPN","RIPSTOP  fekete . . . ",null,". . .",7610,null,null,"új",12564.11]
["XBMRI","RIPSTOP szürke/fekete sokzsebes dzseki, 2/1: levehető ujjak, szakadásbiztos anyag ",null,"S/3XL",7100,10,null,300,11722.1]
["XBMRN","RIPSTOP tengerkék/fekete",null,"S/XXL",null,". . .",null,300]
["XRIBB","RIPSTOP 4/1-ben: polár belső mellény+polár ujjak+ripstop külső dzseki+egyben kék télikabát",null,"S/3XL",12750,10,null,300,21050.25]
["XARTI","ARCTIC          kék/fekete vitorlázókabát, polárbélés és kapucni",null,"M/3XL",11990,10,null,305,19795.490000000002]
["XICEN","ICEBERG       piros/fekete ",null,"M/XXL",null,". . . ",null,305]
[]
["Többfunkciós Coverguard® télikabátok"]
[]
[]
["XZEFB","ZEFly  sötétkék 3/1 dzseki, kivehető műszőrme bélés, levehető ujjak és gallér, vízhatlan poliészter",null,"S/3XL",5950,10,null,299,9823.4500000000007]
["XZEFN","ZEFly  fekete 3/1 dzseki",null,". . .",null,". . . ",null,299]
["XZEBB","ZEFly Beaver  fekete 3/1: kivehető műszőrme bélés, levehető ujjak és gallér",null,"XL/XXL",7360,10,null,"web",12151.36]
["XAQUB","AQUILON fekete 2/1: kivehető vízhatlan bélés, levehető szőrmés kapucni, Oxford PA/AC",null,"M/XXL",11135,10,null,"301",18383.885000000002]
["XTOUB","TOUN  fekete vízhatlan Taslan 2/1-ben steppelt dzseki, levehető ujjak, bélelt kapucni",null,"S/XXL",10752.5,10,null,"299",17752.377499999999]
["XISAB","ISA II 3 az 1-ben  fekete vízhatlan kabát, kivehető polár pulóver, fényvisszaverő díszcsík",null,"M/XXL",9400,". . .",null,298,15519.4]
["XBODN","BODYGUARD II  4/1 kivehető belső polár pulóver/mellény, kívül-belül fényvisszaverő csíkok",null,"M/XXL",10285,null,null,298,{"$f":"E2128*1.651","v":16980.535}]
[]
["Coverguard® munkaruha családok télikabátjai"]
[]
[]
["RBBOB","BOUND fekete dzseki, víz- és szélálló 600D Oxford, taft belső, hegesztett biztonsági varrás",null,"M/XXL",7820,10,null,"302",12910.82]
["RPBOB","BOUND fekete kabát, víz- és szélálló 600D Oxford, taft belső, hegesztett biztonsági varrás",null,"M/XXL",7820,". . .",null,"302",12910.82]
["RCARW","CARPENTER télikabát, bézs, narancs díszítéssel, levehető ujjakal és -kapucnival ",null,"S/3XL",7947.5,10,null,242,13121.3225]
["RNAVW","NAVY télikabát, sötétkék, szürke díszítéssel, levehető ujjakal és -kapucnival",null,". . .",9605,". . . ",null,309,15857.855]
["RPADW","PADDOCK télikabát, szürke, narancs díszítéssel, levehető ujjakal és -kapucnival",null,"M/XXL",9605,". . . ",null,309,15857.855]
["RGARW","GARDENER télikabát, khaki, sötétkék díszítéssel, levehető ujjakal és -kapucnival",null,"m,l,xxl,3xl",8840,". . . ",null,309,14594.84]
["RBONW","ZORAN sötétzöld, szürke dísz, levehető ujjak és -kapucni, pamut külső, polár/fríz dupla bélés",null,"S/XXL",7947.5,10,null,309,13121.3225]
["RBZOW","ZORAN királykék, sötétkék dísz, levehető ujjak és -kapucni, sok zseb, polár/fríz dupla bélés",null,". . .",7947.5,". . .",null,309,13121.3225]
["RSNIW","SNIPER ELITE vadászzöld, bézs dísz, levehető ujjak és -kapucni, pamut külső, vastag bélés",null,"s,xl,2xl,3xl",9350,10,null,"307",15436.85]
[]
["Breathane®  és 3 az 1-ben Breathane® lélegző télikabátok"]
[]
[]
["XYAWR","YANG Winter piros, háromrétegű, lélegző és vízhatlan softshell télikabát",null,"S/XXL",11140,10,null,"304",18392.14]
["XYAWB","YANG Winter fekete télikabát",null,". . .",null,". . .",null,"304"]
["XYIWR","YIN Winter piros, háromrétegű, lélegző és vízhatlan softshell női télikabát",null,"XS/XL",11610,10,null,304,19168.11]
["XYIWB","YIN Winter fekete télikabát",null,". . .",null,". . .",null,304]
["XTABB","TAO dzseki fekete, lélegző, szél- és vízálló softshell anyag, körbefutó fényvisszaverő csík ",null,"M/XXL",11650,10,null,"302",19234.150000000001]
["XTAOB","TAO kabát fekete, lélegző, szél- és vízálló softshell anyag, körbefutó fényvisszaverő csík ",null,". . .",13140,". . .",null,"302",21694.14]
["XICEB","ICEBERG","piros/fekete 3 az 1-ben (pulóver+dzseki+kabát) vitorláskabát, szellőző Ripstopból","S/3XL",15220,10,null,305,25128.22]
["XBERB","BERING","fekete/szürke 3 az 1-ben","M/XXL",15220,". . .",null,305,25128.22]
["XEURO","EUROPA","királykék/fekete 3 az 1-ben: polár pulóver+dzseki+kabát, szellőző Taslan anyagból","M/XXL",13770,10,null,306,22734.27]
["XAMER","AMERICA","fekete","S/3XL",13770,". . . ",null,306,22734.27]
["XAUST","AUSTRALIA narancs/fekete",null,"M/XXL",13770,". . . ",null,306,22734.27]
["XNORT","NORTHER  szürke/narancs, szellőző Breathane, bélelt kapucni, nyitható hónalj",null,"M/XXL",11220,10,null,"web",18524.22]
["XLADYB","LADY  fekete női kabát, szellőző vízhatlan Taslan anyag, polár- és taft bélés",null,"S/XL",8720,". . .",null,307,14396.72]
[]
[" Coverguard® hűtőházi védőruházat"]
[]
[]
["X57620","BEAVER  overall, királykék, -45ºC-ig hőszigetelő bélés, fluo csík, hat zseb",null,"S/3XL",14160,10,null,311,23378.16]
["X57640","BEAVER dzseki, -45ºC, levehető, szőrmés kapucni, állítható mandzsetta",null,"S/3XL",10370,10,null,311,17120.87]
["X57650","BEAVER deréknadrág vállpánttal, -45ºC, fluo csík, hőszigetelő bélés",null,"S/3XL",9180,10,null,311,15156.18]
["XFREC","FREEZER  overall, tengerkék, -38ºC-ig hőszigetelő bélés, fluo csíkok, térdvédő",null,"S/XXL",21386,10,null,"web",35308.286]
[]
["Bélelt nadrágok"]
[]
[]
["RWBOB","BOUND water fekete nadrág, extra víz- és szélálló, lélegző 13000 mm/5000 mpv, taft belső",null,"M/XXL",8415,"10",null,"303",13893.165000000001]
["XTAPB","TAO fekete, lélegző, szél- és vízálló softshell, 8000 mm/3000 mpv, deréköv, vállpánt",null,"S/XL",12970,"10",null,"303",21413.47]
["XSNOW","SNOW  szürke, szellőző melles női sínadrág levehető felsővel",null,"XS/S",10030,10,"R",303,16559.53]
["Y53100","FINO   kék kertésznadrág, vízhatlan",null,"S/XXXL",5372,10,null,310,8869.1720000000005]
["Y53110","FINO   zöld",null,". . .",null,". . .",null,310]
["Y53200","FINEK  kék deréknadrág, vállpánttal",null,"S/3XL",5074.5,10,null,"310",8377.9994999999999]
["Y53210","FINEK  zöld",null,". . .",null,". . . ",null,310]
[]
["Téli sapkák, sálak"]
[]
[]
[57610,"Beaver   kék sapka, szőrmebéléses, vízhatlan",null,null,1620,25,"1",311,2674.62]
["57150-51","Canada zöld vagy kék vízhatlan sapka szőrmebéléssel",null,null,1530,10,2,313,2526.0300000000002]
["57140-41","ThinsulateTM bélésű kötött akrilsapka, kék vagy fekete",null,null,1240,10,null,312,2047.24]
["XCOVE","Coverhead „sálsapka” ötféle színben, 26x26cm 300g/m2 thermo-polár,  fejre és nyakra is ",null,null,850,10,2,312,1403.35]
["XBALB","Balaclava símaszk állítható nyílással, 250g/m2 sötétszürke thermo-polárból",null,null,1070,10,2,"313",1766.57]
["XCOVC-B/N","Covercap téli baseball, lehajtható fülrész, állítható, 250g/m2 thermo-polár, kék vagy fekete",null,null,1190,10,null,"313",1964.69]
["XCOVC-O/Y","Covercap fluo téli baseball, lehajtható fülrész, 250g/m2 thermo-polár, sárga vagy narancs",null,null,1320,10,null,313,2179.3200000000002]
[57156,"Baseball téli sapka lehajtható fülrésszel, nagy méret",null,null,1173,25,"2","web",1936.623]
["XCOVAN","Cover hat fekete polársapka, 280 g/m2, puha, hőszigetelő anyag",null,null,680,null,null,"312",1122.68]
["XCOVXN","Cover xtra fekete polársapka, 3M ThinsulateTM béléssel",null,null,1020,null,null,312,1684.02]
[57180,"Kötött téli sapka sötét színben",null,null,510,10,2,"web",{"$f":"E2192*1.651","v":842.01}]
["57182-83","Álcasapka, kötött símaszk, 3 (szemek, száj)  lyukú vagy 1 (arc) lyukú",null,null,918,10,2,"web",1515.6179999999999]
["XHEADB","Headband fejpánt 360 g/m2-es rugalmas polár alapanyagból, átmérője 27 cm",null,null,765,10,"2",312,1263.0150000000001]
["XCOVS-B/N","Coverscarf 250 g/m2-es polár nyaksál, 120x22 cm, kék és fekete színben ",null,null,1190,"50/10","2",312,1964.69]
[]
["Coverguard® jól láthatósági védőruházat"]
[]
[]
["PATROL jól láthatósági ruházat, 5cm-es 3M fényvisszaverő csíkok, kék gallér, kézelő és lábszár (245g/m2, 60% pamut, 40% poliészter):"]
["RPAJV","Patrol kabát sárga/kék, rejtett gombolás, három zseb, hat darab 3M-es csík",null,"S/XXXL",6247.5,10,null,319,10314.622499999999]
["RPAOV","Patrol kabát narancs/kék . . . ",null,". . .",null,". . . ",null,319]
["RPAJP","Patrol deréknadrág sárga/kék, egyenes fazon, bőséghajtással, kék lábszár",null,"S/XXXL",4930,10,null,319,8139.43]
["RPAOP","Patrol deréknadrág narancs/kék . . . ",null,". . .",null,". . . ",null,319]
[70200,"Fluo mellény 3M Scotchlite® fényvisszaverő 2 keresztbeni csíkkal, sárga",null,"XL",935,50,2,322,1543.6849999999999]
[70201,". . .                                                                                                         Narancs",null,"XL",935,". . . ","R",322,1543.6849999999999]
[70202,"Fluo jól láthatósági mellény, 2 keresztcsík, sárga  ",null,"XL",595,100,2,322,982.34500000000003]
[70222,". . .                                          2 keresztcsík, narancs",null,"XL",595,". . . ",2,322,982.34500000000003]
[70206,". . .                         1 kereszt, 1 hosszanti csík, sárga",null,"XL",595,". . . ",2,322,982.34500000000003]
[70226,". . .                         1 kereszt, 1 hosszanti csík, narancs",null,"XL",595,". . . ","R",322,982.34500000000003]
["70242-43","Fluo jól láthatósági mellény, 2 kereszt, 1 hosszanti csík, sárga",null,"XL/XXL",892.5,50,"R","322",1473.5174999999999]
["70252",". . . narancs színben",null,"XL",1020,". . . ","R",322,1684.02]
["70262",". . . zöld színben",null,"XL",1020,". . . ","R",322,1684.02]
["70265",". . . piros színben",null,"XL",1020,". . . ","R",322,1684.02]
["70245-47",". . . gyerek méretű, sárga: 7CHILY (4/6), 7KIDY (8/10), 7JUNY (12/14)",null,"gyerek",722.5,". . . ","R","322",1192.8475000000001]
["70213-33","Fluo jól láthatósági mellény keresztcsíkos, nagyobb méret",null,"XXL",765,100,2,322,1263.0150000000001]
[null,". . . keresztcsíkos sárga: XXL(70213),  narancs XXL(70233)",null,"XXL",null,". . . ",2,322]
["7YATY","Sárga fluo póló, 235 g/m2 bordázott, környakas, szellőző poliészter/pamut",null,"M/3XL",3910,"20",null,323,6455.41]
["7YATO","Narancs fluo póló, 235 g/m2 bordázott, környakas, szellőző poliészter/pamut",null,"M/XXL",null,". . . ",null,323]
["70270-74","Sárga fluo teniszpóló, 140 g/m2 szellőző poliészter, sötétkék pamut gallérral ",null,"M/3XL",3570,"20",null,323,5894.07]
["70281-83","Narancs fluo teniszpóló, 140 g/m2 szellőző poliészter, sötétkék pamut gallérral ",null,"L/XXL",null,". . .",null,323]
[70190,"Fényvisszaverő jelzőkantár ruhára, fluo sárga, fényvisszaverő csíkkal",null," ",2337.5,10,2,324,3859.2125000000001]
[70191,"Fényvisszaverő jelzőkantár ruhára, fluo narancs",null,null,null,". . . ",2,324]
["7ARMY","Fényvisszaverő karszalag, sárga, 300D Oxford PES/PU, 5cm 3M™ Scotchlite® fényv. csík",null,null,552.5,10,2,324,912.17750000000001]
["7ARMG","Fényvisszaverő karszalag, zöld",null,null,null,". . . ",2,324]
["7ARMO","Fényvisszaverő karszalag, narancs",null,null,null,". . . ",2,324]
[]
["Fluo esőruházat"]
[]
[]
["70310-353","Fluo PU esőkabát, 170g/m², 3M csíkokkal",null,null,8670,10,null,325,14314.17]
[null,". . . sárga/kék:         M(70310),  L(70311),  XL(70312),  XXL(70313)",null,"M/XXL",null,". . . ",null,325]
[null,". . . narancs/kék:     M(70330),  L(70331),  XL(70332),  XXL(70333)",null,". . .",null,". . . ",null,325]
[null,". . . sárga/zöld:       M(70350),  L(70351),  XL(70352),  XXL(70353)",null,". . .",null,". . . ",null,325]
["70320-363","Fluo PU esőnadrág, 170g/m², 3M csíkokkal",null,null,5865,10,null,325,9683.1149999999998]
[null,". . . sárga/kék:         M(70320),  L(70321),  XL(70322),  XXL(70323)",null,"M/XXL",null,". . . ",null,325]
[null,". . . narancs/kék:     M(70340),  L(70341),  XL(70342),  XXL(70343)",null,". . .",null,". . . ",null,325]
[null,". . . sárga/zöld:       M(70360),  L(70361),  XL(70362),  XXL(70363)",null,". . .",null,". . . ",null,325]
["70370-379","Fluo esőköpeny 4/4-es, lélegző 150g/m², vízhatlan",null,null,13090,5,"R",324,21611.59]
[null,". . . sárga:      S(70370), M(70371),  L(70372),  XL(70373),  XXL(70374)",null,"S/XXL",null,". . . ",null,324]
[null,". . . narancs:  S(70375), M(70376),  L(70377),  XL(70378),  XXL(70379)",null,". . .",null,". . . ",null,324]
["70390-399","Fluo overall, kapucnis, vízhatlan, lélegző 150g/m²",null,null,15555,5,"R",324,25681.305]
[null,". . . sárga:      S(70390), M(70391),  L(70392),  XL(70393),  XXL(70394)",null,"S/XXL",null,". . . ",null,324]
[null,". . . narancs:  S(70395), M(70396),  L(70397),  XL(70398),  XXL(70399)",null,". . .",null,". . . ",null,324]
["7HWRY","Fluo esőruha, Pes/PU Breathane®  Oxford, szellőző, sárga/kék",null,"M/XXL",8457.5,10,null,326,13963.3325]
["7HWRO","Fluo esőruha, Pes/PU Breathane®  Oxford, szellőző, narancs/kék",null,". . .",null,". . . ",null,326]
["7AIJY","Airport lélegző esőkabát, Pes/PU 170g/m², sárga/kék",null,"M/XXL",8287.5,10,null,327,13682.6625]
["7AITY","Airport lélegző esőnadrág, Pes/PU 170g/m², sárga/kék",null,". . .",5015,". . . ",null,327,8279.7649999999994]
["7AIJO","Airport lélegző esőkabát, Pes/PU 170g/m², narancs/kék",null,"M/XXL",8287.5,10,null,327,13682.6625]
["7AITO","Airport lélegző esőnadrág, Pes/PU 170g/m², narancs/kék",null,". . .",5015,". . . ",null,327,8279.7649999999994]
[]
["Coverguard® Hi-Viz polár pulóverek"]
[]
[]
["7COMY","COMFY sárga/kék kapucnis polár pulóver, gumizott derék, fényvisszaverő csíkok",null,"S/3XL",5567.5,10,null,"328",9191.942500000001]
["7COMO","COMFY narancs/kék kapucnis polár",null,"M/XXL",null,". . . ",null,"328"]
["7PSTY","STATION sárga/kék fluo polár pulóver lecipzározható ujjakkal, fényvisszaverő csíkkal",null,"M/XXL",7862.5,10,null,"329",{"$f":"E2257*1.651","v":12980.987499999999}]
["7PSTYG","STATION sárga/zöld",null,". . .",null,". . . ",null,"329"]
["7PSTYS","STATION sárga/szürke",null,". . .",null,". . . ",null,"329"]
["7PSTO","STATION narancs/kék",null,". . .",null,". . . ",null,"329"]
[]
["Coverguard® Hi-Viz jól láthatósági télikabátok"]
[]
[]
["70410-13","FLUO télikabát, sárga szín, melegbélés, taft belső, vízhatlan, fényvisszaverő csíkok ",null,"M/XXL",8585,10,null,330,{"$f":"E2265*1.651","v":14173.835000000001}]
["70449-54","FLUO télikabát, sárga/kék",null,"S/3XL",null,". . . ",null,330]
["70460-63","FLUO télikabát, narancs/kék",null,"M/XXL",null,". . . ",null,330]
["70470-73","FLUO télikabát, sárga/zöld",null,". . .",null,". . . ",null,330]
["70480-83","FLUO télikabát, piros/kék",null,". . .",null,". . . ",null,330]
["70489-94","FLUO télikabát, sárga/szürke",null,"S/3XL",null,". . . ",null,330]
[]
["Többfunkciós Coverguard® Hi-Viz télikabátok"]
[]
[]
["70549-55","FLUO PE 4/1 sárga/kék: fluo mellény + polár pulóver (levehető ujjak) + dzseki + bélelt kabát",null,"S/3XL",13090,10,null,333,{"$f":"E2275*1.651","v":21611.59}]
["70559-64","FLUO PE 4/1 narancs/kék",null,"S/3XL",null,". . . ",null,333]
["70570-74","FLUO PE 4/1 sárga/zöld",null,"M/3XL",null,". . . ",null,333]
["70580-84","FLUO PE 4/1 piros/fekete",null,"M/3XL",null,". . . ",null,333]
["70589-94","FLUO PE 4/1 sárga/szürke",null,"S/3XL",null,". . . ",null,333]
["70599-04","FLUO PE 4/1 piros/szürke",null,"S/3XL",null,". . . ",null,333]
["7ROPY","ROADWAY PE 3/1 sárga/kék: steppelt kék bélelt mellény + dzseki + együtt: bélelt kabát",null,"M/3XL",9605,"10*","R",332,{"$f":"E2281*1.651","v":15857.855}]
["7ROPO","ROADWAY PE 3/1 narancs/kék",null,". . .",5992.5,null,null,332,{"$f":"E2282*1.651","v":9893.6175000000003}]
["7HWXY","HI-WAY XTRA PE 2/1 sárga/fekete vízhatlan Oxford külső, levehető ujjak, taft belső",null,"S/3XL",9180,"10*","R",332,{"$f":"E2283*1.651","v":15156.18}]
["7HWXO","HI-WAY XTRA PE 2/1 narancs/fekete",null,". . .",null,"10*","R",332]
[]
["Hi-Viz Breathane® lélegző kabátok"]
[]
[]
["70630-33","Softshell sárga/kék kabát, lélegző, vízhatlan, mikropolár belső, levehető ujjakkal 2/1-ben",null,"M/XXL",11942.5,10,null,"328",{"$f":"E2289*1.651","v":19717.067500000001}]
["70640-43","Softshell narancs/kék kabát",null,". . .",null,". . . ",null,"328"]
["7AIBY","AIRPORT sárga/kék szellőző Breathane® dzseki, Oxford külső, taft belső, gumizott derék",null,"S/3XL",10752.5,10,null,331,17753.203000000001]
["7AIBO","AIRPORT narancs/kék Breathane® dzseki",null,"M/XXL",null,". . .",null,331]
["7AILY","AIRPORT LADY sárga/kék szellőző Breathane® női télikabát, gumizott derék, bővíthető alj",null,"XS/L",10582.5,10,null,331,{"$f":"E2293*1.651","v":17471.7075}]
["7AILO","AIRPORT LADY narancs/kék Breathane® női kabát",null,". . .",null,null,null,331]
["7AIRY","FLUO PU 4/1 sárga/fekete, Ripstop Breathane® : vízhatlan mellény+polár ujjak+dzseki+kabát",null,"M/XXL",18190,"10*","R",334,{"$f":"E2295*1.651","v":30031.69}]
["7AIRO","FLUO PU 4/1 narancs/fekete, Ripstop Breathane®",null,". . .",null,". . . ","R",334]
[]
["Coverguard® Hi-Viz bélelt mellények"]
[]
[]
["70500-04","Fluo sárga, bélelt, kifordítható mellény, Oxford külső, fekete polár belső, fv csíkok ",null,"M/3XL",6205,10,null,335,{"$f":"E2301*1.651","v":10244.455}]
["7HWGY","Fluo sárga, bélelt, kifordítható mellény, Oxford külső, szürke vízhatlan belső, fv csíkok ",null,"M/XXL",5142.5,". . . ",null,335,8491.0930000000008]
["7HWGO","Fluo narancs, bélelt, kifordítható mellény, Oxford külső, szürke vízhatlan belső, fv csíkok ",null,"M/XXL",0,". . . ",null,335]
["70520-23","Sárga fluo kabát: mellény levehető polár ujjakkal, hosszított hátrésszel",null,"M/XXL",8160,10,null,335,{"$f":"E2304*1.651","v":13472.16}]
["70530-33","Narancs fluo kabát: mellény levehető polár ujjakkal, hosszított hátrésszel ",null,". . .",null,". . . ",null,335]
[]
["DuPontTM TYVEK® overallok"]
[]
[]
[40500,"Tyvek Classic kapucnis, antisztatikus overall vegyszerek és radioaktív részecskék ellen",null,"S-XXXL",1275,"100/25",2,337,{"$f":"E2310*1.651","v":2105.0250000000001}]
[" ",". . .  méretek: S(40501),  M(40502),  L(40503),  XL(40504),  XXL(40505),  3XL(40506)",null," ",null,". . . ",2,337]
[40510,"Tyvek Classic Plus kapucnis overall biztonsági hegesztéssel biológiai veszélyek és permetek ellen is",null,"S-XXXL",1700,"100/25",null,337,{"$f":"E2312*1.651","v":2806.7}]
[" ",". . .  méretek: S(40511),  M(40512),  L(40513),  XL(40514),  XXL(40515),  3XL(40516)",null," ",null,". . . ",null,337]
[40400,"Tyvek Dual antisztatikus overall: hátul kiváló szellőző kompozit, elöl vegyszerálló Tyvek",null,"S-XXXL",1572.5,"100/25","R",340,{"$f":"E2314*1.651","v":2596.1975000000002}]
[" ",". . .  méretek: S(40401),  M(40402),  L(40403),  XL(40404),  XXL(40405),  3XL(40406)",null," ",null,". . . ",null,340]
[40700,"Tychem C sárga védőoverall nagynyomású vegyszerek, radioaktív részecskék, biológiai veszélyek ellen",null,"S-XXL",3910,"100/25",null,338,{"$f":"E2316*1.651","v":6455.41}]
[" ",". . .  méretek:  S(40701),  M(40702),  L(40703),  XL(40704),  XXL(40705)",null," ",null,". . . ",null,338]
[40900,"Tychem F szürke védőoverall nagynyomású vegyszerek, radioaktív részecskék, biológiai veszélyek ellen",null,"S-XXL",6162.5,"100/25",null,339,{"$f":"E2318*1.651","v":10174.2875}]
[" ",". . .  méretek:  S(40901),  M(40902),  L(40903),  XL(40904),  XXL(40905)",null," ",null,". . . ",null,339]
[40520,"Tyvek Classic Plus lábfejvédővel,  biztonsági hegesztéssel",null,"S-XXXL",2167.5,"80/20","R",337,{"$f":"E2320*1.651","v":3578.5425}]
[" ",". . .  méretek: S(40521),  M(40522),  L(40523),  XL(40524),  XXL(40525),  3XL(40526)",null," ",null,". . . ",null,337]
["40530","Tyvek Labo cipővédős, antisztatikus overall vegyszerek és radioaktív részecskék ellen",null,"S-XXXL",1887,"100/25","R",337,3115.4369999999999]
[null,". . .  méretek: S(40531),  M(40532),  L(40533),  XL(40534),  XXL(40535),  3XL(40536)",null," ",null,". . . ",null,337]
[40720,"Tychem C lábfejvédős, vegyszerálló, kapucnis overall",null,"S-XXXL",5015,"80/20",null,338,8279.7649999999994]
[" ",". . .  méretek:  S(40721),  M(40722),  L(40723),  XL(40724),  XXL(40725),  3XL(40726)",null," ",null,". . . ",null,338]
[40920,"Tychem F lábfejvédős, vegyszerálló, kapucnis overall",null,"S-XXXL",7522.5,"80/20","R",339,12419.647500000001]
[" ",". . .  méretek:  S(40921),  M(40922),  L(40923),  XL(40924),  XXL(40925)",null," ",null,". . . ",null,339]
[40730,"Tychem C2 többször használatos, két cipzáras, zárt, vegyszerálló, kapucnis overall",null,"S-XXXL",8117.5,"40/10",null,338,13401.9925]
[" ",". . .  méretek:  S(40731),  M(40732),  L(40733),  XL(40734),  XXL(40735),  3XL(40736)",null," ",null,". . . ",null,338]
[40930,"Tychem F2 többször használatos, két cipzáras, zárt, vegyszerálló, kapucnis overall",null,"S-XXXL",10157.5,"40/10","R",339,16770.032500000001]
[" ",". . .  méretek:  S(40931),  M(40932),  L(40933),  XL(40934),  XXL(40935),  3XL(40936)",null," ",null,". . . ",null,339]
[40100,"ProShield Polyclean kapucnis, szellőző, polipropilén festőoverall, fehér",null,"M-XXL",663,100,2,"web",1094.6130000000001]
[null,". . .  fehér:  M(40102),  L(40103),  XL(40104),  XXL(40105)",null," ",null,". . . ",2,"web"]
[40200,"DuPont Proshield 10 (Multiclean), szellőző, antisztatikus, vegyszerálló 4 rétegű SMMS pp overall",null,"S-XXXL",1011.5,"100/50",2,340,1669.9865]
[null,". . .  kék:  S(40201),  M(40202),  L(40203),  XL(40204),  XXL(40205),  3XL(40206)",null," ",null,". . . ",2,340]
[null,". . .  fehér:  S(40221),  M(40222),  L(40223),  XL(40224),  XXL(40225),  3XL(40226)",null," ",null,". . . ",2,340]
[]
["DuPontTM TYVEK® védőruházat, kiegészítők"]
[]
[]
[40310,"Tyvek dzseki, kapucnis, cipzáras",null,"M-XXL",1351.5,50,null,341,2231.3265000000001]
[" ",". . .  méretek:  M(40312),  L(40313),  XL(40314),  XXL(40315)",null," ",null,". . . ",null,341]
[40320,"Tyvek derekas nadrág, gumírozott",null,"M-XXL",960.5,50,null,341,1585.7855]
[" ",". . .  méretek:  M(40322),  L(40323),  XL(40324),  XXL(40325)",null," ",null,". . . ",null,341]
[40330,"Tyvek köpeny  zsebekkel, ellenálló, lélegző anyagból",null,"M-XXL",1122,50,null,341,1852.422]
[null,". . .  patentos:  M(40332),  L(40333),  XL(40334),  XXL(40335)",null," ",null,". . . ",null,341]
[" ",". . .  cipzáros:  M(40336),  L(40337),  XL(40338),  XXL(40339)",null," ",null,". . . ",null,341]
["40327","Tychem C köpeny  vegyszerálló, hátul záródó: S/M (40326), L/XXL (40327)",null,"M-XXL",2839,"25",2,341,4687.1890000000003]
["40329","Tychem F köpeny  vegyszerálló, hátul záródó: S/M (40328), L/XXL (40239)",null,"M-XXL",4122.5,"25",2,341,6806.2475000000004]
[40340,"Tyvek karvédő, 50 cm hosszú   / db",null,null,161.5,"200db",2,"341",266.63650000000001]
["40342","Tychem C karvédő, 50 cm        / db",null,null,425,"50db",2,"341",701.67499999999995]
["40344","Tychem F karvédő, 50 cm        / db",null,null,544,"50db",2,"341",898.14400000000001]
[40350,"Tyvek kámzsa",null,null,297.5,100,2,341,491.17250000000001]
[40360,"Tyvek kötény, vegyszerálló, szakadásbiztos, 70 x 110 cm",null,null,510,100,2,"341",842.01]
[40362,"Tychem C kötény, vegyszerálló, szakadásbiztos, 70 x 110 cm",null,null,935,25,2,"341",1543.6849999999999]
[40364,"Tychem F kötény, vegyszerálló, szakadásbiztos, 70 x 110 cm",null,null,1317.5,25,2,"341",2175.1925000000001]
[40392,"Tyvek cipővédő, bokagumis, fehér, antisztatikus, vegyszerálló, szakadásbiztos,  /db",null,"db",119,"400db",2,341,196.46899999999999]
[40390,"Tyvek cipővédő, antisztatikus, csúszásgátló talppal, vegyszerálló, szakadásbiztos /db",null,"db",195.5,"200db",2,"341",322.77050000000003]
[40394,"Tyvek csizmavédő, magasszárú (45cm), csúszásgátló, vegyszerálló, szakadásbiztos /db",null,"db",301.75,"200db",2,"341",498.18925000000002]
[40396,"Tychem C csizmavédő, magasszárú (45cm), csúszásgátló, vegyszerálló, szakadásbiztos /db",null,"db",722.5,"50db",2,"341",1192.8475000000001]
[40398,"Tychem F csizmavédő, magasszárú (45cm), csúszásgátló, vegyszerálló, szakadásbiztos /db",null,"db",1020,"50db",2,"341",1684.02]
[]
["Tidy® egyszerhasználatos köpenyek és overallok"]
[]
[]
[41110,"Polipropilén látogatóköpeny, patentos, zsebekkel ",null,"L-XXL",255,50,3,"343",421.005]
[" ",". . .  méretek:  L(41113),  XL(41114),  XXL(41115)",null," ",null,". . . ",3,"343"]
[41120,"Polipropilén látogatóköpeny, cipzáros, zsebekkel",null,"L-XXL",255,50,3,"343",421.005]
[" ",". . .  méretek:  L(41123),  XL(41124),  XXL(41125)",null,null,null,". . . ",3,"343"]
[42100,"Polipropilén fehér, kapucnis festőoverall, SPP 40g/m²",null,"M-XXL",297.5,50,3,"343",491.17250000000001]
[" ",". . .  méretek:  M(42102),  L(42103),  XL(42104),  XXL(42105)",null," ",null,". . . ",3,"343"]
[42200,"Polipropilén, kapucnis kék festőoverall, SPP 50g/m²",null,null,382.5,50,"R","343",631.50750000000005]
[null,". . .  méretek:  L(42203),  XL(42204),  XXL(42205)",null,null,null,". . . ","R","343"]
[44100,"SMS három rétegű pp, kapucnis, fehér overall, szellőző, antisztatikus, vegyszerálló, 65g/m²",null,"L-XXL",765,25,3,"342",1263.0150000000001]
[null,". . .  méretek:  L(44103),  XL(44104),  XXL(44105)",null,null,null,". . . ",3,"342"]
["44130","FR három rétegű kék overall, korlátozott láng elleni védelem, szellőző, antisztatikus, vegyszerálló, 65g/m²",null,"L-XXL",1105,25,3,"342",1824.355]
[null,". . .  méretek:  L(44133),  XL(44134),  XXL(44135)",null,null,null,". . . ",3,"342"]
[44200,"Breath három rétegű pp, kapucnis, fehér overall, kiválóan szellőző, vegyszerálló, 60g/m²",null,"L-XXL",807.5,25,3,"342",1333.1825000000001]
[null,". . .  méretek:  L(44203),  XL(44204),  XXL(44205)",null,null,null,". . . ",3,"342"]
[44310,"Proof három rétegű SMS pp, kapucnis, fehér overall, antisztatikus, vegyszerálló, 68g/m²",null,"L-XXL",595,25,3,"web",982.34500000000003]
[null,". . .  méretek:  L(44313),  XL(44314),  XXL(44315)",null,null,null,". . . ",3,"web"]
[44400,"MP4 antisztatikus overall, biztonsági hegesztés, vegyi, biológiai, radioaktív részecskék ellen",null,"L-XXL",1487.5,25,3,"342",2455.8625000000002]
[" ",". . .  méretek:  L(44403),  XL(44404),  XXL(44405)   ",null,null,null,". . . ",3,"342"]
[" "," . . . zöld színben: L(44413),  XL(44414),  XXL(44415)",null,null,null,". . . ",3,"342"]
[44440,"T4 SMS pp overall CPE filmréteggel, biztonsági hegesztés, vegyszerek, permetek ellen",null,"L-XXL",1147.5,25,3,"342",{"$f":"E2385*1.651","v":1894.5225}]
[" ",". . .  méretek:  L(44443),  XL(44444),  XXL(44445)   ",null,null,null,". . . ",3,"342"]
[]
["3M™ egyszerhasználatos védőruházat"]
[]
[]
["3M4515","3M 4515 kapucnis SMS pp. overall por ellen, fehér, kék, piros, naracs színek,  50 g/m² (t5,6)",null,"S-4XL",680,"20*","R","344",1122.68]
[" ",". . .  méretek: S(3M45151), M(..152), L(..153),  XL(..154),  XXL(..155), 3XL(..156), 4XL(..157)",null,null,null,null,null,"344"]
["3M4530","3M 4530 SMMMS pp, antisztatikus, veszélyes porok, fröccsenő folyadékok ellen, kék/fehér szín, 55 g/m²",null,"S-4XL",1487.5,"20*","R","344",2455.8625000000002]
[null,". . .  méretek: S(3M45301), M(..302), L(..303),  XL(..304),  XXL(..305), 3XL(..306), 4XL(..307)",null,null,null,". . . ",null,"344"]
["3M4535","3M 4535 fehér kapucnis SMMMS+pe. overall, jól szellőző kék hát, antisztat., 55 g/m² (t5,6)",null,"S-3XL",1190,"20*","R","344",1964.69]
[" ",". . .  méretek: S(3M45351), M(..352), L(..353),  XL(..354),  XXL(..355), 3XL(..356)",null,null,null,". . . ",null,"344"]
["3M4545","3M 4545 fehér kapucnis pe/pp. overall, könnyű, szöszmentes, biol., antiszt., 55 g/m² (t5,6)",null,"S-4XL",1232.5,"20*","R","345",2034.8575000000001]
[" ",". . .  méretek: S(3M45451), M(..452), L(..453),  XL(..454),  XXL(..455), 3XL(..456), 4XL(..457)",null,null,null,". . . ",null,"345"]
["3M4565","3M 4565 fehér kapucnis pe/pp. overall, leragasztott varratok, biol., antiszt., 49 g/m² (t4,5,6)",null,"S-4XL",2040,"20*","R","345",3368.04]
[" ",". . .  méretek: S(3M45651), M(..652), L(..653),  XL(..654),  XXL(..655), 3XL(..656), 4XL(..657)",null,null,null,". . . ",null,"345"]
["3M4570","3M 4570 szürke kapucnis pe/pp. overall, heg+rag. varratok, biol., antiszt., 92 g/m² (t3,4,5,6)",null,"S-4XL",3697.5,"20*","R","345",6104.5725000000002]
[null,". . .  méretek: S(3M45701), M(..702), L(..703),  XL(..704),  XXL(..705), 3XL(..706), 4XL(..707)",null,null,null,". . . ",null,"345"]
["3M4400","3M 4400 fehér vagy kék pp látogatóköpeny, cipzáras",null,"M-XXL",425,"50*","R","új",701.67499999999995]
["3M4430","3M 4430 fehér SMS laborköpeny, cipzáras",null,"M-XXL",807.5,"50*","R","új",1333.1825000000001]
["3M407","3M 407 fehér pp hajháló, 18\"                                       /db",null,null,85,"1000*","R","új",140.33500000000001]
["3M402","3M 402 kék pp cipővédő, csúszásmentes talp            /db",null,null,85,"300*","R","új",140.33500000000001]
["3M442","3M 442 fehér pe/pp cipővédő, bokagumis                   /db",null,null,127.5,"300*","R","új",210.5025]
["3M445","3M 445 fehér pp karvédő kötött mandzsettával           /db",null,null,127.5,"300*","R","új",210.5025]
[]
["Tidy® egyszerhasználatos maszkok, sapkák és fóliák"]
[]
[]
[45410,"Egyrétegű eü. papírmaszk, gumis                  100 db/ doboz",null,"100db",340,"100 dob.",3,346,561.34]
[45420,"Kétrétegű eü. papírmaszk, gumis                   100 db/ doboz",null,"100db",467.5,"100 dob.",3,346,771.84249999999997]
["45440-42","Háromrétegű eü. papírmaszk, gumipánttal       50 db/ doboz",null,"50db",510,"40 dob.",3,346,842.01]
[" ",". . . színek:  fehér(45440),  kék(45441),  zöld(45442)",null,"50db",null,". . . ",3,346]
[45455,"Háromrétegű eü. papírmaszk, kötőkkel             50 db/ doboz",null,"50db",127.5,"20 dob.",3,346,210.5025]
[45540,"Szakállvédő, fehér gumis 14g-os polipropilén   100 db/ doboz",null,"100db",552.5,"10 dob.",3,346,912.17750000000001]
["45610-12","Polipropilén egészségügyi sapka, szellőző       100 db/ doboz",null,"100db",552.5,"10 dob.",3,346,912.17750000000001]
[" ",". . . színek:  fehér(45610),  kék(45611),  zöld(45612)",null,"100db",null,". . . ",3,346]
["45620-22","Polipropilén eü. csíksapka, szellőző                 100 db/ doboz",null,"100db",552.5,"10 dob.",3,346,913.00300000000004]
[" ",". . . színek:  fehér(45620),  kék(45621),  zöld(45622)",null,"100db",null,". . . ",3,346]
[45640,"Sildes hajhálós egészségügyi pp. sapka           100 db/ doboz",null,"100db",1062.5,"10 dob.",3,346,1754.1875]
[45645,"Sildes egészségügyi sapka papírból                 100 db/ doboz",null,"100db",1232.5,"10 dob.",3,346,2034.8575000000001]
[45650,"Sildes, kontytartós egészségügyi pp. sapka    100 db/ doboz",null,"100db",1657.5,"10 dob.",3,346,2736.5325000000003]
[41214,"Polietilén fóliaköpeny, 110 cm hosszú  /10db",null,"10db",1105,"40 dob.",3,343,1824.355]
["45330-31","Polietilén fólia karvédő, 40 cm                    100 db/ doboz",null,"100db",595,"20 dob.",3,343,982.34500000000003]
[null,". . . színek:  fehér(45330),  kék(45331)",null,"100db",null,". . . ",3,343]
[56220,"Polietilén fóliakötény, 110 x 70 cm             100 db/ doboz",null,"100db",1105,"10 dob.",3,343,1824.355]
[]
["Speciális munkaruhák"]
[]
[]
["74844-62","Savvédő derekas öltöny, 245 g/m² 65% poliészter, 35% pamut, királykék szín",null,"44/62",10871.5,"10/1",null,348,17948.8465]
["74944-62","Savvédő melles öltöny, 245 g/m², bizonsági varratok és zsebfedők, királykék",null,"44/62",11453.75,"10/1",null,348,18910.141250000001]
["749844-62","Lángálló derekas öltöny, 310 g/m², 100% pamut,  bizonsági varratok, zsebfedők, királykék",null,"44/62",14450,"10/1",null,348,23856.95]
["749944-62","Lángálló melles öltöny, 310 g/m², sugárzó hő-, láng- és olvadt fémcseppek elleni védelem",null,"44/62",14203.5,"10/1",null,348,23449.978500000001]
["751144-62","Sav-és lángálló, antisztatikus melles öltöny, 310g/m2",null,"44/62",23715,"10/1","R","web",39153.465000000004]
[]
["Tűzoltó védőruházat"]
[]
[]
[59830,"Nomex alsóruházat: csuklópasszés, környakas felsõ AB2C védõképességű Nomex III anyagból",null,null,16133,1,"R",349,26635.582999999999]
[59840,"Nomex alsóruházat: zárható slicces nadrág AB2C védõképességű Nomex III anyagból",null,null,16133,1,"R",349,26635.582999999999]
[59850,"Nomex fejvédő kámzsa AB2C védõképességű Nomex III anyagból",null,null,9078,1,"R",349,14987.778]
[]
["Ívvédő ruházat"]
[]
[]
[50100,"Nomex® ruha véd villamos ív-, lánghatás és olvadt fém fröccsenése ellen",null,null,66334,1,"R",350,{"$f":"E2450*1.651","v":109517.43400000001}]
[50110,"Nomex® köpeny antisztatikus, AB1C1lánghatás, sugárzó- és kontakt hő ellen",null,null,53898.5,1,"R",350,88986.423500000004]
[50120,"Nomex® póló antisztatikus, hosszú ujjú, galléros, Sanitized® antibakteriális kiképzés, 205 g/m2",null,null,26851.5,1,"R",350,44331.826500000003]
[50130,"Nomex® pulóver AB2C1 védőszint lánghatás, sugárzó- és kontakt hő ellen, 260 g/m2",null,null,28390,1,"R",350,46871.89]
[59770,"Lángálló ing antisztatikus, hosszú ujjú, galléros kék modakril/pamut ing , 160 g/m2",null,null,17420.75,1,null,350,28761.65825]
[59780,"Lángálló alsóruházat, világosszürke jégeralsó, modakril/pamut ABC védőszint, 150 g/m2",null,null,11424,1,null,"web",18861.024000000001]
[59790,"Lángálló alsóruházat, világosszürke jégerfelső, modakril/pamut ABC védőszint, 150 g/m2",null,null,11424,1,null,"web",18861.024000000001]
["2515/I","Ívvédő kesztyű, kapcsolókesztyű",null,null,833,1,null,350,1375.2830000000001]
[]
["Hőálló alumínizált védőruházat"]
[]
[]
[59900,"Alumínizált védőkabát, aramidszálas, hő- és lánghatás ellen (EN531, EN470)",null,null,55080,1,null,351,90937.08]
[59910,"Alumínizált mellesnadrág, aramidszálas, hő- és lánghatás ellen (EN531, EN470)",null,null,60690,1,null,351,100199.19]
[59920,"Alumínizált derekasnadrág, aramidszálas, vállpánttal, hő- és lánghatás ellen (EN531, EN470)",null,null,52700,1,null,351,87007.7]
[59930,"Alumínizált védőkötény, aramidszálas, hő- és lánghatás ellen, 100cm hossz. (EN531, EN470)",null,null,15767.5,1,null,351,26032.142500000002]
[59940,"Alumínizált ujjas kötény, aramidszálas, hő- és lánghatás ellen (EN531, EN470)",null,null,74162.5,1,null,351,122442.28750000001]
[59950,"Alumínizált lábszárvédő, hő- és lánghatás ellen, tépőzáras (EN531, EN470), 38cm",null,null,16192.5,1,null,351,26733.817500000001]
[59952,"Alumínizált lábvédő, talprésszel, hő- és lánghatás ellen, tépőzáras (EN531, EN470), 30cm",null,null,17807.5,1,null,351,29400.182499999999]
[59960,"Alumínizált kámzsa, aramidszálas, arany látómezővel, hő- és lánghatás ellen (EN531, EN470)",null,null,68510,1,null,351,113110.01]
[59962,"Alumínizált sisakkámzsa, sildes védősisakra, aramidszállal, hő- és lánghatás ellen (EN531, EN470)",null,null,17340,1,null,351,28628.34]
[59964,"Alumínizált arcvédő sisakkámzsához, arany látómezővel és sisakpánttal (EN531, EN470)",null,null,35020,1,null,351,57818.020000000004]
[59970,"Alumínizált overall, aramidszálas, hő- és lánghatás ellen (EN531, EN470)",null,null,100470,1,null,351,165875.97]
[]
["Vágásbiztos ruházat"]
[]
[]
["L334","Vágásbiztos kabát ",null,"M/XXXL",18615,1,null,352,30733.365000000002]
[" ",". . .  méretek: M(L33402),  L(L33403),  XL(L33404),  XXL(L33405),  XXXL(L33406)",null," ",null,1,null,352]
["L332","Vágásbiztos kertésznadrág",null,"M/XXXL",18088,1,null,352,29863.288]
[" ",". . .  méretek: M(L33202),  L(L33203),  XL(L33204),  XXL(L33205),  XXXL(L33306)",null," ",null,1,null,352]
["L333","Vágásbiztos deréknadrág",null,"M/XXL",17663,1,null,352,29161.613000000001]
[" ",". . .  méretek: M(L33202),  L(L33203),  XL(L33204),  XXL(L33205),  XXXL(L33206)",null," ",null,1,null,352]
[]
["Vágás elleni fém védőeszközök"]
[]
[]
["4486-89","Lánckesztyű  /db",null,"8-11",15487,1,null,353,25569.037]
[" ",". . .méretek:  7zöld(4486),  8fehér(4487),  9piros(4488),  10kék(4489),  11narancs(4490)",null," ",null,1,null,353]
[4493,"Lánckesztyű 19 cm-es mandzsettával  /db",null,10,29427,1,null,353,48583.976999999999]
[44900,"Lánckesztyűfeszítő gumi / 100db",null,null,4990,1,null,353,8238.49]
[4494,"Lánckötény, lekerekített alumínium pikkelylapok (○) acélgyűrűkkel, 55 x 60 cm",null,null,21590,1,null,353,35645.090000000004]
[4495,"Lánckötény, 55 x 75 cm",null,null,24888,1,null,353,41090.088000000003]
[4496,"Lánckötény, téglalap inox rozsdamentes acél pikkelylapok (□) acélgyűrűkkel, 55 x 80 cm",null,null,30345,1,null,353,50099.595000000001]
[4497,"Lánckötény, 55 x 90 cm",null,null,39134,1,null,353,64610.234000000004]
[4498,"Lánckötény, rozsdamentes acélgyűrűkből, 55 x 60 cm",null,null,24777.5,1,null,353,40907.652500000004]
[4499,"Lánckötény, 55 x 75 cm",null,null,26545.5,1,null,353,43826.620499999997]
[]
["Közúti védőeszközök"]
[]
[]
[70010,"Közúti jelzőszalag, piros-fehér, 100 m hosszú, 5 cm széles",null,"100m",714,"100/10",2,356,1178.8140000000001]
[70011,"Közúti jelzőszalag, piros-fehér, 200 m hosszú, 7 cm széles",null,"200m",1309,24,2,356,2161.1590000000001]
[70012,". . .  sárga-fekete",null,". . . ",null,". . . ",2,356]
[70013,". . .  piros-sárga",null,". . . ",null,". . . ",2,356]
[70020,"Öntapadós jelzőszalag, 5cm x 66m, sárga-fekete",null,"66m",2074,"102/6","2",356,3424.174]
[70030,". . .                                                   piros-fehér",null,". . . ",null,". . . ","2",356]
[70040,"Közúti jelzőlánc,  sárga-fekete   /m              ",null,"25m",204,"25m*",null,356,336.80400000000003]
[70050,". . .                        piros-fehér      /m",null,". . . ",null,". . . *",null,356]
[70052,"Összekötőszem jelzőlánchoz, zárható",null,null,70.55,"10*",null,356,116.47805]
["70054","Összekötőszem jelzőlánchoz, S-alakú",null,null,70.55,"10*",null,356,116.47805]
[70058,"Fényvisszaverő prizma, felakasztható tokban, 14x10 cm",null,null,280.5,"10*",null,"web",463.10550000000001]
[70060,"Tartóoszlop lánchoz, 90 cm magas, vízzel tölthető talppal piros-fehér",null,"90cm",2295,12,null,356,{"$f":"E2512*1.651","v":3789.0450000000001}]
[70070,". . .                                                                                          sárga-fekete",null,". . . ",2507.5,". . . ",null,356,4139.8824999999997]
[70295,"Közúti elakadásjelző háromszög fémtalppal, tokban ",null,null,807.5,"10/1",null,356,1333.1825000000001]
["7WARY","Közúti szett: jól láthatósági mellény + elakadásjelző háromszög, hordtáskában ",null,null,1020,"10/1",null,356,1684.02]
["70286","ADR lámpa műanyag ház, stabil lábak, 6V-os 2,4 W-os izzó ",null,null,6970,"5/1",null,360,11507.47]
[]
["Közúti jelzőbóják"]
[]
[]
[70296,"Sávkijelölő stabil talppal és fényvisszaverő szemekkel,  36 cm",null,"36 cm",2252.5,25,null,"357",3718.8775000000001]
[70298,"Jelzőbója, 30 cm magas, piros",null,"30 cm",680,20,2,357,1122.68]
[70299,". . .                                  piros-fehér",null,". . .",722.5,". . .",2,357,1192.8475000000001]
[70300,"Jelzőbója, 54 cm magas, piros-fehér",null,"54 cm",1402.5,10,2,"357",2315.5275000000001]
[70301,". . .                                  sárga-fekete",null,". . .",1530,". . .",2,357,2526.0300000000002]
[70308,"Fényvisszaverő bója, 54 cm magas, piros-fehér",null,"50 cm",2167.5,10,null,357,3578.5425]
[]
["Ponyvák"]
[]
[]
[77116,"Polietilén takaróponyva   90 g/m² -   1,5 x 6 m",null,null,1156,25,null,358,1908.556]
[77123,". . .                                     90 g/m² -     2 x 3 m",null,null,884,40,null,358,1459.4839999999999]
[77135,". . .                                     90 g/m² -     3 x 5 m",null,null,2227,16,null,358,3676.777]
[77145,". . .                                     90 g/m² -     4 x 5 m",null,null,2856,12,null,358,4715.2560000000003]
[77146,". . .                                     90 g/m² -     4 x 6 m",null,null,3332,10,null,358,5501.1320000000005]
[77158,". . .                                     90 g/m² -     5 x 8 m",null,null,5440,6,null,358,8981.44]
[77182,". . .                                     90 g/m² -     8 x 12 m",null,null,12733,3,null,358,21022.183000000001]
[77323,"Polietilén takaróponyva   150 g/m² -     2 x 3 m",null,null,1513,24,null,358,2497.9630000000002]
[77345,". . .                                     150 g/m² -     4 x 5 m",null,null,4709,12,null,358,7774.5590000000002]
[77360,". . .                                     150 g/m² -     6 x 10 m",null,null,13413,3,null,358,22144.863000000001]
["77523","Polietilén takaróponyva   250 g/m² -     2 x 3 m",null,null,2397,12,null,358,3957.4470000000001]
["77545",". . .                                     250 g/m² -     4 x 5 m",null,null,7505.5,4,null,358,12391.5805]
["77560",". . .                                     250 g/m² -     6 x 10 m",null,null,17187,2,null,358,28375.737000000001]
[77020,"Rugalmas ponyvazsinór, 20 m hosszú",null,null,1445,25,null,358,2385.6950000000002]
[]
["Tűzoltókészülékek"]
[]
["TAHO?"]
["TAP1","ABC porral oltó, 1 kg",null,null,4420," ",null,359,7297.42]
["TAP2","ABC porral oltó, 2 kg",null,null,7123," ",null,359,11760.073]
["TAP6","ABC porral oltó, 6 kg",null,null,7701," ",null,359,12714.351000000001]
["TAP12","ABC porral oltó, 12 kg",null,null,14246,null,null,359,23520.146000000001]
["TAC2","CO2 oltó, 2 kg",null,null,13634,null,null,359,22509.734]
["TAC5","CO2 oltó, 5 kg",null,null,23409,null,null,359,38648.258999999998]
["TAH6","Habbal oltó, 6l",null,null,23409,null,null,359,38648.258999999998]
[]
["Ragtapaszok, ADR csomagok, törlőkendők"]
[]
[]
[9998,"ADR bázis csomag: vegyszerek elleni légzésvédő, szemüveg,szemöblítő, overall, kesztyű és csizma,",null,null,43724,"1",null,360,72188.324000000008]
[null,"közúti vődőmellény, lámpa, jelzőszalag, terelőkúp, elakadásjelző háromszög, poroltó, takaróponyva (+ veszélyességi fok szerint bővítendő)"]
["PL5505","Plum QuickFix zárható, utántölthetõ ragtapasz adagoló 45 db rugalmas natúr textil tapasszal",null,null,1878.5,"20/1",null,"364",3101.4034999999999]
["PL5501","Plum QuickFix zárható, utántölthetõ ragtapasz adagoló 90 db vízálló bézs tapasszal",null,null,5746,"10/1",null,"364",9486.6460000000006]
["PL5502","Plum QuickFix zárható, utántölthetõ ragtapasz adagoló 90 db rugalmas natúr textil tapasszal",null,null,5746,"10/1",null,"364",9486.6460000000006]
["PL5503","Plum QuickFix zárható, utántölthetõ ragtapasz adagoló 90 db fémszálas kék tapasszal",null,null,6579,"10/1",null,"364",10861.929]
["PL5511","Utántöltő 45 db bézs színű, vízálló ragtapasszal nedves munkahelyekre",null,null,1326,"6/1",null,"364",2189.2260000000001]
["PL5512","Utántöltő 45 db natúr színű, rugalmas textil ragtapasszal általános felhasználásra",null,null,1394,"6/1",null,"364",2301.4940000000001]
["PL5513","Utántöltő 45 db kék színű, fémszálas, steril és vízálló ragtapasszal az élelmiszeriparba",null,null,2125,"6/1",null,"364",3508.375]
["PL1201","Assoren  biológiailag lebomló(!), nagyhatású tisztító- és zsírtalanítószer a Plumtól",null,"5l",4734.5,"3/1",null,359,7816.6594999999998]
["PL1205",". . .",null,"200l",123505,"1",null,359,203906.755]
[99991,"Géptörlő kendő, 100% pamut anyagból /10kg",null,null,2584,"10kg",null,"web",4266.1840000000002]
[99992,"3 rétegű, nedvszívó cellulóz-textil törlőkendő tekercs nemszőtt anyagból /500lap, 22x28 cm",null,"22x28",3961,2,null,"web",6539.6109999999999]
["NA7092","DuPont Sontara erős zsírtalanító törlőkendő, szösz- és szakadásmentes /400lap, 28x38 cm",null,"28x38",8891,2,null,362,14679.041000000001]
[]
["Alkoholszondák, mentőládák"]
[]
[]
[9990,"Alkoholszonda, normál",null,null,382.5,"10*",null,360,{"$f":"E2578*1.651","v":631.50750000000005}]
[9991,"Elektromos alkoholszonda",null,null,4930,null,null,360,8139.43]
[9992,"Elektromos alkoholszonda, hosszú élettartam 1000 mérési alkalommal",null,null,16150,null,null,360,26663.65]
[9993,"Munkahelyi mentőláda 30 dolgozó részére (I.)",null,null,7378,null,null,360,12181.078]
[9994,"Munkahelyi mentőláda 50 dolgozó részére (II.)",null,null,9214,null,null,360,15212.314]
[9995,"Munkahelyi mentőláda 100 dolgozó részére (III.)",null,null,12801,null,null,360,21134.451000000001]
["9995+","Munkahelyi mentőláda 100 fő felett (IV.)",null,null,17833,null,null,360,29442.282999999999]
[9996,"Mentőláda személygépkocsihoz (B)",null,null,2091,null,null,360,3452.241]
[9997,"Mentőláda tehergépkocsihoz (C)",null,null,14773,null,null,360,24390.223000000002]
[]
["Tűzoltó takarók"]
[]
[]
[59010,"100x100 cm","tűzelfoljtó takaró tasakban, 540ºC, 420g/m2 ",null,5397.5,null,null,359,8911.2725000000009]
[59012,"120x120 cm","tűzelfoljtó takaró tasakban, 540ºC, 420g/m2 ",null,6290,null,null,359,10384.790000000001]
[59015,"150x150 cm","tűzelfoljtó takaró tasakban, 540ºC, 420g/m2 ",null,7437.5,null,null,359,12279.3125]
[59018,"180x180 cm","tűzelfoljtó takaró tasakban, 540ºC, 420g/m2 ",null,9350,null,null,359,15436.85]
[59020,"200x200 cm","tűzelfoljtó takaró tasakban, 540ºC, 420g/m2 ",null,11135,null,null,359,18383.885000000002]
[]
["Plum tisztítókendők"]
[]
[]
["PL5332","200 db bőrbarát univerzális tisztítókendő általános szennyeződések eltávolítására",null,null,5567.5,"4/1",null,"359",9191.942500000001]
["PL5330","50 db bőrbarát tisztítókendő nagyon erős szennyeződések eltávolítására",null,null,3570,"6/1",null,"359",5894.07]
["PL5331","150 db bőrbarát tisztítókendő nagyon erős szennyeződések eltávolítására",null,null,8372.5,"4/1",null,"359",13822.997499999999]
[]
["Plum munkavégzés előtti és utáni kézkrémek"]
[]
[]
["PL2541","Plutect Dual munkavégzés előtti bőrvédő krém, tubus",null,"100ml",850,"18/1",null,361,1403.35]
["PL2503",". . .  utántöltő",null,"0,7l",3323.5,"8/1",null,361,5487.0985000000001]
["PL2901","Handy Plus munkavégzés utáni bőrápoló, kondícionáló krém, tubus",null,"200ml",850,"12/1",null,361,1403.35]
["PL2903",". . .  utántöltő",null,"0,7l",2881.5,"8/1",null,361,4757.3564999999999]
["PL2965","Plutect Care bőrvédő és bőrápoló (előtti+utáni) krém, tubus",null,"250ml",1190,"12/1",null,361,1964.69]
["PL2963",". . .  utántöltő",null,"1l",3774,"6/1",null,361,6230.8739999999998]
[]
["Plum krémszappanok"]
[]
[]
["PL1413","Plum 14 bőrkímélő, tisztító ipari krémszappan",null,"1,4l",1632,"8/1",null,361,2694.4320000000002]
["PL1403",". . .  utántöltő",null,"5l",3740,"3/1",null,361,6174.74]
["PL1706","Plum 17 bőrkímélő, tisztító ipari krémszappan",null,"1,4l",2031.5,"8/1",null,361,3354.0065]
["PL1705",". . .  utántöltő",null,"5l",4394.5,"3/1",null,361,7255.3195000000005]
["PL1786","Nature környezetbarát szín és illatmentes krémszappan",null,"1l",1419.5,"6/1",null,361,2343.5945000000002]
["PL1795",". . .  utántöltő",null,"1,4l",1989,"8/1",null,361,3283.8389999999999]
["PL1736","Nature Hair and Body környezetbarát szín- és illatmentes tusfürdő és sampon",null,"1l",1615,"6/1",null,361,2666.3650000000002]
["PL1737",". . .  utántöltő",null,"1,4l",2048.5,"8/1",null,361,3382.0735]
[]
["Plum kéztisztítók"]
[]
[]
["PL0915","Profi kéztisztító ipari (olaj, korom, fém, gumi) szennyeződésekre, tubus",null,"250ml",841.5,"12/1",null,361,1389.3165000000001]
["PL0918",". . .  utántöltő",null,"1,4l",2635,"8/1",null,361,4350.3850000000002]
["PL0995","Plum Extra nagy hatású kéztisztító citromolajjal, ipari szennyeződésekre, tubus",null,"250ml",875.5,"12/1",null,361,1445.4504999999999]
["PL0984",". . .  utántöltő",null,"4,2l",6655.5,"3/1",null,361,10988.2305]
["PL0815","Plulac festék, lakk és gyanta eltávolító, száraz kézre, tubus",null,"250ml",1130.5,"12/1",null,361,1866.4555]
["PL0818",". . .  utántöltő",null,"1,4l",4403,"8/1",null,361,7269.3530000000001]
[]
["Plum adagolórendszerek"]
[]
[]
["PL4214-15","Standard Plum ABS műanyag adagoló, 0,7, 1 és 1,4 literes utántöltőhöz, átlátszó vagy fekete",null,null,977.5,1,null,361,1613.8525]
["PL4224","Maxi Plum ABS műanyag adagoló, 4,2 literes utántöltőhöz fekete színben",null,null,1054,1,null,361,{"$f":"E2640*1.651","v":1740.154}]
["PL4252","Modul II műanyag kettős adagoló, 0,7 és 1,4 literes utántöltőhöz",null,null,1700,1,null,361,2806.7]
["PL4253","Modul III műanyag hármas adagoló, 0,7 és 1,4 literes utántöltőhöz",null,null,2252.5,1,null,361,3718.8775000000001]
["PL4302","Érintés nélküli 1000 ml elektromos adagoló fedéllel, elemekkel, PL1786 és PL3736 adagolásához",null,null,12563,1,"R",361,20741.512999999999]
[]
["Kézfertőtlenítők, sebtisztítók, rovarriasztók"]
[]
[]
["PL5550","Plum QuickClean falra szerelhető, utántölthetõ adagoló 40 db nedves, steril sebtisztító kendővel",null,"13x20cm",2907,null,null,364,4799.4570000000003]
["PL5551","Utántöltõ, 40 db nedves, steril sebtisztító kendővel",null,"13x20cm",2380,null,null,364,3929.38]
["PL3728","Plum Disinfector 70% higiénés kézfertőtlenítő gél baktériumok, vírusok, gombák ellen, tubus",null,"120ml",1147.5,"10/1",null,"361",1894.5225]
["PL3720",". . .  utántöltő",null,"1,4l",3332,"8/1",null,"361",5501.1320000000005]
["3M SRA6","3M UltrathonTM szúnyog- és kullancsriasztó spray, víz- és verejtékálló, 8 órás védelem ",null,"170ml",1760,"6/1",null,364,2905.76]
["3M SRL12","3M UltrathonTM szúnyog- és kullancsriasztó krém, víz- és verejtékálló, 12 órás védelem ",null,"60ml",1760,"12/1",null,364,2905.76]
[]
["Szerszámostáskák"]
[]
[]
[78500,"Háromrészes övtáska bőrből, szerszámoknak, kötőelemeknek",null,null,4879,"10/1",null,366,8055.2290000000003]
[78505,"Háromrészes övtáska bőrből, szerszámoknak, kötőelemeknek",null,null,4879,"10/1",null,366,8055.2290000000003]
[78510,"Kétrészes övtáska erős marhabőrből, varrott és szegecselt",null,null,4879,"10/1",null,366,8055.2290000000003]
[78515,"Kétrészes övtáska erős marhabőrből, varrott és szegecselt",null,null,4879,"10/1",null,366,8055.2290000000003]
[78520,"Villanyszerelő övtáska plusz vezetéktartóval",null,null,5134,"10/1",null,366,8476.2340000000004]
[78530,"Övtáska hevederrel szerszámoknak",null,null,2533,"10/1",null,366,4181.9830000000002]
[78540,"Övtáska hevederrel kötőelemeknek",null,null,2533,"10/1",null,366,4181.9830000000002]
[78550,"Kombinált övtáskaszett hevederrel",null,null,3502,"10/1",null,367,5781.8019999999997]
[78560,"Kombinált övtáska szett szegtáskával, bőrszíjjal, hevederrel",null,null,7310,"10/1",null,367,12068.81]
[78570,"Szegtáska vastag marhabőrből, kicsi",null,null,1309,"10/1",null,367,2161.1590000000001]
[78575,"Szegtáska vastag marhabőrből, nagy",null,null,2023,"10/1",null,367,3339.973]
[78580,"Elektródatartó erős marhabőrből, hevederrel",null,null,1309,"10/1",null,366,2161.1590000000001]
[78590,"Deréköv vastag marhabőrből, hevederszalaggal megerősítve",null,null,2023,"10/1",null,367,3339.973]
[78600,"Kombinált övtáskaszett hevederrel, szürke bőrből",null,null,1904,"10/1",null,367,3143.5039999999999]
[78610,"Karabineres, háromrészes övtáska szürke marhabőrből",null,null,1377,"10/1",null,367,2273.4270000000001]
[78620,"Hevederes, háromrészes szerszámostáska marhabőrből",null,null,2533,"10/1",null,367,4181.9830000000002]
[78630,"Hevederes szögráska vastag marhabőrből",null,null,2023,"10/1",null,367,3339.973]
[78640,"Tapétázó szürke övtáska derékhevederrel, szerszámtatókkal",null,null,3502,"10/1",null,367,5781.8019999999997]
[]
["Táskák"]
[]
[]
["S120001","Coverguard SWAT matróztáska, fogantyú, alsó cipzáros rekesz, fölül összehúzható, fekete",null,"76l",3850.5,"20/1",null,"365",6357.1755000000003]
["S120200","Coverguard táska, vízhatlan piros PVC T600D anyagból, vállra és hátra is vehető",null,"42l",6970,"20/1",null,"364",11507.47]
["S120400","Lux Optical váll- és laptop táska, két cipzáros rekesz, négy zseb, vállpánt, fekete PA 1860D",null,"13l",7480,"20/1",null,"365",12349.48]
["S120800","Coverguard utazótáska, sokrekeszes, görgős, vállra és hátra is vehető",null,"100l",14161,"20/1",null,365,23379.811000000002]
["OG7306","Lotto sporttáska, három cipzáras zseb, erős hevederpántok, fekete/narancs",null,null,10115,"10/1","R","web",16699.865000000002]
["OG7307","Lotto válltáska, nagy belső rekesz, négy zseb, telefontartó, fekete/narancs",null,null,6562,"10/1","R","web",10833.862000000001]
["AX011","Cado szerszámtartó matróztáska erős, vízhatlan piros PVC anyag, fölül összehúzható",null,null,3791,"10/1",null,"392",6258.9409999999998]
[]
["Cado® munkaövek, testhevederzetek"]
[]
[]
["B101","Belt-1 munkahelyzet-beállító deréköv 1,65 m-es állítható kötéllel és karabinerrel",null,null,6528,null,null,371,10777.728000000001]
["APB40","Free munkahelyzet-beállító deréköv, szivacsbélés, szerszámtartók, automata gyorscsat",null,null,8874,null,null,"371",14650.974]
["C71015","Slim munkahelyzet-beállító deréköv, könnyű, keskeny, komfort béléses, tartókkal",null,null,3180,null,null,"371",5250.18]
["C71068","Kaméleon beülő munkahelyzet-beállító deréköv combhevederekkel, tartókkal",null,null,11260,null,null,"372",18590.260000000002]
["APB70","Gekko beülő munkahelyzet-beállító deréköv combhevederekkel, tartókkal",null,null,12546,null,null,"372",20713.446]
["ATH20","Tree beülő deréköv, széles combrész, összekötőheveder bekötési ponttal",null,null,25840,null,null,"372",42661.840000000004]
["C71022","Caracal testhevederzet hátsó felfüggesztéssel, fenékhevederrel (1 pontos)",null,null,3900,null,null,"373",6438.9]
["C71025","Ocelot testhevederzet, hátsó és mellső bekötéssel (3 pontos)",null,null,3900,null,null,"373",6438.9]
["C71035","Top testhevederzet, beülős fenékhevederrel, hátsó és mellső bekötéssel  (3 pontos)",null,null,4280,null,null,"373",7066.28]
["C71037","Boa testhevederzet, hátsó szivacsbetét, fenékheveder, fém bekötések (3 pontos)",null,null,6990,null,null,"373",11540.49]
["B102","Basic-2 testhevederzet hátsó felfüggesztéssel (1 pontos)",null,null,3723,null,null,374,6146.6729999999998]
["B102/SA","Basic-2S testhevederzet, beülős fenékhevederrel (3 pontos)",null,null,4318,null,null,374,7129.018]
["C71039","Elastic rugalmas hevederzet, plusz mell- fenékheveder, fém bekötések (2 pontos)",null,null,14860,null,null,376,24533.86]
["AP40","Spider testhevederzet, plusz has- és fenékheveder és hásó toldalékpont (3+1 pontos)",null,null,6987,null,null,"375",{"$f":"E2704*1.651","v":11535.537}]
["AP32","Gibbon testhevederzet, párnázott vállrész, gyorscsatok, mell- és fenékheveder (3 pontos)",null,null,14093,null,null,375,23267.543000000001]
["AP30","Snake testhevederzet, plusz  fenékheveder és hásó toldalékpont (3 pontos)",null,null,5049,null,null,"375",8335.8989999999994]
["AP10R","Save biztonsági mentő kikötési ponttal ellátott testhevederzet jól láthatósági színben (2+1 pontos)",null,null,7701,null,null,"374",12714.351000000001]
["AP30N","Flame lángálló testhevederzet, plusz  fenékheveder és hásó toldalékpont (3 pontos)",null,null,42619,null,null,"374",70363.968999999997]
["C71055","Puma testhevederzet munkaövvel, fenékheveder, hátsó, mellső és oldalbekötés (3+2 pontos)",null,null,8030,null,null,"376",13257.53]
["C71058","Leopard beülős testhevederzet+munkaöv, első-, hátsó-, két oldal-, beülő fém bekötés (3+2 pontos)",null,null,16810,null,null,"376",27753.31]
["B103","Basic-3 testhevederzet munkaövvel, 1,65 m-es állítható kötéllel (1+2 pontos)",null,null,12461,null,null,377,20573.111000000001]
["B103S/2A","Basic-3S testhevederzet munkaövvel, fenékhevederrel, 1,65 m-es állítható kötéllel (3+2 pontos)",null,null,13039,null,null,377,21527.388999999999]
["B106","Squirrel testhevederzet munkaövvel, beülős (5+2 pontos)",null,null,13498,null,null,377,22285.198]
["AP61E","Lemur hevederzet+munkaöv, rugalmas váll-rész, hosszabbító toldalék a hásó kikötéshez (5 pont)",null,null,13600,null,null,"378",22453.599999999999]
["AP51E","Lizard testhevederzet munkaövvel, rugalmas váll-rész, automata gyorscsatok, beülős (3+2 pont)",null,null,17527,null,null,"378",28937.077000000001]
["AP52","Koala hevederzet+munkaöv, párnázott vállrész, gyorscsatok, mell- és fenékheveder (5 pontos)",null,null,17722.5,null,null,379,29259.8475]
["AP71","Panther beülős testhevederzet+munkaöv, első-, hátsó-, két oldal-, beülő fém bekötés (3+2 pontos)",null,null,19261,null,null,379,31799.911]
["AP80","Jaguar beülős hevederzet+munkaöv, párnázott hátrész, gyorscsatok, beülő kikötés (7 pontos)",null,null,26010,null,null,379,42942.51]
["APS1","Váll- és háthevederekre csatolható, komfortos szivacsbetét",null,null,3468,null,null,"392",5725.6679999999997]
[]
["Munkahelyzet-beállítók és rögzítőkötelek"]
[]
[]
["APRO3","Pro szett: 3 m munkahelyzet-beállító, körszövött kötél, hossz-szabályzó egység, 2 karabiner",null,null,7446,null,null,"380",12293.346]
["C71208","Lock szett: 2 m munkahelyzet-beállító, fonott kötél, hossz-szabályzó, 2 csavaros karabiner",null,null,6800,null,null,"380",11226.8]
["BC358","1,65 m-es, állítható hosszúságú mh-beállító, fonott kikötőkötél, Ø12 mm + 1 karabiner",null,null,3264,null,null,"380",5388.8640000000005]
["C71202","2 m-es, állítható hosszúságú mh-beállító, fonott kikötőkötél, Ø14 mm + 2 csavaros karabiner ",null,null,3383,null,null,"380",5585.3329999999996]
["C71207","2 m-es mh-beállító, fonott kikötőkötél, Ø12 mm + csavaros és nagy nyílású rugós karabinerek",null,null,4403,null,null,"380",7269.3530000000001]
["ALB-2","2 m-es, állítható hosszúságú mh-beállító, körszövött kikötőkötél, Ø12 mm + karabiner",null,null,2924,null,null,"380",4827.5240000000003]
["C71245","1,8 m-es, állítható hosszúságú mh-beállító, körszövött kikötőkötél, Ø10 mm + 2 csavaros karabiner ",null,null,4284,null,null,"380",7072.884]
["C71249","1,8 m-es mh-beállító, körszövött kikötőkötél, Ø12 mm + csavaros és nagy nyílású rugós karabinerek",null,null,4930,null,null,"380",8139.43]
["BNC358","1,8 m-es, állítható hosszúságú munkahelyzet-beállító hevederszalag karabinerrel, 32 mm széles",null,null,3043,null,null,"380",5023.9930000000004]
["ALE-2","1,9 m-es maximális hosszúságú, munkahelyzet-beállító rugalmas hevederszalag karabinerrel",null,null,3842,null,null,"380",6343.1419999999998]
["AFLR-2","2 m-es, állítható, lángálló aramid munkahelyzet-beállító kikötőkötél karabinerrel, Ø11 mm",null,null,6596,null,null,"380",10889.996000000001]
["BFT5","  5 m-es fonott statikus kötél egyik végén visszafonva, karabinerrel, 12 mm átmérőjű",null,null,3859,null,null,381,6371.2089999999998]
["BFT10","10 m-es . . . ",null,null,5848,null,null,381,9655.0480000000007]
["BFT15","15 m-es . . . ",null,null,7837,null,null,381,12938.887000000001]
["BFT20","20 m-es . . . ",null,null,9537,null,null,381,15745.587]
["BFT25","25 m-es . . . ",null,null,11662,null,null,381,19253.962]
["BFT30","30 m-es . . . ",null,null,13804,null,null,381,22790.403999999999]
["BFT40","40 m-es . . . ",null,null,17765,null,null,381,29330.014999999999]
["BFT50","50 m-es . . . ",null,null,21318,null,null,381,35196.018000000004]
["AC2-10","10 m-es körszövött statikus kötél, mindkét végén visszafonva, 12 mm átmérőjű",null,null,4709,null,null,381,7774.5590000000002]
["AC2-20","20 m-es . . .",null,null,6545,null,null,381,10805.795]
["AC2-30","30 m-es . . .",null,null,9248,null,null,381,15268.448]
["AC2-40","40 m-es . . .",null,null,11101,null,null,381,18327.751]
["AC2-50","50 m-es . . .",null,null,13515,null,null,381,22313.264999999999]
["ALP-10","10 m-es körszövött statikus kötél, visszafonva, 10,5 mm átmérőjű (Indy és Escape-hez)",null,null,3502,null,"R",381,5781.8019999999997]
["AC1-10","10 m-es körszövött statikus kötél, mindkét végén visszafonva, 14 mm átmérőjű (Grab-hez)",null,null,5729,null,"R",381,9458.5789999999997]
["BF10","10 m-es fonott statikus kötél egyik végén visszafonva, 16 mm átmérőjű (Stopcorde-hoz)",null,null,8891,null,"R",381,14679.041000000001]
["AC8-10","10 m-es sodort acélkábel, mindkét végén gyűrűkkel visszafonva, 8 mm átmérőjű (Cableblock-hoz)",null,null,17442,null,"R",381,28796.742000000002]
["AE320","Horizont 20m-es, állítható vízszintes rögzítőhevederzet 3 személy egyidejű munkavégzéséhez",null,null,20196,null,null,381,33343.595999999998]
[]
["Cado®  energiaelnyelők"]
[]
[]
["ABM","Energy energiaelnyelő heveder kötél és karabiner nélkül",null,null,3774,null,null,382,6230.8739999999998]
["BAMN","Energy-H energiaelnyelő, hevederszalag kötéllel, 2 karabinerrel, 1,8 m hosszú ",null,null,5440,null,null,382,8981.44]
["C71430","TopLock-C energiaelnyelő,  fonott kötéllel, 2 csavaros karabinerrel, 1,8 m hosszú ",null,null,5210.5,null,null,382,8602.5355]
["C71432","TopLock-K energiaelnyelő, állítható körszövött kötéllel, 2 karabinerrel 1,8 m hosszú ",null,null,6341,null,null,382,10468.991]
["ABM-LB","Energy-K energiaelnyelő, állítható körszövött kötéllel, 2 karabinerrel 1,8 m hosszú ",null,null,6545,null,null,382,10805.795]
["ABM-LE","Energy-R energiaelnyelő, rugalmas hevederszalag kötéllel, 2 karabinerrel, 1,8 m-es ",null," ",7191,null,null,382,11872.341]
["ABM-FL","Energy-F energiaelnyelő alumínizált textilben, lángálló körszövött aramid kötéllel, 2 m",null," ",10353,null,null,382,17092.803]
["C71420","TopLock-2H energiaelnyelő, 2Y hevederszalag kötéllel, 1 csavaros és 2 nagy karabinerrel (ABM-2T)",null,null,9962,null,null,383,16447.261999999999]
["C71422","TopLock-2K energiaelnyelő, 2Y körszövött kötéllel, 1 csavaros és 2 nagy karabinerrel",null,null,15504,null,null,383,25597.103999999999]
["C71425","TopLock-2R energiaelnyelő, 2Y rugalmas kantárral, 1 csavaros és 2 nagy karabinerrel",null,null,16813,null,null,383,27758.262999999999]
[]
["TopLock®  zuhanásgátló szettek"]
[]
[]
["C71605","Top testheveder (C71035) + hevederszalagos energiaelnyelő (C71410) + táska (C71600)",null,null,17340,null,null,383,{"$f":"E2771*1.651","v":28628.34}]
["C71625","Top testheveder (C71035) + visszahúzható 2,5m zuhanásgátló (C71460) + táska (C71600)",null,null,24148.5,null,null,383,39869.173499999997]
["C71630","Top testheveder (C71035) + vezérelt zuhanásgátló 10 m kötéllel (C71353) + táska (C71600)",null,null,28475,null,null,383,47012.224999999999]
[]
["Csatlakozók, karabinerek"]
[]
[]
["AZ011","Karabiner, csavarmenetes, 18 mm nyílású, galvanizált acél",null,null,935,null,null,386,1543.6849999999999]
["C71110","Karabiner, csavarmenetes, 18 mm nyílású, acél",null,null,680,null,null,386,1122.68]
["C71121","Karabiner, rugós acélzáras, 18 mm nyílású, galvanizált acél (AZ002)",null,null,629,null,null,386,1038.479]
["C71114","Karabiner, csavarmenetes, 19 mm nyílású, alumínium",null,null,1394,null,null,386,2301.4940000000001]
["C71115","Karabiner, elfordítós, 21 mm nyílású, alumínium",null,null,1878.5,null,null,386,3101.4034999999999]
["AZ004","Karabiner, elfordítós, 22 mm nyílású, alumínium, vezetőgyűrűvel",null,null,1836,null,null,386,3031.2359999999999]
["C71117","Karabiner, elfordítós, 19 mm nyílású, alumínium, vezetőgyűrűvel",null,null,2125,null,null,386,3508.375]
["AZ02A","Karabiner, rugós acélzáras, 24 mm nyílású, acél, vezetőgyűrű, pörgetőszem",null,null,3587,null,null,386,5922.1369999999997]
["AZ018","Karabiner, csavarmenetes, 27 mm nyílású, galvanizált acél",null,null,1581,null,null,386,2610.2310000000002]
["AZ111","Karabiner, elfordítós, 45 mm nyílású, könnyű alumínium ",null,null,3638,null,null,386,6006.3379999999997]
["AZ022","Karabiner, kettős rugós zárral, 50 mm nyílású, galvanizált acél (C71160)",null,null,2278,null,null,386,3760.9780000000001]
["AZ023","Karabiner, kettős rugós zárral, 60 mm nyílású, könnyűfém ötvözet (C71161)",null,null,3264,null,null,386,5388.8640000000005]
["AZ025","Zárkapocs, rugós biztonsági zárral, 88 mm nyílású, galvanizált acél",null,null,5695,null,null,386,9402.4449999999997]
["AZ201","Zárkapocs, összenyomós, 80 mm nyílású (C71170)",null,null,4165,null,null,386,6876.415]
["AZ203","Zárkapocs, összenyomós, 140 mm nyílású (C71171)",null,null,5780,null,null,386,9542.7800000000007]
["AZ410","Acélsodrony hurok, 50 cm hosszú, csavarmenetes AZ011 karabinerrel",null,null,3094,null,null,386,5108.1940000000004]
["C71450","Hevederszalag, 50 cm hosszú, fém D-gyűrűkkel",null,null,1632,null,null,386,2694.4320000000002]
["AZ700","Hevederszalag, 45 cm hosszú, gumi belsővel, csavarmenetes AZ011 karabinerrel",null,null,4607,null,null,386,7606.1570000000002]
["C71231","Hevederszalag, 90 cm hosszú, 30 mm széles, hurkos végekkel",null,null,1130.5,null,null,386,1866.4555]
["AZ900","Hevederhurok, 60 cm hosszú, 35 mm széles, biztonsági varrással",null,null,731,null,null,386,1206.8810000000001]
[]
["Vezérelt típusú zuhanásgátlók"]
[]
[]
["C71353","Top zuhanásgátló + energiaelnyelő + 10 m hosszú, 12 mm-es körszövött kötél + 1 karabiner",null,null,12546,null,null,null,20713.446]
["AC060","Linostop zuhanásgátló szett: zuhanásgátló, energiaelnyelő heveder, karabiner, 10 m kötél",null,null,12801,null,null,"384",21134.451000000001]
["B301","Stopper zuhanásgátló 12 mm átmérőjű kötélzethez",null,null,10795,null,null,"384",17822.545000000002]
["AC040","Block nyitható zuhanásgátló 12 mm átmérőjű kötélzethez",null,null,11645,null,null,"384",19225.895]
["AC012","Grab nyitható zuhanásgátló 14 mm átmérőjű kötélzethez",null,null,15130,null,null,"384",24979.63]
["B311","Stopcorde zuhanásgátló 16 mm-es kötélzethez",null,null,20196,null,null,"384",33343.595999999998]
["AC350","Cableblock nyitható zuhanásgátló 8 mm-es feszített acélkábelhez",null,null,13770,null,null,"385",22734.27]
["AC350SET","Cable zuhanásgátló szett: Cableblock, 10m kábel, feszítő, kötélvezető, bilincsek, karabinerek",null,null,45203,null,null,"385",74630.153000000006]
[]
["Ereszkedő és mászó szerkezetek"]
[]
[]
["B801","Indy Evacuator - önmentő ereszkedőeszköz",null,null,37230,null,null,387,61466.73]
["B801SET","Ereszkedő mentőkészlet (Indy önmentő, B102S hevederzet, 2 karabiner, 10m kötél, tartódoboz)",null,null,60673,null,null,387,100171.12300000001]
["AR010","Ereszkedő mentőkészlet (Escape önmentő, 3 karabiner, hevederhurok, 30m kötél, kés, tartózsák)",null,null,56576,null,null,387,93406.975999999995]
["ACD211","Balkezes, markolattal ellátott mászóeszköz 9-13 mm átmérőjű körszövött kötélhez",null,null,8687,null,null,387,14342.237000000001]
["ACD212","Jobbkezes, markolattal ellátott mászóeszköz 9-13 mm átmérőjű körszövött kötélhez",null,null,8687,null,null,387,14342.237000000001]
[]
["Visszahúzható típusú, automata zuhanásgátlók"]
[]
[]
["B803","Cado-W3 visszahúzható heveder energiaelnyelővel",null,null,8551,null,null,388,14117.701000000001]
["ACR-006","Cado-C6 visszahúzható zuhanásgátló, 6m acélkábel, műanyag ház, karabiner",null,null,63903,null,null,388,105503.853]
["C71480","TopLock-C10 visszahúzható zuhanásgátló, 10m acélkábel, műanyag ház, karabiner",null,null,60035.5,null,null,388,99118.610499999995]
["ACR-115","Cado-C15 visszahúzható zuhanásgátló, 15m acélkábel, fém ház, karabiner",null,null,67779,null,null,388,111903.129]
["AWR-006","Cado-W6S visszahúzható lezuhanásgátló, 6m hevederszalag, fém ház, karabiner",null,null,58089,null,null,388,95904.938999999998]
["AWR-106","Cado-W6 visszahúzható lezuhanásgátló, 6m hevederszalag, műanyag ház, karabiner",null,null,45186,null,null,388,74602.085999999996]
[]
["Csőrlős mentőállványok"]
[]
[]
["ATM","Komplett csőrlős Cado mentőállvány (AT011, AT050, AT300)",null,null,202742,null,null,"389",{"$f":"E2833*1.651","v":334727.04200000002}]
["AT011","Mentőállvány, háromlábú, teleszkópos, alumínium (2,3x1,7 m)",null,null,103020,null,null,"389",170086.02]
["AT050","Karos mentőkészülék, személyvédő lezuhanásgátló 20m acélsodronnyal",null,null,103020,null,null,"389",170086.02]
["AT300","Lifting mentőheveder-szalag a testhevederzet mellső pontjaihoz, 3 karabinerrel",null,null,9027,null,null,"389",14903.576999999999]
["C71710","Mentőállvány, háromlábú, teleszkópos, alumínium (2,15x1,5 m)",null,null,99008,null,null,"389",163462.20800000001]
["C71714","Karos mentőkészülék, személyvédő lezuhanásgátló 20m acélsodronnyal",null,null,99008,null,null,"389",163462.20800000001]
[]
["Egyéb eszközök magasban végzett munkákhoz"]
[]
[]
["AT150","Állandó fém kikötési pont, 135x60x60 mm, mindhárom irányba bevizsgálva, csavaros rögzítés",null,null,3621,null,null,390,{"$f":"E2843*1.651","v":5978.2709999999997}]
["ACD101","Futócsiga max. 13 mm átmérőjűkörszövött kötélhez, önkenő kerekek, 3 karabineres csatlakozás",null,null,8687,null,null,390,14342.237000000001]
["ABA100","Pad-1 ülőpad, párnázott hevederszalag karabinerrel (csak testhevederrel használható)",null,null,13515,null,null,390,22313.264999999999]
["ABA200","Pad-2 munkaövvel kombinált fa ülőpad karabinerekkel (csak testhevederrel használható)",null,null,17051,null,null,390,28151.201000000001]
["C71718","Pad-3 hátul és oldalt zárt ülőpad hevederekkel (csak testhevederrel használható)",null,null,11169,null,null,390,18440.019]
["ADL010","Körszövött kötél létra alumínium fokokkal, függesztőkarabinerrel (csak testhevederrel használható)",null,null,22287,null,null,"391",36795.837]
["ADL012","Acélsodrony létra alumínium fokokkal, függesztőkarabinerrel (csak testhevederrel használható)",null,null,22287,null,null,"391",36795.837]
["AY02","Szerszámtartó 1m hosszú rugalmas gumiszalag poliamid védőborítással",null,null,1326,null,null,"392",2189.2260000000001]
["ASP101","Mászószerszám fa oszlopokhoz",null,null,45628,null,null,"391",75331.827999999994]
["ASP203","Mászószerszám vasbeton oszlopokhoz",null,null,71485,null,null,"391",118021.735]
["ASP401","Mászószerszám vasbeton oszlopokhoz",null,null,158865,null,null,"391",262286.11499999999]
["ASP501","Mászószerszám fához, erdészeti munkákhoz, cserélhető tüskével, szivacsos lábszárvédővel",null,null,45628,null,null,"391",75331.827999999994]
["ADP1","Bemutatóbábu, műanyag plusz szivacs, hevederzetek bemutatására ",null,null,16660,null,null,"392",27505.66]
[]
[]
[]
["KIFUTÓ MODELLEK"]
[]
["A kék színnel jelölt termékek esetében bizonyos méretekből utánrendelésre is van leheteőség "]
["Cikkszám",null,"                      Megnevezés","Meglévő méretek","Nettó ár",null,"2010-es katalógus "]
[null,null,null,null,"K1"]
["KESZTYŰK"]
[]
[]
["828","Puha színsertés, fehér vászon kézhát csuklógumival 8-as méret",null,"8",null,null,null,111]
["6859","Spectra kék, 5-ös színten vágásbiztos, kopásálló",null,9,null,null,null,"web"]
["9050","Barna nitril/vászon mechanikai védőkesztyű merev mandzsettával",null,10,null,null,null,158]
["4650"]
[]
[]
[]
[]
[]
["LÁBBELIK"]
[]
[]
["LEP08","SODALITÉ (S1P) szellőző nubuk bőr szandál fém orrmerevítővel és talplemezzel",null,39,null,null,null,177]
["LEP27","CARBON S3 fekete B. kif",null,40.450000000000003,null,null,null,174]
["LEP33","MAGNESITE (01)  barna nubuk túrabakancs, acél nélkül, TPU (180ºC)",null,"39,40,47",null,null,null,174]
["LKR10","GARAM (02) félcipő, kétrétegű gumi/PU talp plusz varrással, acél nélkül",null,45.46]
["LKR11","HERNÁD (02) bakancs, kétrétegű gumi/PU talp plusz varrás, acél nélkül",null,"37,39"]
["LKR20","FARMER (01) bakancs, thermokapli, barna nubukbőr",null,"37-47",null,null,null,"web"]
["LKR21","FARMER (01) bakancs, thermokapli, sárga nubuk",null,"37, 47",null,null,null,"web"]
["LKR22","FARMER (01) bakancs, thermokapli, fekete színbőr",null,"37-43",null,null,null,"web"]
["LKR23 ","FARMER (01) félcipő, thermokapli, barna nubuk",null,"37, 43, 44, 47",null,null,null,"web"]
["LKR24","FARMER (01) félcipő, thermokapli, sárga nubuk ",null,"37-41, 45",null,null,null,"web"]
["LKR25","FARMER (01) félcipő, thermokapli, fekete színbőr",null,"37-41, 44, 47-48",null,null,null,"web"]
["LKR32","TÁTRA (SB) cipő, acélkapli, gumitalp",null,"46"]
["LPA33","POLO (S1) bebújós szandál",null,"41,47,48"]
["LPA35","ZIPP (S3) cipzáras magasszárú védőbakancs",null,"40,46,48"]
["LPA38","MESH (S1P) speciális, jól szellőző vászoncipő, acélkapli és -talp,  plusz orrborítás",null,"37-41,46,47"]
["LPA47","SAMA (S1) bebújós, acélkaplis bakancs, csúszásbiztos, antisztatikus ",null,"36-41,44"]
["LPA48","BELLA (S1) csatos szandál, alacsony kéreggel, acélkaplival",null,"43",null,null,null,184]
["LPA80","OTELLO (S3) fémmentes, fekete színbőr cipő kompozit orrmerevítővel, talpbetéttel",null,"38,39,47"]
["LPA84","CASSIO (S1P) fémmentes, szürke nubuk cipő kompozit / kevlár betéttel, szellőző",null,"38, 47"]
["LPA85","RODRIGO (S1P) fémmentes, szürke nubuk bakancs kompozit / kevlár betéttel",null,"39-40,46-47",null,null,null,"web"]
["LPA88","BRUNO (S2) fémmentes, fekete színbőr cipő kompozit orrmerevítővel",null,"38,39,46,47"]
["LPA89","BRANDO (S2) fémmentes, fekete színbőr bakancs kompozit orrmerevítővel",null,"40,45-47",null,null,null,"web"]
["LPD10","ALFONZ (02E WRU) félcipő, kívül-belül színbőr, varrott plusz ragasztott",null,"37-47"]
["LPD12","SZULTÁN (O2) félcipő, fekete színbőr",null,"37-40,42,46"]
["LPD16","POTRIEN (02E WRU) csatos szandál, kívül-belül színbőr, varrott+ragasztott",null,"37-38"]
["LPD21","FORTE (O2) bakancs, fekete thermokaplis",null,"47",null,null,null,"web"]
["LPD22","PIANO (S2) orrmerevítős fekete védőbakancs",null,"47"]
["LPD24","PRESTO (S1) acélkaplis szandál",null,"40,46-47"]
["LPD30","PARMA (SBPE WRU HRO) cipő, hőálló talp (300°C), acéltalp és -kapli",null,"39-40,45-48",null,null,null,"web"]
["LPD31","ROCCA (SBPE WRU HRO) bakancs, hőálló talp (300°C), acéltalp,  -kapli   ",null,"39-40,45-48"]
["LPD32","PADOVA (SB WRU HRO) bakancs (300°C), PU lábfejvédő, fémmentes, CK kompozit kapli",null,"37-45, 47",null,null,null,"web"]
["LPD35","FRED (SB WRU HRO) aszfaltozó bakancs, sima hőálló talp (300°C), CK kompozit kapli",null,"39,41, 45-48",null,null,null,"web"]
["LPD60","GENT (OB WRU) bélelt védőcsizma",null,"36,38,40-43,45-46",null,null,null,"web"]
["LPD79","TREBICS CK (SBP WR IS) színbőr surranó, kompozit orr, acél talplemez",null,"40-44,46-47"]
["LPD80","TREBICS (OP WR IS) színbőr surranó, kompozit orr, orrmerevítő nélkül, talplemezzel",null,"42,43,44"]
["LPD82","DRUGICS (OB) acélkaplis surranó",null,"46, 47"]
["D95136-47","DUNLOP Purofort High Grip extrém csúszásbiztos, acélkaplis, PU csizma \"tapadókorongokkal\"",null,"37,40,43, 46",null,null,null,185]
["LCG59","KIMBERLITE (S1) fekete vízlepergető színbőr női cipő, acél orrmerevítő, szellőző belső",null,"36/41",{"$error":"#VALUE!"},"10/1",null,206]
[]
[]
[]
[]
[]
[]
[]
["Lotto® Works lábbelik és ruhézat"]
[]
[]
["OJ4272","STAR CITY (O2 HRO FO) vízlepergető nubuk bőr bakancs, hőálló talp",null,"40-42,45-46",null,null,null,"193"]
["OF9360","FOX (S1P) kényelmes, sportos kecskebőr bakancs, orrborítás, acélkapli és -talplemez",null,"37-39",null,null,null,"192"]
["OJ4205","STADIO STREET (01) kényelmes nubuk bőr sportcipő kapli nélkül, anatomikus talpbetéttel",null,"38-39",null,null,null,"193"]
["OJ4289","RAFT (S3)  fémmentes fekete színbőr cipő vízhatlan gumi orral, kompozit lábujjvédő + talp",null,"38-40,42",null,null,null,"192"]
["OF9371","LINK (02 HRO) vízlepergető nubuk bőr cipő,  hőálló, könnyű gumi/PU talppal, kapli nélkül",null,"40-42,44",null,null,null,"193"]
["OF9356","JEEP LOW (S1P) kényelmes, sportos kecskebőr cipő orrborítással, acélkapli és -talplemez",null,"39-44,46",null,null,null,"web"]
["OG2629","Antisztatikus Lotto talpbetét, nedvszívó Cambrelle és formatartó polietilén",null,"38-47",{"$error":"#VALUE!"},10,null,"web"]
["OG2627","Antisztatikus Lotto talpbetét, természetes bőr és formatartó polietilén",null,"38-47",{"$error":"#VALUE!"},10,"R","web"]
[]
["OH4426","Deréknadrág biztonsági varrás, dupla térdfolt, 13 zseb plusz kivehető szerszámtartó zsebek",null,"S, L, XL",null,null,null,"256"]
["OH4440","Kertésznadrág széles vállpánt, derék, szellőző hát, 16 zseb plusz kivehető szerszámtartók",null,"S, M, L, XXL",null,null,null,"256"]
["OH4437","Munkakabát, dzsekifazonú, 6 zseb, kétutas cipzár, könyökfolt, rugalmas pamut",null,"S,XL,XXL"]
["OH4443","Overall levehető ujjak, dupla térd- és könyökfolt, 17 zseb plusz kivehető szerszámtartók",null,"L, XL, XXL"]
["OH4423","2 az 1-ben deréknadrág lecipzározható szárral, 10 zsebbel (100% pamut)",null,"M, L, XXL",null,null,null,"256"]
["OH4386","Lotto Logo pamutpóló, 165 g/m², acélkék színben",null,"S ",null,null,null,"256"]
["OG7314","Téli baseball sapka thermo polár anyagból narancs színben",null,null,null,null,null,"web"]
["OG7317","Lotto works baseball sapka 100% pamutból fekete színben",null,null,null,null,null,"web"]
["OXL0910 ","Lotto Totem bemutató állvány"]
["OG7305","Lotto övtáska, fekete/narancs színben, poliészter alapanyag, 32x12x13 cm",null,null,null,null,null,345]
["OJ6498","Lotto antisztatikus jégralsó, sötétszürke (Coolmax® /poliészter / Polistatic silver)",null,"S/XXL",{"$error":"#VALUE!"},"10/1",null,"web"]
["OJ6496","Lotto antisztatikus jégrfelső, sötétszürke (Coolmax® /poliészter / Polistatic silver)",null,"S/XXL",{"$error":"#VALUE!"},"10/1",null,"web"]
[]
[]
[]
["MUNKARUHÁZAT"]
[]
[]
["RBONC","Zoran overall patentos csukló, fényvisszaverő csík, térdeplőtasak, tíz zseb, zöld (290g/m2 35% pamut, 65% pes)",null,"44-64",null,null,null,234]
["RBZOC","Zoran overall patentos csukló, fényvisszaverő csík, térdeplőtasak, tíz zseb, kék",null,"44-54,60-64",null,null,null,235]
[7461,"Juno sötétkék/fekete melles öltöny                ",null,"42-44,58-62",null,null,null,236]
["7462","Juno bordó/fekete melles öltöny (245g/m2, kopásálló 35% pamut, 65% poliészter)  ",null,"42-46,58-62",null,null,null,236]
[7463,"Juno sötétszürke/sárga melles öltöny  ",null,"42-44,60",null,null,null,236]
["RNEAW","Neat  fehér nadrág 7 zsebbel, erősített térddel, 320g/m2,  65% poliészter, 35% pamut ",null,"L,XL,3XL",null,null,null,253]
["XMERCI","MERGA kötött pamut pulóver világoskék színben",null,"M, L, XL"]
["XRATJE ","RATABAN kék pamut farmering klasszikus fazonban",null,"M, L"]
["XSIRNO","SIRIUS fekete farmernadrág egyenes fazonnal",null,"36,38,40,56"]
["XKALB","KALAHARI  3/1 lecipzározható szárú nadrág kék színben",null,"S-XXL"]
["XKALS","KALAHARI  3/1 lecipzározható szárú nadrág homok színben",null,"S, XL, XXL"]
["XSAHB","SAHARA rövid ujjú ing kék színben",null,"S, M"]
["XSAHS","SAHARA rövid ujjú ing homokszínben",null,"S, M"]
["ZVEGBE","VEGA bermuda rövidnadrág 100% pamutból bézs színbem",null,"40, 42, 44"]
["ZVEGMA","VEGA bermuda rövidnadrág 100% pamutból kék színben",null,"40, 42"]
["XFOHR","FÖHN  piros bebújós, polárral bélelt, szellőző, vízhatlan anorák        ",null,"S,M,XL,XXL",null,null,null,292]
["RPAJB","Patrol mellesnadrág sárga/kék egyenes fazon",null,"S,M,3XL"]
["RPAJC","Patrol overall sárga/kék, rejtett gombolás, nyolc zseb  ",null,"2XL, 3XL",null,null,null,307]
["7HWSY","Hi-way fluo Pes esőruha, hosszú kabát+nadrág, sárga/fekete",null,"M, XL,3XL",null,null,null,"313"]
[45333,"Tyvek öntapadós zseb"]
["RBOP","BOUND II pantallók kopásálló Cordura® térd+bokarész, azúrkék (A), dohánybarna (T) szín",null,"S/3XL",5763,null,null,274,{"$f":"E2974*1.651","v":9514.7129999999997}]
["RCARS","Rövidnadrág bermuda a derékpántnál csatos övszalaggal",null,". . . ",0,"10/1",1,"web"]
["PATROL XTRA jól láthatósági ruházat, 5cm-es fényvisszaverő csíkok, fekete Taslan Oxford betétek (280g/m2, 60% pamut, 40% poliészter):"]
["RPXYV","Xtra kabát sárga/fekete (gallér, váll, csukló és alj) dzseki fazon, rejtett húzózár, 6 zseb",null,"S/XXXL",{"$error":"#VALUE!"},10,null,"321"]
["RPXOV","Xtra kabát narancs/fekete . . . ",null,"M/XXXL",null,". . . ",null,"321"]
["RPXYP","Xtra deréknadrág sárga/fekete kopásálló térd és boka, 11 zseb + 7 kivehető szerszámtartó",null,"S/4XL",9690,10,null,"321",{"$f":"E2979*1.651","v":15998.19}]
["RPXOP","Xtra deréknadrág narancs/fekete . . .",null,"S/4XL",null,". . . ",null,"321"]
[]
[]
["TÉLI RUHÁZAT"]
[]
[]
["X57630","BEAVER kabát, -45ºC, levehető, szőrmés kapucni, állítható mandzsetta",null,"L"]
["XAFRI","AFRICA   sárga/fekete  3 az 1-ben: polár pulóver+dzseki+kabát, szellőző Taslan anyagból                                                      ",null,"L,XL",null,null,null,291]
["XANTA","ANTARCTIC  sárga/fekete vitorlázókabát, polárbélés és kapucni",null,"L, XL, XXL",null,null,null,305]
["XBRIP","RIPSTOP piros/szürke/fekete pilóta dzseki, 2/1: levehető ujjak, szakadásbiztos anyag ",null,"M. XXXL",null,null,null,"web"]
["XBDRI","RIPSTOP szürke/piros/világos szürke  ",null,"L, XL, XXL",null,null,null,"web"]
["XBYAG","BIYANG  zöld/fekete cipzáros pulóver, lélegző, vízhatlan softshell anyag          ",null,"S,M,XL,XXL",null,null,null,"276"]
["XBYAR","BIYANG  piros/fekete cipzáros pulóver, lélegző, vízhatlan softshell anyag   ",null,"S",null,null,null,"276"]
["XBYAN","BIYANG  kék/fekete cipzáros pulóver, lélegző, vízhatlan softshell anyag   ",null,"S,M,XXL",null,null,null,"276"]
["XCITY","CITY  barna, levehető ujjú, 2 az 1-ben, mikropolár béléses télikabát",null,"M,XL,XXL",null,null,null,283]
["XDOUN","DOUN cipzáros, álló gallérral és hosszított hátrésszel                           ",null,"XS",null,null,null,268]
["XFREV","FREEZER hűtőházi védőkabát, -38ºC, fluo csík, hőszigetelő bélés",null,"M ",null,null,null,298]
["XLADYC","LADY  bézs női kabát, szellőző vízhatlan Taslan anyag, polár- és taft bélés",null,"XS",null,null,null,292]
["XLEMS","LEMAN  bézs/fekete kifordítható vízhatlan/polár mellény",null,"XXL",null,null,null,269]
["XMALO","MALOJA szürke polár mellényfekete vízálló vállrésszel",null,"XS, S",null,null,null,270]
["XSLON","SLOFTY fekete polár kabát levehető ujjakkal, szellőző",null,"XS"]
["XYARB","YANG  Ripstop fekete szakadásbiztos külső anyag, fényvisszaverő csík   ",null,"S, M, XXL",null,null,null,"275"]
["XSWED","SWEDALU kék bikolor kabát, aluminizált thermo bélés, kapucni             ",null,"M, 2XL, 3XL",null,null,null,282]
["XMAUG","MAUKA  khaki/barna kabát, vízlepergető külső, levehető, bélelt kapucni, könyökfoltok",null,"L"]
["XTYRB","TYROLIA   kék bélelt kapucnis télikabát",null,"M, XXL",null,null,null,295]
["XBODY","BODYGUARD fekete, kivehető belső mellény, állítható derék, fényvisszaverő díszcsíkok",null,"M, L",null,null,null,282]
["XASIA","ASIA zöld/fekete  3 az 1-ben: polár pulóver+dzseki+kabát, szellőző Taslan anyagból   ",null,"M, XL",null,null,null,291]
["XOCEA","OCEANIA","piros/fekete 3 az 1-ben: polár pulóver+dzseki+kabát, szellőző Taslan anyagból","L, XXL",null,null,null,291]
["RGARM","GARDENER Medium khaki/sötétkék bélelt mellény",null,". . .",5270,". . .",null,"251",{"$f":"E3008*1.651","v":8700.77}]
["XPSLN","POLENA SLEEVE  fekete",null,null,null,". . . ",null,285]
["XYANO","YANG  rézvörös",null,". . .",null,". . .",null,293]
["XYAFV","YANG  zöld, fényvisszaverő díszcsíkkal",null,". . .",null,". . .",null,293]
["XEQUA","EQUATEUR  fekete vízhatlan átmeneti kabát",null,"M/XL",{"$error":"#VALUE!"},". . .",null,"web"]
["XPRNB","RIPSTOP  szürke deréknadrág, szellőző, vízhatlan",null,"S/XXL",{"$error":"#VALUE!"},10,null,303]
["XANTA","ANTARCTIC  sárga/fekete   KIFUTÓ!",null,"XL/XXL"]
["ZDEN","Deneb ingpulóver, 280g/m² hurkolt anyag, hosszú ujjú ",null,"M",2125,null,null,null,{"$f":"E3015*1.651","v":3508.375}]
[null,". . . szín: tengerkék, világoskék farmergallérral (ZDENMA)",null,"XXL"]
["OJ6498","Lotto antisztatikus jégralsó, sötétszürke (Coolmax® /poliészter / Polistatic silver)",null,"S/XXL",{"$error":"#VALUE!"}]
["OJ6496","Lotto antisztatikus jégrfelső, sötétszürke (Coolmax® /poliészter / Polistatic silver)",null,"S/XXL",{"$error":"#VALUE!"}]